Body,Body Name,Date,Transaction Number,Invoice Number,Amount,Supplier Name,Supplier ID ,VAT Registration Number ,Expense Area,Expense Type,Expense Code,Purchase Order
http://statistics.data.gov.uk/id/local-authority/29UP,Tonbridge & Malling Borough Council,8/3/2022,0011044695/1,11044695, 339.50,K T Fire Protection Ltd,00057000,,BRREP Servicing - FireAlarmSys,Larkfield Leisure Centre,M15HDP20001937,
http://statistics.data.gov.uk/id/local-authority/29UP,Tonbridge & Malling Borough Council,8/3/2022,0011044696/1,11044696, 1217.80,Sellick Partnership Group Limited,01336800,,Temporary Staff,Legal Sals&Overheads,D01ARDR0011300,
http://statistics.data.gov.uk/id/local-authority/29UP,Tonbridge & Malling Borough Council,8/3/2022,0011044697/1,11044697, 577.46,KH Recruitment Ltd,01738900,,Temporary Staff,Personnel Sals&Overheads,D01ABDB0311300,
http://statistics.data.gov.uk/id/local-authority/29UP,Tonbridge & Malling Borough Council,8/3/2022,0011044698/1,11044698, 279.00,Thomson Snell & Passmore,00101700,,Legal Fees,Legal Sals&Overheads,D01ARDR0044002,
http://statistics.data.gov.uk/id/local-authority/29UP,Tonbridge & Malling Borough Council,8/3/2022,0011044700/1,11044700, 814.28,Venn Group Ltd,00914300,,Temporary Staff,Legal Sals&Overheads,D01ARDR0011300,
http://statistics.data.gov.uk/id/local-authority/29UP,Tonbridge & Malling Borough Council,8/3/2022,0011044701/1,11044701, 1217.80,Sellick Partnership Group Limited,01336800,,Temporary Staff,Legal Sals&Overheads,D01ARDR0011300,
http://statistics.data.gov.uk/id/local-authority/29UP,Tonbridge & Malling Borough Council,8/3/2022,0012008436/1,12008436, 416.64,SureCloud Limited,01155300,,Consultancy Fees,Information Technology,D27KD000044011,
http://statistics.data.gov.uk/id/local-authority/29UP,Tonbridge & Malling Borough Council,8/3/2022,0012008437/1,12008437, 3400.00,Ebase Technology Limited,00895300,,Consultancy Fees,Information Technology,D27KD000044011,410032192
http://statistics.data.gov.uk/id/local-authority/29UP,Tonbridge & Malling Borough Council,8/3/2022,0012008438/1,12008438, 9014.48,Phoenix Software Ltd,00077400,755349015,Software Hire & Support,Information Technology,D27KD000044059,
http://statistics.data.gov.uk/id/local-authority/29UP,Tonbridge & Malling Borough Council,8/3/2022,0012008439/1,12008439, 1825.00,BlueFort Security Ltd,01214100,,Software Hire & Support,Information Technology,D27KD000044059,410032229
http://statistics.data.gov.uk/id/local-authority/29UP,Tonbridge & Malling Borough Council,8/3/2022,0012008440/1,12008440, 5.99,CCS Media Ltd,00018000,,Purchases,Information Technology,D27KD000040101,410032231
http://statistics.data.gov.uk/id/local-authority/29UP,Tonbridge & Malling Borough Council,8/3/2022,0012008440/2,12008440, 5.20,CCS Media Ltd,00018000,,Delivery Expenses,Information Technology,D27KD000044069,410032231
http://statistics.data.gov.uk/id/local-authority/29UP,Tonbridge & Malling Borough Council,8/3/2022,0012008441/1,12008441, 1200.00,Idox Software Ltd,00962400,,Software Hire & Support,Information Technology,D27KD000044059,410032222
http://statistics.data.gov.uk/id/local-authority/29UP,Tonbridge & Malling Borough Council,8/3/2022,0012008442/1,12008442, 3160.00,Man and Machine Ltd,01857900,,Software Hire & Support,Information Technology,D27KD000044059,410032230
http://statistics.data.gov.uk/id/local-authority/29UP,Tonbridge & Malling Borough Council,8/3/2022,0012008443/1,12008443, 1176.91,NEC Software Solutions UK Ltd,01073900,202159745,Software Hire & Support,Information Technology,D27KD000044059,410032226
http://statistics.data.gov.uk/id/local-authority/29UP,Tonbridge & Malling Borough Council,8/3/2022,0012008444/1,12008444, 24000.00,Agile Applications Ltd,01850800,,Consultancy Fees,Information Technology,D27KD000044011,410032202
http://statistics.data.gov.uk/id/local-authority/29UP,Tonbridge & Malling Borough Council,8/3/2022,0021038059/3,21038059, 10.50,B&Q/Screwfix Direct(TradeUKAccount),00141300,,Maintenance of Grounds,Open Spaces & Amenity Areas,B22LE000020402,
http://statistics.data.gov.uk/id/local-authority/29UP,Tonbridge & Malling Borough Council,8/3/2022,0021038060/7,21038060, 31.67,B&Q/Screwfix Direct(TradeUKAccount),00141300,,Purchases,Open Spaces & Amenity Areas,B22LE000040101,
http://statistics.data.gov.uk/id/local-authority/29UP,Tonbridge & Malling Borough Council,8/3/2022,0021038062/1,21038062, 673.85,Landscape Services Ltd,00057600,,Grounds Maintenance Contract,Cemetery,B26MP000050103,
http://statistics.data.gov.uk/id/local-authority/29UP,Tonbridge & Malling Borough Council,8/3/2022,0021038063/1,21038063, 992.00,Fenland Leisure Products Ltd,01675100,,Maintenance of Play Equipment,Open Spaces & Amenity Areas,B22LE000020503,210056870
http://statistics.data.gov.uk/id/local-authority/29UP,Tonbridge & Malling Borough Council,8/3/2022,0021038064/1,21038064, 117.00,Fenland Leisure Products Ltd,01675100,,Maintenance of Play Equipment,Open Spaces & Amenity Areas,B22LE000020503,210056878
http://statistics.data.gov.uk/id/local-authority/29UP,Tonbridge & Malling Borough Council,8/3/2022,0021038065/1,21038065, 21497.43,Landscape Services Ltd,00057600,,Grounds Maintenance Contract,Sports Grounds,B13ET000050103,
http://statistics.data.gov.uk/id/local-authority/29UP,Tonbridge & Malling Borough Council,8/3/2022,0021038065/10,21038065, 157.16,Landscape Services Ltd,00057600,,Grounds Maintenance Contract,Churchyards St Stephens,B28MY000050103,
http://statistics.data.gov.uk/id/local-authority/29UP,Tonbridge & Malling Borough Council,8/3/2022,0021038065/11,21038065, 173.71,Landscape Services Ltd,00057600,,Grounds Maintenance Contract,Grounds,D21FF000050103,
http://statistics.data.gov.uk/id/local-authority/29UP,Tonbridge & Malling Borough Council,8/3/2022,0021038065/12,21038065, 329.46,Landscape Services Ltd,00057600,,Maintenance of Grounds,Parking Off-Street,E10HA000020402,
http://statistics.data.gov.uk/id/local-authority/29UP,Tonbridge & Malling Borough Council,8/3/2022,0021038065/13,21038065, 1033.20,Landscape Services Ltd,00057600,,Maintenance of Grounds,Parking Off-Street,E10HAE00120402,
http://statistics.data.gov.uk/id/local-authority/29UP,Tonbridge & Malling Borough Council,8/3/2022,0021038065/14,21038065, 98.11,Landscape Services Ltd,00057600,,Maintenance of Grounds,Parking Off-Street,E10HAE00220402,
http://statistics.data.gov.uk/id/local-authority/29UP,Tonbridge & Malling Borough Council,8/3/2022,0021038065/15,21038065, 88.97,Landscape Services Ltd,00057600,,Maintenance of Grounds,Parking Off-Street,E10HAE00320402,
http://statistics.data.gov.uk/id/local-authority/29UP,Tonbridge & Malling Borough Council,8/3/2022,0021038065/16,21038065, 22.19,Landscape Services Ltd,00057600,,Maintenance of Grounds,Parking Off-Street,E10HAE00420402,
http://statistics.data.gov.uk/id/local-authority/29UP,Tonbridge & Malling Borough Council,8/3/2022,0021038065/17,21038065, 0.57,Landscape Services Ltd,00057600,,Maintenance of Grounds,Parking Off-Street,E10HAE00520402,
http://statistics.data.gov.uk/id/local-authority/29UP,Tonbridge & Malling Borough Council,8/3/2022,0021038065/18,21038065, 62.11,Landscape Services Ltd,00057600,,Maintenance of Grounds,Parking Off-Street,E10HAE00620402,
http://statistics.data.gov.uk/id/local-authority/29UP,Tonbridge & Malling Borough Council,8/3/2022,0021038065/19,21038065, 145.01,Landscape Services Ltd,00057600,,Maintenance of Grounds,Parking Off-Street,E10HAE01020402,
http://statistics.data.gov.uk/id/local-authority/29UP,Tonbridge & Malling Borough Council,8/3/2022,0021038065/2,21038065, 7461.13,Landscape Services Ltd,00057600,,Grounds Maintenance Contract,Tonbridge Castle Grounds,B22LB000050103,
http://statistics.data.gov.uk/id/local-authority/29UP,Tonbridge & Malling Borough Council,8/3/2022,0021038065/20,21038065, 3.21,Landscape Services Ltd,00057600,,Maintenance of Grounds,Parking Off-Street,E10HAE01220402,
http://statistics.data.gov.uk/id/local-authority/29UP,Tonbridge & Malling Borough Council,8/3/2022,0021038065/21,21038065, 7.09,Landscape Services Ltd,00057600,,Maintenance of Grounds,Parking Off-Street,E10HAE01320402,
http://statistics.data.gov.uk/id/local-authority/29UP,Tonbridge & Malling Borough Council,8/3/2022,0021038065/22,21038065, 29.50,Landscape Services Ltd,00057600,,Maintenance of Grounds,Parking Off-Street,E10HAE01520402,
http://statistics.data.gov.uk/id/local-authority/29UP,Tonbridge & Malling Borough Council,8/3/2022,0021038065/23,21038065, 57.64,Landscape Services Ltd,00057600,,Maintenance of Grounds,Parking Off-Street,E10HAE01620402,
http://statistics.data.gov.uk/id/local-authority/29UP,Tonbridge & Malling Borough Council,8/3/2022,0021038065/24,21038065, 23.42,Landscape Services Ltd,00057600,,Maintenance of Grounds,Parking Off-Street,E10HAE01720402,
http://statistics.data.gov.uk/id/local-authority/29UP,Tonbridge & Malling Borough Council,8/3/2022,0021038065/25,21038065, 14.39,Landscape Services Ltd,00057600,,Maintenance of Grounds,Parking Off-Street,E10HAE02120402,
http://statistics.data.gov.uk/id/local-authority/29UP,Tonbridge & Malling Borough Council,8/3/2022,0021038065/26,21038065, 22.91,Landscape Services Ltd,00057600,,Maintenance of Grounds,Parking Off-Street,E10HAE02320402,
http://statistics.data.gov.uk/id/local-authority/29UP,Tonbridge & Malling Borough Council,8/3/2022,0021038065/27,21038065, 87.83,Landscape Services Ltd,00057600,,Maintenance of Grounds,Parking Off-Street,E10HAE02820402,
http://statistics.data.gov.uk/id/local-authority/29UP,Tonbridge & Malling Borough Council,8/3/2022,0021038065/28,21038065, 23.78,Landscape Services Ltd,00057600,,Maintenance of Grounds,Parking Off-Street,E10HAE04020402,
http://statistics.data.gov.uk/id/local-authority/29UP,Tonbridge & Malling Borough Council,8/3/2022,0021038065/29,21038065, 78.42,Landscape Services Ltd,00057600,,Maintenance of Grounds,Parking Off-Street,E10HAE04520402,
http://statistics.data.gov.uk/id/local-authority/29UP,Tonbridge & Malling Borough Council,8/3/2022,0021038065/3,21038065, 56.77,Landscape Services Ltd,00057600,,Trade Refuse Charges,Haysden Country Park,B22LC000044008,
http://statistics.data.gov.uk/id/local-authority/29UP,Tonbridge & Malling Borough Council,8/3/2022,0021038065/4,21038065, 487.02,Landscape Services Ltd,00057600,,Litter Collection,Haysden Country Park,B22LC000044061,
http://statistics.data.gov.uk/id/local-authority/29UP,Tonbridge & Malling Borough Council,8/3/2022,0021038065/5,21038065, 1674.08,Landscape Services Ltd,00057600,,Grounds Maintenance Contract,Haysden Country Park,B22LC000050103,
http://statistics.data.gov.uk/id/local-authority/29UP,Tonbridge & Malling Borough Council,8/3/2022,0021038065/6,21038065, 583.97,Landscape Services Ltd,00057600,,Grounds Maintenance Contract,Haysden Country Park,B22LC000050103,
http://statistics.data.gov.uk/id/local-authority/29UP,Tonbridge & Malling Borough Council,8/3/2022,0021038065/7,21038065, 12393.51,Landscape Services Ltd,00057600,,Grounds Maintenance Contract,Open Spaces & Amenity Areas,B22LE000050103,
http://statistics.data.gov.uk/id/local-authority/29UP,Tonbridge & Malling Borough Council,8/3/2022,0021038065/8,21038065, 4577.19,Landscape Services Ltd,00057600,,Grounds Maintenance Contract,Cemetery,B26MP000050103,
http://statistics.data.gov.uk/id/local-authority/29UP,Tonbridge & Malling Borough Council,8/3/2022,0021038065/9,21038065, 216.11,Landscape Services Ltd,00057600,,Grounds Maintenance Contract,Churchyards St Peter & St Paul,B28MX000050103,
http://statistics.data.gov.uk/id/local-authority/29UP,Tonbridge & Malling Borough Council,8/3/2022,0021038066/1,21038066, 635.00,Event Consultants Ltd,01754700,,Events Support,Events Development,B41TJ000044041,
http://statistics.data.gov.uk/id/local-authority/29UP,Tonbridge & Malling Borough Council,8/3/2022,0021038067/1,21038067, 600.00,Monitor Pest Control Ltd,01476700,,Rodent Control,Haysden Country Park,B22LC000044053,
http://statistics.data.gov.uk/id/local-authority/29UP,Tonbridge & Malling Borough Council,8/3/2022,0021038068/1,21038068, 250.00,Rob Steele T/A Radii Skatepark Repairs,01683100,,Maintenance of Play Equipment,Open Spaces & Amenity Areas,B22LE000020503,210056868
http://statistics.data.gov.uk/id/local-authority/29UP,Tonbridge & Malling Borough Council,8/3/2022,0021038069/3,21038069, 200.00,SWS Countryside & Landscape,01567200,,Health & Safety - Trees,Countryside/Woodland Mgt,B22LG000044045,
http://statistics.data.gov.uk/id/local-authority/29UP,Tonbridge & Malling Borough Council,8/3/2022,0021038070/1,21038070, 1400.00,SWS Countryside & Landscape,01567200,,Health & Safety - Trees,Countryside/Woodland Mgt,B22LG000044045,210056837
http://statistics.data.gov.uk/id/local-authority/29UP,Tonbridge & Malling Borough Council,8/3/2022,0021038071/1,21038071, 400.00,SWS Countryside & Landscape,01567200,,Health & Safety - Trees,Countryside/Woodland Mgt,B22LG000044045,210056839
http://statistics.data.gov.uk/id/local-authority/29UP,Tonbridge & Malling Borough Council,8/3/2022,0021038072/1,21038072, 180.00,SWS Countryside & Landscape,01567200,,Health & Safety - Trees,Countryside/Woodland Mgt,B22LG000044045,210056877
http://statistics.data.gov.uk/id/local-authority/29UP,Tonbridge & Malling Borough Council,8/3/2022,0021038072/2,21038072, 300.00,SWS Countryside & Landscape,01567200,,Health & Safety - Trees,Countryside/Woodland Mgt,B22LG000044045,210056877
http://statistics.data.gov.uk/id/local-authority/29UP,Tonbridge & Malling Borough Council,8/3/2022,0021038073/3,21038073, 350.00,SWS Countryside & Landscape,01567200,,Health & Safety - Trees,Countryside/Woodland Mgt,B22LG000044045,
http://statistics.data.gov.uk/id/local-authority/29UP,Tonbridge & Malling Borough Council,8/3/2022,0021038074/1,21038074, 400.00,SWS Countryside & Landscape,01567200,,Health & Safety - Trees,Countryside/Woodland Mgt,B22LG000044045,210056838
http://statistics.data.gov.uk/id/local-authority/29UP,Tonbridge & Malling Borough Council,8/3/2022,0021038075/3,21038075, 830.00,SWS Countryside & Landscape,01567200,,Health & Safety - Trees,Countryside/Woodland Mgt,B22LG000044045,
http://statistics.data.gov.uk/id/local-authority/29UP,Tonbridge & Malling Borough Council,8/3/2022,0022026896/3,22026896, 1239.50,Vivid Resourcing,01773700,,Temporary Staff,Env Hlth & Hsg Sals&Overheads,D01AVDV0711300,
http://statistics.data.gov.uk/id/local-authority/29UP,Tonbridge & Malling Borough Council,8/3/2022,0022026897/3,22026897, 4645.60,Countrystyle Group,00835900,781981681,Plastic Recycling,Dry Recycling,H34SR000054019,
http://statistics.data.gov.uk/id/local-authority/29UP,Tonbridge & Malling Borough Council,8/3/2022,0022026898/3,22026898, 980.00,Countrystyle Group,00835900,781981681,Plastic Recycling,Dry Recycling,H34SR000054019,
http://statistics.data.gov.uk/id/local-authority/29UP,Tonbridge & Malling Borough Council,8/3/2022,0022026899/1,22026899, 1596.22,Scottish Water Business Stream Ltd,01641100,,Sewerage Charges,Public Conveniences,H22SCH01224003,
http://statistics.data.gov.uk/id/local-authority/29UP,Tonbridge & Malling Borough Council,8/3/2022,0022026900/1,22026900, 245.00,Countrystyle Group,00835900,781981681,Collection of Card,Dry Recycling,H34SR000054008,
http://statistics.data.gov.uk/id/local-authority/29UP,Tonbridge & Malling Borough Council,8/3/2022,0022026901/3,22026901, 2930.12,EDF Energy Customers plc,01035000,,Depot Recharges,Refuse Collection,H20SA000027002,
http://statistics.data.gov.uk/id/local-authority/29UP,Tonbridge & Malling Borough Council,8/3/2022,0022026901/4,22026901, 402.35,EDF Energy Customers plc,01035000,,Depot Recharges,Refuse Collection,H20SA000027002,
http://statistics.data.gov.uk/id/local-authority/29UP,Tonbridge & Malling Borough Council,8/3/2022,0022026902/1,22026902, 400.00,Green Recycling LTD,01563000,,Paper Recycling,Dry Recycling,H34SR000054024,
http://statistics.data.gov.uk/id/local-authority/29UP,Tonbridge & Malling Borough Council,8/3/2022,0022026903/1,22026903, 1134.00,Specialist Hygiene Services,01466100,,Cleaning & Domestic Supplies,Haysden Country Park,B22LC000026001,
http://statistics.data.gov.uk/id/local-authority/29UP,Tonbridge & Malling Borough Council,8/3/2022,0022026903/2,22026903, 5351.00,Specialist Hygiene Services,01466100,,Contract Payments,Public Conveniences,H22SC000054001,
http://statistics.data.gov.uk/id/local-authority/29UP,Tonbridge & Malling Borough Council,8/3/2022,0022026904/1,22026904, 1265.40,Stay Warm Insulation Ltd,01858800,,Other Expenses,Housing Assistance,P03AD000009908,
http://statistics.data.gov.uk/id/local-authority/29UP,Tonbridge & Malling Borough Council,8/3/2022,0022026905/1,22026905, 3.00,Tonbridge & Malling Borough Council,00103700,,Professional Fees,Private Sector Housing Renewal,C03BD000044001,
http://statistics.data.gov.uk/id/local-authority/29UP,Tonbridge & Malling Borough Council,8/3/2022,0022026906/1,22026906, 1191.93,Vivid Resourcing,01773700,,Temporary Staff,Env Hlth & Hsg Sals&Overheads,D01AVDV0711300,
http://statistics.data.gov.uk/id/local-authority/29UP,Tonbridge & Malling Borough Council,8/3/2022,0022026907/1,22026907, 4322.11,Ward Security LTD,01490000,,Dog Warden,Street Scene,H23SD000044100,
http://statistics.data.gov.uk/id/local-authority/29UP,Tonbridge & Malling Borough Council,8/3/2022,0022026909/3,22026909, 170.85,British Telecommunications Plc,00012800,,Maintenance - General,Security Services Management,E09GA000040135,
http://statistics.data.gov.uk/id/local-authority/29UP,Tonbridge & Malling Borough Council,8/3/2022,0022026910/1,22026910, 7447.39,Premiere Projects,00201200,,Other Expenses,Disabled Facilities Grant Mand,P03AC000009908,
http://statistics.data.gov.uk/id/local-authority/29UP,Tonbridge & Malling Borough Council,8/3/2022,0022026911/1,22026911, 1072.43,Town & Country Housing Group,01385400,,Other Expenses,Disabled Facilities Grant Mand,P03AC000009908,
http://statistics.data.gov.uk/id/local-authority/29UP,Tonbridge & Malling Borough Council,8/3/2022,0022026912/1,22026912, 8144.78,Safespaces (Cornholme) LTD,01524300,,Other Expenses,Disabled Facilities Grant Mand,P03AC000009908,
http://statistics.data.gov.uk/id/local-authority/29UP,Tonbridge & Malling Borough Council,8/3/2022,0022026913/1,22026913, 2.95,KCS,00054200,,Stationery,Env Hlth & Hsg Sals&Overheads,D01AVDV0643003,220003249
http://statistics.data.gov.uk/id/local-authority/29UP,Tonbridge & Malling Borough Council,8/3/2022,0022026913/2,22026913, 2.95,KCS,00054200,,Stationery,Env Hlth & Hsg Sals&Overheads,D01AVDV0643003,220003249
http://statistics.data.gov.uk/id/local-authority/29UP,Tonbridge & Malling Borough Council,8/3/2022,0022026913/3,22026913, 2.95,KCS,00054200,,Stationery,Env Hlth & Hsg Sals&Overheads,D01AVDV0643003,220003249
http://statistics.data.gov.uk/id/local-authority/29UP,Tonbridge & Malling Borough Council,8/3/2022,0022026913/4,22026913, 16.99,KCS,00054200,,Stationery,Env Hlth & Hsg Sals&Overheads,D01AVDV0643003,220003249
http://statistics.data.gov.uk/id/local-authority/29UP,Tonbridge & Malling Borough Council,8/3/2022,0022026914/1,22026914, 1550.00,Kent Housing,01503200,,Temporary Accommodation,Homelessness,C01AA000044051,
http://statistics.data.gov.uk/id/local-authority/29UP,Tonbridge & Malling Borough Council,8/3/2022,0022026915/1,22026915, 496.00,Kent Property Services,01722500,,Temporary Accommodation,Homelessness,C01AA000044051,
http://statistics.data.gov.uk/id/local-authority/29UP,Tonbridge & Malling Borough Council,8/3/2022,0022026916/1,22026916, 2229.08,The Care Group-Housing & Care Trust,01699600,,Temporary Accommodation,Homelessness,C01AA000044051,
http://statistics.data.gov.uk/id/local-authority/29UP,Tonbridge & Malling Borough Council,8/3/2022,0022026917/1,22026917, 6766.00,Kent Accommodation Ltd,01722000,,Temporary Accommodation,Homelessness,C01AA000044051,
http://statistics.data.gov.uk/id/local-authority/29UP,Tonbridge & Malling Borough Council,8/3/2022,0022026918/1,22026918, 3751.00,House to Home Lettings Ltd ,01647600,,Temporary Accommodation,Homelessness,C01AA000044051,
http://statistics.data.gov.uk/id/local-authority/29UP,Tonbridge & Malling Borough Council,8/3/2022,0022026919/3,22026919, 10044.00,Simon Niblett Lettings,00072600,,Temporary Accommodation,Homelessness,C01AA000044051,
http://statistics.data.gov.uk/id/local-authority/29UP,Tonbridge & Malling Borough Council,8/3/2022,0022026920/3,22026920, 1925.00,Simon Niblett Lettings,00072600,,Temporary Accommodation,Homelessness,C01AA000044051,
http://statistics.data.gov.uk/id/local-authority/29UP,Tonbridge & Malling Borough Council,8/3/2022,0022026921/1,22026921, 450.00,Smart Property Professionals,01815100,,Temporary Accommodation,Homelessness,C01AA000044051,
http://statistics.data.gov.uk/id/local-authority/29UP,Tonbridge & Malling Borough Council,8/3/2022,0022026922/1,22026922, 29217.00,Social & Community Care,01768400,,Temporary Accommodation,Homelessness,C01AA000044051,
http://statistics.data.gov.uk/id/local-authority/29UP,Tonbridge & Malling Borough Council,8/3/2022,0022026923/3,22026923, 3681.00,SPA CAFFE LIMITED,00127100,,Temporary Accommodation,Homelessness,C01AA000044051,
http://statistics.data.gov.uk/id/local-authority/29UP,Tonbridge & Malling Borough Council,8/3/2022,0031018805/1,31018805, 4440.30,Flowbird Smart City UK Limited,00898700,,Maintenance - General,Parking Off-Street,E10HA000040135,310042839
http://statistics.data.gov.uk/id/local-authority/29UP,Tonbridge & Malling Borough Council,8/3/2022,0031018805/2,31018805, 974.70,Flowbird Smart City UK Limited,00898700,,Maintenance - General,Parking On-Street,E10HD000040135,310042839
http://statistics.data.gov.uk/id/local-authority/29UP,Tonbridge & Malling Borough Council,8/3/2022,0031018806/1,31018806, 537.38,Archway Highway Services Ltd,01398000,,Maintenance of Grounds,Leybourne Lakes Country Park,B22LK000020402,310042858
http://statistics.data.gov.uk/id/local-authority/29UP,Tonbridge & Malling Borough Council,8/3/2022,0031018806/3,31018806, 1612.13,Archway Highway Services Ltd,01398000,,Premises Repairs & Maintenance,Parking On-Street,E10HD000020601,310042858
http://statistics.data.gov.uk/id/local-authority/29UP,Tonbridge & Malling Borough Council,8/3/2022,0031018807/1,31018807, 2301.64,CDER Group,01773300,,Adjudication & Enforcement Ser,Parking Off-Street,E10HA000044230,
http://statistics.data.gov.uk/id/local-authority/29UP,Tonbridge & Malling Borough Council,8/3/2022,0031018808/1,31018808, 5250.00,Marston,01485000,,Adjudication & Enforcement Ser,Parking Off-Street,E10HA000044230,
http://statistics.data.gov.uk/id/local-authority/29UP,Tonbridge & Malling Borough Council,8/3/2022,0031018813/1,31018813, 78.51,Shell U.K. Oil Products Limited,01673300,,"Petrol, Diesel & Oil",Patrolling,B22LF000030106,
http://statistics.data.gov.uk/id/local-authority/29UP,Tonbridge & Malling Borough Council,8/3/2022,0031018813/2,31018813, 80.95,Shell U.K. Oil Products Limited,01673300,,"Petrol, Diesel & Oil",Parking Off-Street,E10HA000030106,
http://statistics.data.gov.uk/id/local-authority/29UP,Tonbridge & Malling Borough Council,8/3/2022,0031018813/3,31018813, 80.95,Shell U.K. Oil Products Limited,01673300,,"Petrol, Diesel & Oil",Parking On-Street,E10HD000030106,
http://statistics.data.gov.uk/id/local-authority/29UP,Tonbridge & Malling Borough Council,8/3/2022,0031018814/1,31018814, 3122.00,Tonbridge & Malling Leisure Trust,01469100,,Ticket Refunds - Lower Castle,Parking Off-Street,E10HAE01344199,
http://statistics.data.gov.uk/id/local-authority/29UP,Tonbridge & Malling Borough Council,8/3/2022,0032009690/1,32009690, 246.33,KM Media Group Ltd,00053900,,Advertising General,Development Management,A01ABZ99944216,320003428
http://statistics.data.gov.uk/id/local-authority/29UP,Tonbridge & Malling Borough Council,8/3/2022,0032009691/1,32009691, 1591.00,Carrington West Limited,01844500,,Temporary Staff,Planning Sals&Overheads,D01AJDJ0111300,
http://statistics.data.gov.uk/id/local-authority/29UP,Tonbridge & Malling Borough Council,8/3/2022,0032009692/1,32009692, 150.00,Environment Agency,00418100,,Development of Local Plan,Development of Local Plan,A01AE000044023,320003400
http://statistics.data.gov.uk/id/local-authority/29UP,Tonbridge & Malling Borough Council,8/3/2022,0032009693/1,32009693, 2590.00,G2 Recruitment Solutions,01786000,,Temporary Staff,Planning Sals&Overheads,D01AJDJ0111300,
http://statistics.data.gov.uk/id/local-authority/29UP,Tonbridge & Malling Borough Council,8/3/2022,0032009694/1,32009694, 3259.61,G2 Recruitment Solutions,01786000,,Temporary Staff,Planning Sals&Overheads,D01AJDJ0111300,
http://statistics.data.gov.uk/id/local-authority/29UP,Tonbridge & Malling Borough Council,8/3/2022,0032009695/1,32009695, 1844.70,The Oyster Partnership,01196400,,Temporary Staff,Planning Sals&Overheads,D01AJDJ0111300,
http://statistics.data.gov.uk/id/local-authority/29UP,Tonbridge & Malling Borough Council,8/3/2022,0032009696/1,32009696, 1586.91,The Oyster Partnership,01196400,,Temporary Staff,Planning Sals&Overheads,D01AJDJ0111300,
http://statistics.data.gov.uk/id/local-authority/29UP,Tonbridge & Malling Borough Council,8/3/2022,0032009697/1,32009697, 1702.00,Vivid Resourcing,01773700,,Temporary Staff,Planning Sals&Overheads,D01AJDJ0111300,
http://statistics.data.gov.uk/id/local-authority/29UP,Tonbridge & Malling Borough Council,8/3/2022,0041034555/1,41034555, 278.30,Morgan Hunt UK Ltd,01086900,,Temporary Staff,Finance Sals&Overheads,D01AFDF1111300,
http://statistics.data.gov.uk/id/local-authority/29UP,Tonbridge & Malling Borough Council,8/3/2022,0041034556/1,41034556, 971.25,Morgan Hunt UK Ltd,01086900,,Temporary Staff,Finance Sals&Overheads,D01AFDF1111300,
http://statistics.data.gov.uk/id/local-authority/29UP,Tonbridge & Malling Borough Council,8/3/2022,0041034557/1,41034557, 216.00,Kent County Council,00322500,,Tracing Services,Local Revenue & NNDR Collect,D41QA000044091,410032232
http://statistics.data.gov.uk/id/local-authority/29UP,Tonbridge & Malling Borough Council,8/3/2022,0041034559/1,41034559, 14412.00,Grant Thornton UK LLP,01407400,,Audit Fees,Public Accountability,D29LR000044223,
http://statistics.data.gov.uk/id/local-authority/29UP,Tonbridge & Malling Borough Council,8/3/2022,0041034561/1,41034561, 1675.87,Maidstone Borough Council,01173700,,Bailiffs Commission,Local Revenue & NNDR Collect,D41QA000044075,
http://statistics.data.gov.uk/id/local-authority/29UP,Tonbridge & Malling Borough Council,8/3/2022,0041034562/1,41034562, 588.95,Maidstone Borough Council,01173700,,Bailiffs Commission,Local Revenue & NNDR Collect,D41QA000044075,
http://statistics.data.gov.uk/id/local-authority/29UP,Tonbridge & Malling Borough Council,8/3/2022,0041034563/1,41034563, 776.15,Rundle & Co Ltd,00087200,,Bailiffs Commission,Local Revenue & NNDR Collect,D41QA000044075,
http://statistics.data.gov.uk/id/local-authority/29UP,Tonbridge & Malling Borough Council,8/3/2022,0041034564/1,41034564, 16.61,Rundle & Co Ltd,00087200,,Bailiffs Commission,Local Revenue & NNDR Collect,D41QA000044075,
http://statistics.data.gov.uk/id/local-authority/29UP,Tonbridge & Malling Borough Council,8/3/2022,0041034573/10,41034573, 17.01,Computershare Voucher Services,01212600,,National Insurance,Env Hlth & Hsg Sals&Overheads,D01AVDV0711191,
http://statistics.data.gov.uk/id/local-authority/29UP,Tonbridge & Malling Borough Council,8/3/2022,0041034573/3,41034573, 20.00,Computershare Voucher Services,01212600,,Childcare Scheme,Finance Sals&Overheads,D01AFDF0911136,
http://statistics.data.gov.uk/id/local-authority/29UP,Tonbridge & Malling Borough Council,8/3/2022,0041034573/4,41034573, 1.40,Computershare Voucher Services,01212600,,National Insurance,Finance Sals&Overheads,D01AFDF0911191,
http://statistics.data.gov.uk/id/local-authority/29UP,Tonbridge & Malling Borough Council,8/3/2022,0041034573/5,41034573, 50.00,Computershare Voucher Services,01212600,,Childcare Scheme,Legal Sals&Overheads,D01ARDR0011136,
http://statistics.data.gov.uk/id/local-authority/29UP,Tonbridge & Malling Borough Council,8/3/2022,0041034573/6,41034573, 3.50,Computershare Voucher Services,01212600,,National Insurance,Legal Sals&Overheads,D01ARDR0011191,
http://statistics.data.gov.uk/id/local-authority/29UP,Tonbridge & Malling Borough Council,8/3/2022,0041034573/7,41034573, 20.00,Computershare Voucher Services,01212600,,Childcare Scheme,Env Hlth & Hsg Sals&Overheads,D01AVDV0211136,
http://statistics.data.gov.uk/id/local-authority/29UP,Tonbridge & Malling Borough Council,8/3/2022,0041034573/8,41034573, 1.40,Computershare Voucher Services,01212600,,National Insurance,Env Hlth & Hsg Sals&Overheads,D01AVDV0211191,
http://statistics.data.gov.uk/id/local-authority/29UP,Tonbridge & Malling Borough Council,8/3/2022,0041034573/9,41034573, 243.00,Computershare Voucher Services,01212600,,Childcare Scheme,Env Hlth & Hsg Sals&Overheads,D01AVDV0711136,
http://statistics.data.gov.uk/id/local-authority/29UP,Tonbridge & Malling Borough Council,8/5/2022,0041034576/1,41034576, 15.00,HSBC Bank Plc,01740800,,Bank Charges,Banking Arrangements,D43QK000044222,
http://statistics.data.gov.uk/id/local-authority/29UP,Tonbridge & Malling Borough Council,8/10/2022,0011044702/1,11044702, 500.00,Idox Software Ltd,00962400,,Electronic Elector Responses,Electoral Registration,D31MF000044102,110069660
http://statistics.data.gov.uk/id/local-authority/29UP,Tonbridge & Malling Borough Council,8/10/2022,0011044703/1,11044703, 2434.00,Blackwood Bayne Ltd,01681400,,Marketing,Tonbridge Castle Gatehouse,B40TGZ99944215,110069510
http://statistics.data.gov.uk/id/local-authority/29UP,Tonbridge & Malling Borough Council,8/10/2022,0011044704/1,11044704, 926.25,Marine And Industrial Pump Services,00062800,,BRREP Plant renewals,Tonbridge Swimming Pool,M15HBP20001909,110069627
http://statistics.data.gov.uk/id/local-authority/29UP,Tonbridge & Malling Borough Council,8/10/2022,0011044705/1,11044705, 95.00,Monitor Pest Control Ltd,01476700,,BRREP Rodent Control,Gibson Building West,M15KBP20001949,110069659
http://statistics.data.gov.uk/id/local-authority/29UP,Tonbridge & Malling Borough Council,8/10/2022,0011044706/1,11044706, 113.50,K T Fire Protection Ltd,00057000,,BRREP Servicing - FireAlarmSys,Leis Man Poult Wood Golf Centr,M15HEP20001937,110069667
http://statistics.data.gov.uk/id/local-authority/29UP,Tonbridge & Malling Borough Council,8/10/2022,0011044707/1,11044707, 853.41,VIPSystem Ltd,01422600,,Purchases,Licences - Fee Paying,H27SH000040101,110069676
http://statistics.data.gov.uk/id/local-authority/29UP,Tonbridge & Malling Borough Council,8/10/2022,0011044707/2,11044707, 1022.92,VIPSystem Ltd,01422600,,Purchases,Licences - Fee Paying,H27SH000040101,110069676
http://statistics.data.gov.uk/id/local-authority/29UP,Tonbridge & Malling Borough Council,8/10/2022,0011044707/3,11044707, 277.14,VIPSystem Ltd,01422600,,Purchases,Licences - Fee Paying,H27SH000040101,110069676
http://statistics.data.gov.uk/id/local-authority/29UP,Tonbridge & Malling Borough Council,8/10/2022,0011044707/4,11044707, 138.57,VIPSystem Ltd,01422600,,Purchases,Licences - Fee Paying,H27SH000040101,110069676
http://statistics.data.gov.uk/id/local-authority/29UP,Tonbridge & Malling Borough Council,8/10/2022,0011044707/5,11044707, 415.71,VIPSystem Ltd,01422600,,Purchases,Licences - Fee Paying,H27SH000040101,110069676
http://statistics.data.gov.uk/id/local-authority/29UP,Tonbridge & Malling Borough Council,8/10/2022,0011044707/6,11044707, 138.57,VIPSystem Ltd,01422600,,Purchases,Licences - Fee Paying,H27SH000040101,110069676
http://statistics.data.gov.uk/id/local-authority/29UP,Tonbridge & Malling Borough Council,8/10/2022,0011044707/7,11044707, 112.10,VIPSystem Ltd,01422600,,Purchases,Licences - Fee Paying,H27SH000040101,110069676
http://statistics.data.gov.uk/id/local-authority/29UP,Tonbridge & Malling Borough Council,8/10/2022,0011044707/8,11044707, 139.23,VIPSystem Ltd,01422600,,Purchases,Licences - Fee Paying,H27SH000040101,110069676
http://statistics.data.gov.uk/id/local-authority/29UP,Tonbridge & Malling Borough Council,8/10/2022,0011044707/9,11044707, 92.82,VIPSystem Ltd,01422600,,Purchases,Licences - Fee Paying,H27SH000040101,110069676
http://statistics.data.gov.uk/id/local-authority/29UP,Tonbridge & Malling Borough Council,8/10/2022,0011044708/1,11044708, 15853.88,Gilbert & Stamper Ltd,00039000,209804170,Other Expenses,Homeless Accommodation,P03AX000009908,110069473
http://statistics.data.gov.uk/id/local-authority/29UP,Tonbridge & Malling Borough Council,8/10/2022,0011044709/1,11044709, 140.00,East Sussex Fire Ltd,01843100,,Repairs & Mtce to Buildings,Homelessness,C01AATNHS20101,110069587
http://statistics.data.gov.uk/id/local-authority/29UP,Tonbridge & Malling Borough Council,8/10/2022,0011044710/1,11044710, 1700.00,G C Industrial Heating Services,00578100,,BRREP Servicing - boilers,Tonbridge Farm Pavillion,M15HGP20001929,110069628
http://statistics.data.gov.uk/id/local-authority/29UP,Tonbridge & Malling Borough Council,8/10/2022,0011044711/1,11044711, 152.00,Disclosure & Barring Service,00865900,,Professional Fees,Licences - Fee Paying,H27SH000044001,
http://statistics.data.gov.uk/id/local-authority/29UP,Tonbridge & Malling Borough Council,8/10/2022,0011044713/1,11044713, 573.48,KH Recruitment Ltd,01738900,,Temporary Staff,Personnel Sals&Overheads,D01ABDB0311300,
http://statistics.data.gov.uk/id/local-authority/29UP,Tonbridge & Malling Borough Council,8/10/2022,0011044716/1,11044716, 200.00,Cornerstones Barristers,01359100,,Other Planning Enq - Legal Cos,Legal Sals&Overheads,D01ARDR0044146,
http://statistics.data.gov.uk/id/local-authority/29UP,Tonbridge & Malling Borough Council,8/10/2022,0011044717/1,11044717, 21.15,Oasis Group  - Box-It South East,00966800,931579211,Purchases,Electoral Registration,D31MF000040101,
http://statistics.data.gov.uk/id/local-authority/29UP,Tonbridge & Malling Borough Council,8/10/2022,0011044718/1,11044718, 779.75,KCS,00054200,,Estate Management Charge,Land Review,D40PS000020400,
http://statistics.data.gov.uk/id/local-authority/29UP,Tonbridge & Malling Borough Council,8/10/2022,0011044719/1,11044719, 379.47,KCS,00054200,,Estate Management Charge,Land Review,D40PS000020400,
http://statistics.data.gov.uk/id/local-authority/29UP,Tonbridge & Malling Borough Council,8/10/2022,0011044720/1,11044720, 157.19,KCS,00054200,,Estate Management Charge,Land Review,D40PS000020400,
http://statistics.data.gov.uk/id/local-authority/29UP,Tonbridge & Malling Borough Council,8/10/2022,0011044721/1,11044721, 1508.76,KCS,00054200,,Estate Management Charge,Land Review,D40PS000020400,
http://statistics.data.gov.uk/id/local-authority/29UP,Tonbridge & Malling Borough Council,8/10/2022,0011044722/1,11044722, 4967.10,KCS,00054200,,Electricity,Buildings,D21FEDD1021002,
http://statistics.data.gov.uk/id/local-authority/29UP,Tonbridge & Malling Borough Council,8/10/2022,0011044723/1,11044723, 2883.61,KCS,00054200,,Electricity,Buildings,D21FEDD6021002,
http://statistics.data.gov.uk/id/local-authority/29UP,Tonbridge & Malling Borough Council,8/10/2022,0011044724/1,11044724, 1657.89,KCS,00054200,,Electricity,Buildings,D21FEDD5021002,
http://statistics.data.gov.uk/id/local-authority/29UP,Tonbridge & Malling Borough Council,8/10/2022,0011044725/1,11044725, 226.53,Visit England Assessment Services,01230100,,Subscriptions,Tonbridge Castle Gatehouse,B40TG000047002,
http://statistics.data.gov.uk/id/local-authority/29UP,Tonbridge & Malling Borough Council,8/10/2022,0011044726/1,11044726, 1105.93,Royal Mail,00086200,,Purchases,Mailsort Stock Account,K37BR000001002,
http://statistics.data.gov.uk/id/local-authority/29UP,Tonbridge & Malling Borough Council,8/10/2022,0011044726/2,11044726, 5.95,Royal Mail,00086200,,Purchases,Mailsort Stock Account,K37BR000001002,
http://statistics.data.gov.uk/id/local-authority/29UP,Tonbridge & Malling Borough Council,8/10/2022,0011044726/3,11044726, 17.29,Royal Mail,00086200,,Purchases,Mailsort Stock Account,K37BR000001002,
http://statistics.data.gov.uk/id/local-authority/29UP,Tonbridge & Malling Borough Council,8/10/2022,0011044727/1,11044727, 3.70,Royal Mail,00086200,,Purchases,Mailsort Stock Account,K37BR000001002,
http://statistics.data.gov.uk/id/local-authority/29UP,Tonbridge & Malling Borough Council,8/10/2022,0011044728/1,11044728, 18.36,Scottish Water Business Stream Ltd,01641100,,Sewerage Charges,Buildings,D21FE000024003,
http://statistics.data.gov.uk/id/local-authority/29UP,Tonbridge & Malling Borough Council,8/10/2022,0011044729/1,11044729, 60.00,Gravesham Borough Council,01106000,,Hospitality,Mayoral & Other Member Support,D29LX000048003,
http://statistics.data.gov.uk/id/local-authority/29UP,Tonbridge & Malling Borough Council,8/10/2022,0011044730/1,11044730, 2371.95,Royal Mail,00086200,,Purchases,Mailsort Stock Account,K37BR000001002,
http://statistics.data.gov.uk/id/local-authority/29UP,Tonbridge & Malling Borough Council,8/10/2022,0011044730/2,11044730, 3.50,Royal Mail,00086200,,Purchases,Mailsort Stock Account,K37BR000001002,
http://statistics.data.gov.uk/id/local-authority/29UP,Tonbridge & Malling Borough Council,8/10/2022,0011044730/3,11044730, 2.75,Royal Mail,00086200,,Purchases,Mailsort Stock Account,K37BR000001002,
http://statistics.data.gov.uk/id/local-authority/29UP,Tonbridge & Malling Borough Council,8/10/2022,0011044731/1,11044731, 1328.64,Royal Mail,00086200,,Purchases,Mailsort Stock Account,K37BR000001002,
http://statistics.data.gov.uk/id/local-authority/29UP,Tonbridge & Malling Borough Council,8/10/2022,0011044731/2,11044731, 1.75,Royal Mail,00086200,,Purchases,Mailsort Stock Account,K37BR000001002,
http://statistics.data.gov.uk/id/local-authority/29UP,Tonbridge & Malling Borough Council,8/10/2022,0011044731/3,11044731, 6.23,Royal Mail,00086200,,Purchases,Mailsort Stock Account,K37BR000001002,
http://statistics.data.gov.uk/id/local-authority/29UP,Tonbridge & Malling Borough Council,8/10/2022,0011044732/1,11044732, 108.48,Royal Mail,00086200,,Postages - Business Reply,Electoral Registration,D31MF000045003,
http://statistics.data.gov.uk/id/local-authority/29UP,Tonbridge & Malling Borough Council,8/10/2022,0011044732/2,11044732, 18.91,Royal Mail,00086200,,Purchases,Business Reply Stock Account,K14AT000001002,
http://statistics.data.gov.uk/id/local-authority/29UP,Tonbridge & Malling Borough Council,8/10/2022,0011044733/1,11044733, 1500.07,Ricoh UK Ltd,01402300,,Maintenance - General,Printing,D22GA000040135,
http://statistics.data.gov.uk/id/local-authority/29UP,Tonbridge & Malling Borough Council,8/10/2022,0011044734/1,11044734, 243.69,Ricoh UK Ltd,01402300,,Maintenance - General,Printing,D22GA000040135,
http://statistics.data.gov.uk/id/local-authority/29UP,Tonbridge & Malling Borough Council,8/10/2022,0011044735/1,11044735, 440.00,G C Industrial Heating Services,00578100,,BRREP Response - General,Gibson Building East,M15KGP50001997,
http://statistics.data.gov.uk/id/local-authority/29UP,Tonbridge & Malling Borough Council,8/10/2022,0011044736/1,11044736, 130.00,G C Industrial Heating Services,00578100,,BRREP Response - General,Gibson Building East,M15KGP50001997,
http://statistics.data.gov.uk/id/local-authority/29UP,Tonbridge & Malling Borough Council,8/10/2022,0011044737/1,11044737, 240.00,G C Industrial Heating Services,00578100,,BRREP Servicing - boilers,Tonbridge Swimming Pool,M15HBP20001929,
http://statistics.data.gov.uk/id/local-authority/29UP,Tonbridge & Malling Borough Council,8/10/2022,0011044738/1,11044738, 60.00,Mayor of Medway's Charity,01297800,,Hospitality,Mayoral & Other Member Support,D29LX000048003,
http://statistics.data.gov.uk/id/local-authority/29UP,Tonbridge & Malling Borough Council,8/10/2022,0011044739/1,11044739, 480.15,LexisNexis UK,00016100,,Reference Books & Publications,Legal Sals&Overheads,D01ARDR0043010,
http://statistics.data.gov.uk/id/local-authority/29UP,Tonbridge & Malling Borough Council,8/10/2022,0011044739/2,11044739, 509.84,LexisNexis UK,00016100,,Reference Books & Publications,Legal Sals&Overheads,D01ARDR0043010,
http://statistics.data.gov.uk/id/local-authority/29UP,Tonbridge & Malling Borough Council,8/10/2022,0011044739/3,11044739, 7.00,LexisNexis UK,00016100,,Reference Books & Publications,Legal Sals&Overheads,D01ARDR0043010,
http://statistics.data.gov.uk/id/local-authority/29UP,Tonbridge & Malling Borough Council,8/10/2022,0011044740/1,11044740, 125.00,Francis Taylor Building,01688700,,Legal Fees,Legal Sals&Overheads,D01ARDR0044002,
http://statistics.data.gov.uk/id/local-authority/29UP,Tonbridge & Malling Borough Council,8/10/2022,0011044741/1,11044741, 1312.00,Thomson Snell & Passmore,00101700,,Legal Fees,Legal Sals&Overheads,D01ARDR0044002,
http://statistics.data.gov.uk/id/local-authority/29UP,Tonbridge & Malling Borough Council,8/10/2022,0011044742/1,11044742, 708.00,Thomson Snell & Passmore,00101700,,Legal Fees,Legal Sals&Overheads,D01ARDR0044002,
http://statistics.data.gov.uk/id/local-authority/29UP,Tonbridge & Malling Borough Council,8/10/2022,0011044743/1,11044743, 1217.80,Sellick Partnership Group Limited,01336800,,Temporary Staff,Legal Sals&Overheads,D01ARDR0011300,
http://statistics.data.gov.uk/id/local-authority/29UP,Tonbridge & Malling Borough Council,8/10/2022,0011044744/1,11044744, 666.00,BML Building Services Ltd,01505000,,BRREP Resp - Vandal / Break-In,Larkfield Leisure Centre,M15HDP50001998,110069643
http://statistics.data.gov.uk/id/local-authority/29UP,Tonbridge & Malling Borough Council,8/10/2022,0012008445/1,12008445, 35600.00,Agile Applications Ltd,01850800,,Consultancy Fees,Information Technology,D27KD000044011,410032202
http://statistics.data.gov.uk/id/local-authority/29UP,Tonbridge & Malling Borough Council,8/10/2022,0012008446/1,12008446, 16.80,Esendex Limited,01008900,,Leased Lines & Modems,Information Technology,D27KD000045011,
http://statistics.data.gov.uk/id/local-authority/29UP,Tonbridge & Malling Borough Council,8/10/2022,0012008447/1,12008447, 1855.71,NTT Cloud Communications UK Ltd,01794600,,Software Hire & Support,Information Technology,D27KD000044059,
http://statistics.data.gov.uk/id/local-authority/29UP,Tonbridge & Malling Borough Council,8/10/2022,0012008448/1,12008448, 272.36,Phoenix Software Ltd,00077400,755349015,Software Hire & Support,Information Technology,D27KD000044059,410032235
http://statistics.data.gov.uk/id/local-authority/29UP,Tonbridge & Malling Borough Council,8/10/2022,0012008449/1,12008449, 7.54,Daisy Communications,01068100,,Telephones - Rentals,General Admin Telephones,D24GT000045005,
http://statistics.data.gov.uk/id/local-authority/29UP,Tonbridge & Malling Borough Council,8/10/2022,0012008449/2,12008449, 252.91,Daisy Communications,01068100,,Telephones - Call Costs,General Admin Telephones,D24GT000045006,
http://statistics.data.gov.uk/id/local-authority/29UP,Tonbridge & Malling Borough Council,8/10/2022,0012008449/3,12008449, 84.88,Daisy Communications,01068100,,Leased Lines & Modems,Information Technology,D27KD000045011,
http://statistics.data.gov.uk/id/local-authority/29UP,Tonbridge & Malling Borough Council,8/10/2022,0012008449/4,12008449, 65.88,Daisy Communications,01068100,,Maintenance - General,Security Services Management,E09GA000040135,
http://statistics.data.gov.uk/id/local-authority/29UP,Tonbridge & Malling Borough Council,8/10/2022,0012008450/1,12008450, 17083.08,Phoenix Software Ltd,00077400,755349015,Software Hire & Support,Information Technology,D27KD000044059,
http://statistics.data.gov.uk/id/local-authority/29UP,Tonbridge & Malling Borough Council,8/10/2022,0012008451/1,12008451, 118.75,TotalMobile Limited,01725400,,Consultancy Fees,Information Technology,D27KD000044011,
http://statistics.data.gov.uk/id/local-authority/29UP,Tonbridge & Malling Borough Council,8/10/2022,0021038076/1,21038076, 317.00,Tech Medical Services Limited,01857100,,Economic Dev Inititatives,Eco Dev & Reg Gen Bus Support,D52TD000047025,210056871
http://statistics.data.gov.uk/id/local-authority/29UP,Tonbridge & Malling Borough Council,8/10/2022,0021038077/3,21038077, 179.40,TMS Protection Ltd,01744300,,Events Support,Events Development,B41TJ000044041,
http://statistics.data.gov.uk/id/local-authority/29UP,Tonbridge & Malling Borough Council,8/10/2022,0021038078/3,21038078, 550.00,SWS Countryside & Landscape,01567200,,Contract Payments,LLCP Facility Improv,P05FF000009904,
http://statistics.data.gov.uk/id/local-authority/29UP,Tonbridge & Malling Borough Council,8/10/2022,0021038079/1,21038079, 532.70,Glasdon U.K. Ltd,00039200,,Maintenance of Grounds,Open Spaces & Amenity Areas,B22LE000020402,210056835
http://statistics.data.gov.uk/id/local-authority/29UP,Tonbridge & Malling Borough Council,8/10/2022,0021038080/1,21038080, 3500.00,SWS Countryside & Landscape,01567200,,Health & Safety - Trees,Countryside/Woodland Mgt,B22LG000044045,210056836
http://statistics.data.gov.uk/id/local-authority/29UP,Tonbridge & Malling Borough Council,8/10/2022,0021038080/2,21038080, 250.00,SWS Countryside & Landscape,01567200,,Health & Safety - Trees,Countryside/Woodland Mgt,B22LG000044045,210056836
http://statistics.data.gov.uk/id/local-authority/29UP,Tonbridge & Malling Borough Council,8/10/2022,0021038081/1,21038081, 350.00,SWS Countryside & Landscape,01567200,,Maintenance of Grounds,Open Spaces & Amenity Areas,B22LE000020402,210056798
http://statistics.data.gov.uk/id/local-authority/29UP,Tonbridge & Malling Borough Council,8/10/2022,0021038082/1,21038082, 179.98,SWS Countryside & Landscape,01567200,,Maintenance of Grounds,Countryside/Woodland Mgt,B22LG000020402,210056744
http://statistics.data.gov.uk/id/local-authority/29UP,Tonbridge & Malling Borough Council,8/10/2022,0021038083/1,21038083, 1200.00,SWS Countryside & Landscape,01567200,,Health & Safety - Trees,Countryside/Woodland Mgt,B22LG000044045,210056720
http://statistics.data.gov.uk/id/local-authority/29UP,Tonbridge & Malling Borough Council,8/10/2022,0021038084/1,21038084, 450.00,SWS Countryside & Landscape,01567200,,Health & Safety - Trees,Countryside/Woodland Mgt,B22LG000044045,210056822
http://statistics.data.gov.uk/id/local-authority/29UP,Tonbridge & Malling Borough Council,8/10/2022,0021038085/1,21038085, 800.00,SWS Countryside & Landscape,01567200,,Health & Safety - Trees,Countryside/Woodland Mgt,B22LG000044045,210056735
http://statistics.data.gov.uk/id/local-authority/29UP,Tonbridge & Malling Borough Council,8/10/2022,0021038086/1,21038086, 750.00,SWS Countryside & Landscape,01567200,,Maintenance of Grounds,Open Spaces & Amenity Areas,B22LE000020402,210056808
http://statistics.data.gov.uk/id/local-authority/29UP,Tonbridge & Malling Borough Council,8/10/2022,0021038087/3,21038087, 120.00,SWS Countryside & Landscape,01567200,,Health & Safety - Trees,Countryside/Woodland Mgt,B22LG000044045,
http://statistics.data.gov.uk/id/local-authority/29UP,Tonbridge & Malling Borough Council,8/10/2022,0021038088/3,21038088, 200.00,SWS Countryside & Landscape,01567200,,Health & Safety - Trees,Countryside/Woodland Mgt,B22LG000044045,
http://statistics.data.gov.uk/id/local-authority/29UP,Tonbridge & Malling Borough Council,8/10/2022,0021038090/1,21038090, 200.00,SWS Countryside & Landscape,01567200,,Maintenance of Grounds,Open Spaces & Amenity Areas,B22LE000020402,210056724
http://statistics.data.gov.uk/id/local-authority/29UP,Tonbridge & Malling Borough Council,8/10/2022,0021038091/3,21038091, 180.00,SWS Countryside & Landscape,01567200,,Health & Safety - Trees,Countryside/Woodland Mgt,B22LG000044045,
http://statistics.data.gov.uk/id/local-authority/29UP,Tonbridge & Malling Borough Council,8/10/2022,0021038092/1,21038092, 74.71,G.L. & R.G. Bourne,00737500,,Gates / Security,Haysden Country Park,B22LC000044017,210056722
http://statistics.data.gov.uk/id/local-authority/29UP,Tonbridge & Malling Borough Council,8/10/2022,0021038093/1,21038093, 40.00,G.L. & R.G. Bourne,00737500,,Maintenance of Grounds,Haysden Country Park,B22LC000020402,210056723
http://statistics.data.gov.uk/id/local-authority/29UP,Tonbridge & Malling Borough Council,8/10/2022,0021038094/1,21038094, 544.98,G.L. & R.G. Bourne,00737500,,Gates / Security,Haysden Country Park,B22LC000044017,210056722
http://statistics.data.gov.uk/id/local-authority/29UP,Tonbridge & Malling Borough Council,8/10/2022,0021038095/3,21038095, 11.25,G.L. & R.G. Bourne,00737500,,Maintenance of Grounds,Haysden Country Park,B22LC000020402,
http://statistics.data.gov.uk/id/local-authority/29UP,Tonbridge & Malling Borough Council,8/10/2022,0021038096/1,21038096, 135.00,Weddle and Co,00714900,,Maintenance of Grounds,Open Spaces & Amenity Areas,B22LE000020402,210056889
http://statistics.data.gov.uk/id/local-authority/29UP,Tonbridge & Malling Borough Council,8/10/2022,0021038097/3,21038097, 36.67,B&Q/Screwfix Direct(TradeUKAccount),00141300,,Purchases,Open Spaces & Amenity Areas,B22LE000040101,
http://statistics.data.gov.uk/id/local-authority/29UP,Tonbridge & Malling Borough Council,8/10/2022,0021038099/1,21038099, 505.00,Loxton Installations Ltd,01278800,,Events Support,Events Development,B41TJ000044041,210056886
http://statistics.data.gov.uk/id/local-authority/29UP,Tonbridge & Malling Borough Council,8/10/2022,0022026924/1,22026924, 1242.46,G2 Recruitment Solutions,01786000,,Temporary Staff,Env Hlth & Hsg Sals&Overheads,D01AVDV0711300,
http://statistics.data.gov.uk/id/local-authority/29UP,Tonbridge & Malling Borough Council,8/10/2022,0022026925/1,22026925, 38238.00,Paramount Independent Property Suppliers,01595300,,Temporary Accommodation,Homelessness,C01AA000044051,
http://statistics.data.gov.uk/id/local-authority/29UP,Tonbridge & Malling Borough Council,8/10/2022,0022026926/3,22026926, 50.00,Monitor Pest Control Ltd,01476700,,Other Expenses,Pest Control,H24SE000048010,
http://statistics.data.gov.uk/id/local-authority/29UP,Tonbridge & Malling Borough Council,8/10/2022,0022026927/1,22026927, 492.00,Scarbutts Printers,00088000,656830513,Publicity & Promotion,Dry Recycling,H34SRZ99944217,220003253
http://statistics.data.gov.uk/id/local-authority/29UP,Tonbridge & Malling Borough Council,8/10/2022,0022026928/1,22026928, 492.00,Scarbutts Printers,00088000,656830513,Publicity & Promotion,Dry Recycling,H34SRZ99944217,220003253
http://statistics.data.gov.uk/id/local-authority/29UP,Tonbridge & Malling Borough Council,8/10/2022,0022026929/1,22026929, 374.00,Scarbutts Printers,00088000,656830513,Publicity & Promotion,Refuse Collection,H20SAZ99944217,220003254
http://statistics.data.gov.uk/id/local-authority/29UP,Tonbridge & Malling Borough Council,8/10/2022,0022026930/1,22026930, 123.75,Sevenoaks District Council,00089300,,Healthy Living Initiatives,Public Health - Healthy Living,H40SYVH0048145,220003220
http://statistics.data.gov.uk/id/local-authority/29UP,Tonbridge & Malling Borough Council,8/10/2022,0022026931/1,22026931, 9610.00,Less Homeless Ltd,01489300,,Temporary Accommodation,Homelessness,C01AA000044051,
http://statistics.data.gov.uk/id/local-authority/29UP,Tonbridge & Malling Borough Council,8/10/2022,0022026932/1,22026932, 464.16,South East Water Ltd,00572200,,Water Charges (Metered),Homelessness,C01AAMAUN24001,
http://statistics.data.gov.uk/id/local-authority/29UP,Tonbridge & Malling Borough Council,8/10/2022,0022026933/1,22026933, 408.00,Town & Country Housing Group,01385400,,Countywide DFG Project,Private Sector Housing Renewal,C03BD000044031,
http://statistics.data.gov.uk/id/local-authority/29UP,Tonbridge & Malling Borough Council,8/10/2022,0022026934/1,22026934, 954.00,Town & Country Housing Group,01385400,,Other Expenses,Housing Assistance,P03AD000009908,
http://statistics.data.gov.uk/id/local-authority/29UP,Tonbridge & Malling Borough Council,8/10/2022,0022026935/1,22026935, 400.00,Arnold & Court Ltd,01411300,,Maintenance of Grounds,Sports Grounds,B13ETCARP20402,210056833
http://statistics.data.gov.uk/id/local-authority/29UP,Tonbridge & Malling Borough Council,8/10/2022,0022026936/1,22026936, 450.00,Arnold & Court Ltd,01411300,,Maintenance of Grounds,Haysden Country Park,B22LCCARP20402,210056832
http://statistics.data.gov.uk/id/local-authority/29UP,Tonbridge & Malling Borough Council,8/10/2022,0022026937/1,22026937, 600.00,Arnold & Court Ltd,01411300,,Contract Payments,TRSG Riverside Rivetment,P05DD000009904,210056826
http://statistics.data.gov.uk/id/local-authority/29UP,Tonbridge & Malling Borough Council,8/10/2022,0022026938/1,22026938, 200.00,Arnold & Court Ltd,01411300,,Contract Payments,TRSG Riverside Rivetment,P05DD000009904,210056826
http://statistics.data.gov.uk/id/local-authority/29UP,Tonbridge & Malling Borough Council,8/10/2022,0022026939/1,22026939, 200.00,Arnold & Court Ltd,01411300,,Contract Payments,TRSG Riverside Rivetment,P05DD000009904,210056826
http://statistics.data.gov.uk/id/local-authority/29UP,Tonbridge & Malling Borough Council,8/10/2022,0022026940/1,22026940, 500.00,Arnold & Court Ltd,01411300,,Events Support,Events Development,B41TJ000044041,210056821
http://statistics.data.gov.uk/id/local-authority/29UP,Tonbridge & Malling Borough Council,8/10/2022,0022026940/2,22026940, 200.00,Arnold & Court Ltd,01411300,,Events Support,Events Development,B41TJ000044041,210056821
http://statistics.data.gov.uk/id/local-authority/29UP,Tonbridge & Malling Borough Council,8/10/2022,0022026941/1,22026941, 4375.00,Arnold & Court Ltd,01411300,,Bridge Maintenance,Open Spaces & Amenity Areas,B22LE000020505,210056844
http://statistics.data.gov.uk/id/local-authority/29UP,Tonbridge & Malling Borough Council,8/10/2022,0022026941/2,22026941, 965.00,Arnold & Court Ltd,01411300,,Bridge Maintenance,Open Spaces & Amenity Areas,B22LE000020505,210056844
http://statistics.data.gov.uk/id/local-authority/29UP,Tonbridge & Malling Borough Council,8/10/2022,0022026942/1,22026942, 220.00,Arnold & Court Ltd,01411300,,Maintenance of Grounds,Sports Grounds,B13ETCARP20402,310042840
http://statistics.data.gov.uk/id/local-authority/29UP,Tonbridge & Malling Borough Council,8/10/2022,0022026942/2,22026942, 220.00,Arnold & Court Ltd,01411300,,Premises Repairs & Maintenance,Parking Off-Street,E10HA000020601,310042840
http://statistics.data.gov.uk/id/local-authority/29UP,Tonbridge & Malling Borough Council,8/10/2022,0022026943/3,22026943, 12335.31,Urbaser LTD,01718800,,Contract Payments,Refuse Collection,H20SA000054001,
http://statistics.data.gov.uk/id/local-authority/29UP,Tonbridge & Malling Borough Council,8/10/2022,0022026943/4,22026943, 13547.29,Urbaser LTD,01718800,,Contract Payments,Street Scene,H23SD000054001,
http://statistics.data.gov.uk/id/local-authority/29UP,Tonbridge & Malling Borough Council,8/10/2022,0022026943/5,22026943, 1473.75,Urbaser LTD,01718800,,Contract Payments,Dry Recycling,H34SR000054001,
http://statistics.data.gov.uk/id/local-authority/29UP,Tonbridge & Malling Borough Council,8/10/2022,0022026943/6,22026943, 288.59,Urbaser LTD,01718800,,Contract Payments,Food Recycling,H34SS000054001,
http://statistics.data.gov.uk/id/local-authority/29UP,Tonbridge & Malling Borough Council,8/10/2022,0022026943/7,22026943, 11913.38,Urbaser LTD,01718800,,Contract Payments,Garden Waste Recycling,H34ST000054001,
http://statistics.data.gov.uk/id/local-authority/29UP,Tonbridge & Malling Borough Council,8/10/2022,0022026944/3,22026944, 10668.65,Urbaser LTD,01718800,,Contract Payments,Refuse Collection,H20SA000054001,
http://statistics.data.gov.uk/id/local-authority/29UP,Tonbridge & Malling Borough Council,8/10/2022,0022026944/4,22026944, 12323.09,Urbaser LTD,01718800,,Contract Payments,Street Scene,H23SD000054001,
http://statistics.data.gov.uk/id/local-authority/29UP,Tonbridge & Malling Borough Council,8/10/2022,0022026944/5,22026944, 1646.82,Urbaser LTD,01718800,,Contract Payments,Dry Recycling,H34SR000054001,
http://statistics.data.gov.uk/id/local-authority/29UP,Tonbridge & Malling Borough Council,8/10/2022,0022026944/6,22026944, 307.83,Urbaser LTD,01718800,,Contract Payments,Food Recycling,H34SS000054001,
http://statistics.data.gov.uk/id/local-authority/29UP,Tonbridge & Malling Borough Council,8/10/2022,0022026944/7,22026944, 11884.44,Urbaser LTD,01718800,,Contract Payments,Garden Waste Recycling,H34ST000054001,
http://statistics.data.gov.uk/id/local-authority/29UP,Tonbridge & Malling Borough Council,8/10/2022,0022026945/1,22026945, 988.25,Vivid Resourcing,01773700,,Temporary Staff,Env Hlth & Hsg Sals&Overheads,D01AVDV0711300,
http://statistics.data.gov.uk/id/local-authority/29UP,Tonbridge & Malling Borough Council,8/10/2022,0022026946/1,22026946, 3782.00,Simply Rented Ltd ,01691400,,Temporary Accommodation,Homelessness,C01AA000044051,
http://statistics.data.gov.uk/id/local-authority/29UP,Tonbridge & Malling Borough Council,8/10/2022,0022026947/1,22026947, 2077.00,1st  Steps Housing Kent,01716100,,Temporary Accommodation,Homelessness,C01AA000044051,
http://statistics.data.gov.uk/id/local-authority/29UP,Tonbridge & Malling Borough Council,8/10/2022,0022026948/1,22026948, 6054.00,Premier Property Providers,01785400,,Temporary Accommodation,Homelessness,C01AA000044051,
http://statistics.data.gov.uk/id/local-authority/29UP,Tonbridge & Malling Borough Council,8/10/2022,0031018818/1,31018818, 590.10,Patrol,01189800,,Adjudication & Enforcement Ser,Parking Off-Street,E10HA000044230,
http://statistics.data.gov.uk/id/local-authority/29UP,Tonbridge & Malling Borough Council,8/10/2022,0031018819/1,31018819, 498.50,SKF Contractors Ltd,00092000,,Premises Repairs & Maintenance,Parking Off-Street,E10HA000020601,320003439
http://statistics.data.gov.uk/id/local-authority/29UP,Tonbridge & Malling Borough Council,8/10/2022,0031018820/1,31018820, 508.50,SKF Contractors Ltd,00092000,,Maintenance of Grounds,Countryside/Woodland Mgt,B22LGCARP20402,310042862
http://statistics.data.gov.uk/id/local-authority/29UP,Tonbridge & Malling Borough Council,8/10/2022,0031018821/1,31018821, 450.00,Wellden Land Surveys,01410600,,Professional Fees,Boro Drainage & Land Drainage,E20MA000044001,310042817
http://statistics.data.gov.uk/id/local-authority/29UP,Tonbridge & Malling Borough Council,8/10/2022,0031018822/1,31018822, 212.00,Arnold & Court Ltd,01411300,,Repair & Mtce of Fixed Plant,Boro Highways & Emergency Oper,E01AA000020501,310042831
http://statistics.data.gov.uk/id/local-authority/29UP,Tonbridge & Malling Borough Council,8/10/2022,0031018823/1,31018823, 268.00,Arnold & Court Ltd,01411300,,Maintenance of Grounds,Haysden Country Park,B22LCCARP20402,210056806
http://statistics.data.gov.uk/id/local-authority/29UP,Tonbridge & Malling Borough Council,8/10/2022,0031018824/1,31018824, 400.00,Arnold & Court Ltd,01411300,,Car Parking Action Plan,Parking On-Street,E10HD000020801,210056862
http://statistics.data.gov.uk/id/local-authority/29UP,Tonbridge & Malling Borough Council,8/10/2022,0031018825/1,31018825, 160.48,Arnold & Court Ltd,01411300,,Premises Repairs & Maintenance,Parking Off-Street,E10HA000020601,310042856
http://statistics.data.gov.uk/id/local-authority/29UP,Tonbridge & Malling Borough Council,8/10/2022,0031018825/2,31018825, 155.76,Arnold & Court Ltd,01411300,,Premises Repairs & Maintenance,Parking Off-Street,E10HAE00620601,310042856
http://statistics.data.gov.uk/id/local-authority/29UP,Tonbridge & Malling Borough Council,8/10/2022,0031018825/3,31018825, 155.76,Arnold & Court Ltd,01411300,,Contract Payments,Electric Veh Charging Points,P01EA000009904,310042856
http://statistics.data.gov.uk/id/local-authority/29UP,Tonbridge & Malling Borough Council,8/10/2022,0032009698/3,32009698, 1892.00,The Oyster Partnership,01196400,,Temporary Staff,Planning Sals&Overheads,D01AJDJ0111300,
http://statistics.data.gov.uk/id/local-authority/29UP,Tonbridge & Malling Borough Council,8/10/2022,0032009699/3,32009699, 1600.34,The Oyster Partnership,01196400,,Temporary Staff,Planning Sals&Overheads,D01AJDJ0111300,
http://statistics.data.gov.uk/id/local-authority/29UP,Tonbridge & Malling Borough Council,8/10/2022,0032009705/1,32009705, 1250.00,Tunbridge Wells Borough Council,00844600,,Temporary Staff,Planning Sals&Overheads,D01AJDJ0311300,
http://statistics.data.gov.uk/id/local-authority/29UP,Tonbridge & Malling Borough Council,8/10/2022,0032009706/1,32009706, 1250.00,Tunbridge Wells Borough Council,00844600,,Temporary Staff,Planning Sals&Overheads,D01AJDJ0311300,
http://statistics.data.gov.uk/id/local-authority/29UP,Tonbridge & Malling Borough Council,8/10/2022,0032009707/1,32009707, 3188.61,G2 Recruitment Solutions,01786000,,Temporary Staff,Planning Sals&Overheads,D01AJDJ0111300,
http://statistics.data.gov.uk/id/local-authority/29UP,Tonbridge & Malling Borough Council,8/10/2022,0032009708/1,32009708, 2590.00,G2 Recruitment Solutions,01786000,,Temporary Staff,Planning Sals&Overheads,D01AJDJ0111300,
http://statistics.data.gov.uk/id/local-authority/29UP,Tonbridge & Malling Borough Council,8/10/2022,0032009709/1,32009709, 1268.50,Carrington West Limited,01844500,,Temporary Staff,Planning Sals&Overheads,D01AJDJ0111300,
http://statistics.data.gov.uk/id/local-authority/29UP,Tonbridge & Malling Borough Council,8/10/2022,0032009710/3,32009710, 165.00,Seymour & Saunders Electrical Ltd,01500300,467735604,Competent Persons Schemes,Building Control,A01AD000048116,
http://statistics.data.gov.uk/id/local-authority/29UP,Tonbridge & Malling Borough Council,8/10/2022,0032009711/1,32009711, 2500.00,Bruton Knowles,01843000,,Professional Fees,Development Management,A01AB000044001,320003403
http://statistics.data.gov.uk/id/local-authority/29UP,Tonbridge & Malling Borough Council,8/10/2022,0032009711/2,32009711, 2456.50,REDACTED PERSONAL DATA,01843000,,Professional Fees,Development Management,A01AB000044001,320003403
http://statistics.data.gov.uk/id/local-authority/29UP,Tonbridge & Malling Borough Council,8/10/2022,0032009712/1,32009712, 278.46,KM Media Group Ltd,00053900,,Advertising General,Development Management,A01ABZ99944216,320003429
http://statistics.data.gov.uk/id/local-authority/29UP,Tonbridge & Malling Borough Council,8/10/2022,0041034578/1,41034578, 80.00,WorldPay Ltd,01402000,991280207,Credit Card Commission,Banking Arrangements,D43QK000044082,
http://statistics.data.gov.uk/id/local-authority/29UP,Tonbridge & Malling Borough Council,8/10/2022,0041034578/2,41034578, 53.28,WorldPay Ltd,01402000,991280207,Credit Card Commission,Banking Arrangements,D43QK000044082,
http://statistics.data.gov.uk/id/local-authority/29UP,Tonbridge & Malling Borough Council,8/10/2022,0041034578/3,41034578, 0.48,WorldPay Ltd,01402000,991280207,Credit Card Commission,Banking Arrangements,D43QK000044082,
http://statistics.data.gov.uk/id/local-authority/29UP,Tonbridge & Malling Borough Council,8/10/2022,0041034579/1,41034579, 80.00,WorldPay Ltd,01402000,991280207,Credit Card Commission,Banking Arrangements,D43QK000044082,
http://statistics.data.gov.uk/id/local-authority/29UP,Tonbridge & Malling Borough Council,8/10/2022,0041034579/2,41034579, 57.84,WorldPay Ltd,01402000,991280207,Credit Card Commission,Banking Arrangements,D43QK000044082,
http://statistics.data.gov.uk/id/local-authority/29UP,Tonbridge & Malling Borough Council,8/10/2022,0041034579/3,41034579, 0.48,WorldPay Ltd,01402000,991280207,Credit Card Commission,Banking Arrangements,D43QK000044082,
http://statistics.data.gov.uk/id/local-authority/29UP,Tonbridge & Malling Borough Council,8/10/2022,0041034580/1,41034580, 80.00,WorldPay Ltd,01402000,991280207,Credit Card Commission,Banking Arrangements,D43QK000044082,
http://statistics.data.gov.uk/id/local-authority/29UP,Tonbridge & Malling Borough Council,8/10/2022,0041034580/2,41034580, 166.48,WorldPay Ltd,01402000,991280207,Credit Card Commission,Banking Arrangements,D43QK000044082,
http://statistics.data.gov.uk/id/local-authority/29UP,Tonbridge & Malling Borough Council,8/10/2022,0041034582/1,41034582, 600.00,Airey Consultancy Services Ltd,01760800,,Consultancy Fees,Local Revenue & NNDR Collect,D41QACV1944011,
http://statistics.data.gov.uk/id/local-authority/29UP,Tonbridge & Malling Borough Council,8/10/2022,0041034582/2,41034582, 500.00,Airey Consultancy Services Ltd,01760800,,Consultancy Fees,Local Revenue & NNDR Collect,D41QACV1944011,
http://statistics.data.gov.uk/id/local-authority/29UP,Tonbridge & Malling Borough Council,8/10/2022,0041034582/3,41034582, 500.00,Airey Consultancy Services Ltd,01760800,,Consultancy Fees,Local Revenue & NNDR Collect,D41QACV1944011,
http://statistics.data.gov.uk/id/local-authority/29UP,Tonbridge & Malling Borough Council,8/10/2022,0041034583/1,41034583, 250.47,Morgan Hunt UK Ltd,01086900,,Temporary Staff,Finance Sals&Overheads,D01AFDF1111300,
http://statistics.data.gov.uk/id/local-authority/29UP,Tonbridge & Malling Borough Council,8/10/2022,0041034584/1,41034584, 866.25,Morgan Hunt UK Ltd,01086900,,Temporary Staff,Finance Sals&Overheads,D01AFDF1111300,
http://statistics.data.gov.uk/id/local-authority/29UP,Tonbridge & Malling Borough Council,8/10/2022,0041034585/1,41034585, 1071.14,The Oyster Partnership,01196400,,Temporary Staff,Finance Sals&Overheads,D01AFDF1111300,
http://statistics.data.gov.uk/id/local-authority/29UP,Tonbridge & Malling Borough Council,8/10/2022,0041034586/1,41034586, 98.22,Adelante Software Limited,01393800,812115871,Credit Card Commission,Banking Arrangements,D43QK000044082,
http://statistics.data.gov.uk/id/local-authority/29UP,Tonbridge & Malling Borough Council,8/10/2022,0041034587/1,41034587, 2273.76,Rundle & Co Ltd,00087200,,Bailiffs Commission,Local Revenue & NNDR Collect,D41QA000044075,
http://statistics.data.gov.uk/id/local-authority/29UP,Tonbridge & Malling Borough Council,8/10/2022,0041034588/1,41034588, 16.61,Rundle & Co Ltd,00087200,,Bailiffs Commission,Local Revenue & NNDR Collect,D41QA000044075,
http://statistics.data.gov.uk/id/local-authority/29UP,Tonbridge & Malling Borough Council,8/10/2022,0041034589/1,41034589, 695.00,Airey Consultancy Services Ltd,01760800,,Temporary Staff,Finance Sals&Overheads,D01AFDF1111300,
http://statistics.data.gov.uk/id/local-authority/29UP,Tonbridge & Malling Borough Council,8/10/2022,0041034592/1,41034592, 350.00,Kevin & Victoria Gilmour,01860000,,Other Expenses,Ukrainian Refugee Assistance,D54UA000048010,
http://statistics.data.gov.uk/id/local-authority/29UP,Tonbridge & Malling Borough Council,8/12/2022,0041034597/1,41034597, 8485.00,Link Asset Services,01039400,,Professional Fees,Treasury Management,D43QT000044001,
http://statistics.data.gov.uk/id/local-authority/29UP,Tonbridge & Malling Borough Council,8/12/2022,0041034598/1,41034598, 692.00,REDACTED PERSONAL DATA,01860300,,Basic Pay,Env Hlth & Hsg Sals&Overheads,D01AVDV0711110,
http://statistics.data.gov.uk/id/local-authority/29UP,Tonbridge & Malling Borough Council,8/16/2022,0041034618/1,41034618, 37996.00,Post Office Ltd - Via AllPay,01855500,,Energy Rebate Scheme Disc,Council Tax Support,D42QFFUEL48104,
http://statistics.data.gov.uk/id/local-authority/29UP,Tonbridge & Malling Borough Council,8/17/2022,0011044745/1,11044745, 109.00,BML Building Services Ltd,01505000,,BRREP Servicing - CCTV,Larkfield Leisure Centre,M15HDP20001952,110069662
http://statistics.data.gov.uk/id/local-authority/29UP,Tonbridge & Malling Borough Council,8/17/2022,0011044746/1,11044746, 990.00,Comfort Controls  (Service) Limited,01226700,,BRREP BMS System Mntce/Upgrade,Larkfield Leisure Centre,M15HDP20001912,110069337
http://statistics.data.gov.uk/id/local-authority/29UP,Tonbridge & Malling Borough Council,8/17/2022,0011044747/1,11044747, 574.00,BML Building Services Ltd,01505000,,BRREP General Maintenance,PC - General,M15JAP10001900,110069589
http://statistics.data.gov.uk/id/local-authority/29UP,Tonbridge & Malling Borough Council,8/17/2022,0011044748/1,11044748, 678.00,Loxton Installations Ltd,01278800,,BRREP Serv Internal Lighting,Leis Man Poult Wood Golf Centr,M15HEP20001957,110069622
http://statistics.data.gov.uk/id/local-authority/29UP,Tonbridge & Malling Borough Council,8/17/2022,0011044749/1,11044749, 336.00,Hadene Engineering Ltd,00041900,,BRREP Gas Soundness Test,Larkfield Leisure Centre,M15HDP30001994,110069566
http://statistics.data.gov.uk/id/local-authority/29UP,Tonbridge & Malling Borough Council,8/17/2022,0011044751/1,11044751, 155.00,Coolburn Air Conditioning Ltd,01137900,,BRREP Servicing - boilers,Larkfield Leisure Centre,M15HDP20001929,110069029
http://statistics.data.gov.uk/id/local-authority/29UP,Tonbridge & Malling Borough Council,8/17/2022,0011044752/1,11044752, 576.00,Hadene Engineering Ltd,00041900,,BRREP Gas Soundness Test,Gibson Building West,M15KBP30001994,110069670
http://statistics.data.gov.uk/id/local-authority/29UP,Tonbridge & Malling Borough Council,8/17/2022,0011044753/1,11044753, 1270.86,ProMinent Fluid Controls (UK) Ltd,00080800,,BRREP Plant renewals,Larkfield Leisure Centre,M15HDP20001909,110069681
http://statistics.data.gov.uk/id/local-authority/29UP,Tonbridge & Malling Borough Council,8/17/2022,0011044754/1,11044754, 355.00,Automated Limited,00007000,,BRREP Serv Internal Lighting,Angel Centre,M15HAP20001957,110069687
http://statistics.data.gov.uk/id/local-authority/29UP,Tonbridge & Malling Borough Council,8/17/2022,0011044754/2,11044754, 236.00,Automated Limited,00007000,,BRREP Serv Internal Lighting,Leis Man Poult Wood Golf Centr,M15HEP20001957,110069687
http://statistics.data.gov.uk/id/local-authority/29UP,Tonbridge & Malling Borough Council,8/17/2022,0011044755/1,11044755, 405.00,Automated Limited,00007000,,BRREP Serv Internal Lighting,Tonbridge Swimming Pool,M15HBP20001957,110069688
http://statistics.data.gov.uk/id/local-authority/29UP,Tonbridge & Malling Borough Council,8/17/2022,0011044756/1,11044756, 2751.75,Broadwater Technologies,01534500,,BRREP Plant renewals,Tonbridge Swimming Pool,M15HBP20001909,110069700
http://statistics.data.gov.uk/id/local-authority/29UP,Tonbridge & Malling Borough Council,8/17/2022,0011044757/1,11044757, 7150.00,Security & Electronic Solutions Ltd,01379500,,Other Expenses,Homeless Accommodation,P03AX000009908,110069599
http://statistics.data.gov.uk/id/local-authority/29UP,Tonbridge & Malling Borough Council,8/17/2022,0011044758/1,11044758, 12.45,KCS,00054200,,Purchases,Central Stationery Stock A/c,K03AD000001002,110069686
http://statistics.data.gov.uk/id/local-authority/29UP,Tonbridge & Malling Borough Council,8/17/2022,0011044759/1,11044759, 1129.00,SAS Energy,01856200,,BRREP General Maintenance,Larkfield Leisure Centre,M15HDP10001900,110069656
http://statistics.data.gov.uk/id/local-authority/29UP,Tonbridge & Malling Borough Council,8/17/2022,0011044760/3,11044760, 1862.67,GSF SANDYLIGHT LTD,01705300,,Temporary Staff,Admin & Prop Sals&Overheads,D01AADA0511300,
http://statistics.data.gov.uk/id/local-authority/29UP,Tonbridge & Malling Borough Council,8/17/2022,0011044761/3,11044761, 308.00,BML Building Services Ltd,01505000,,BRREP Response - General,Leybourne Lakes Country Park,M15HLP50001997,
http://statistics.data.gov.uk/id/local-authority/29UP,Tonbridge & Malling Borough Council,8/17/2022,0011044762/3,11044762, 95.00,Security & Electronic Solutions Ltd,01379500,,BRREP Servicing - CCTV,Larkfield Leisure Centre,M15HDP20001952,
http://statistics.data.gov.uk/id/local-authority/29UP,Tonbridge & Malling Borough Council,8/17/2022,0011044763/3,11044763, 79.00,BML Building Services Ltd,01505000,,BRREP Response - General,Pleasure Grounds & Open Spaces,M15HHP50001997,
http://statistics.data.gov.uk/id/local-authority/29UP,Tonbridge & Malling Borough Council,8/17/2022,0011044764/3,11044764, 167.50,K T Fire Protection Ltd,00057000,,BRREP Servicing - FireAlarmSys,Larkfield Leisure Centre,M15HDP20001937,
http://statistics.data.gov.uk/id/local-authority/29UP,Tonbridge & Malling Borough Council,8/17/2022,0011044765/3,11044765, 65.00,Speedy Services (Speedy Hire),01840400,,BRREP General Maintenance,Angel Centre,M15HAP10001900,
http://statistics.data.gov.uk/id/local-authority/29UP,Tonbridge & Malling Borough Council,8/17/2022,0011044766/3,11044766, 400.00,G C Industrial Heating Services,00578100,,BRREP Response - General,Larkfield Leisure Centre,M15HDP50001997,
http://statistics.data.gov.uk/id/local-authority/29UP,Tonbridge & Malling Borough Council,8/17/2022,0011044767/3,11044767, 610.00,G C Industrial Heating Services,00578100,,BRREP Response - General,Gibson Building East,M15KGP50001997,
http://statistics.data.gov.uk/id/local-authority/29UP,Tonbridge & Malling Borough Council,8/17/2022,0011044768/3,11044768, 589.41,KH Recruitment Ltd,01738900,,Temporary Staff,Personnel Sals&Overheads,D01ABDB0311300,
http://statistics.data.gov.uk/id/local-authority/29UP,Tonbridge & Malling Borough Council,8/17/2022,0011044769/3,11044769, 395.13,TwoFold Limited,00518000,,Maintenance - General,Electoral Registration,D31MF000040135,
http://statistics.data.gov.uk/id/local-authority/29UP,Tonbridge & Malling Borough Council,8/17/2022,0011044770/1,11044770, 5000.00,Hilden Park Golf and Leisure,01860200,,Economic Development & Regen,Eco Dev & Reg Gen Bus Support,D52TD000047027,
http://statistics.data.gov.uk/id/local-authority/29UP,Tonbridge & Malling Borough Council,8/17/2022,0011044771/3,11044771, 1926.46,Royal Mail,00086200,,Purchases,Mailsort Stock Account,K37BR000001002,
http://statistics.data.gov.uk/id/local-authority/29UP,Tonbridge & Malling Borough Council,8/17/2022,0011044771/4,11044771, 4.20,Royal Mail,00086200,,Purchases,Mailsort Stock Account,K37BR000001002,
http://statistics.data.gov.uk/id/local-authority/29UP,Tonbridge & Malling Borough Council,8/17/2022,0011044771/5,11044771, 6.72,Royal Mail,00086200,,Purchases,Mailsort Stock Account,K37BR000001002,
http://statistics.data.gov.uk/id/local-authority/29UP,Tonbridge & Malling Borough Council,8/17/2022,0011044772/1,11044772, 137.26,Scottish Water Business Stream Ltd,01641100,,Estate Management Charge,Land Review,D40PS000020400,
http://statistics.data.gov.uk/id/local-authority/29UP,Tonbridge & Malling Borough Council,8/17/2022,0011044773/1,11044773, 43.78,Scottish Water Business Stream Ltd,01641100,,Estate Management Charge,Land Review,D40PS000020400,
http://statistics.data.gov.uk/id/local-authority/29UP,Tonbridge & Malling Borough Council,8/17/2022,0011044774/3,11044774, 539.56,KCS,00054200,,Electricity,Buildings,D21FEDD6021002,
http://statistics.data.gov.uk/id/local-authority/29UP,Tonbridge & Malling Borough Council,8/17/2022,0011044775/3,11044775, 553.04,KCS,00054200,,Electricity,Buildings,D21FEDD6021002,
http://statistics.data.gov.uk/id/local-authority/29UP,Tonbridge & Malling Borough Council,8/17/2022,0011044776/3,11044776, 86.28,Atlas Facilities Managment Limited ,01075900,,Miscellaneous Services,Cleaning & Security,D21FDDD6044015,
http://statistics.data.gov.uk/id/local-authority/29UP,Tonbridge & Malling Borough Council,8/17/2022,0011044777/3,11044777, 43.14,Atlas Facilities Managment Limited ,01075900,,Miscellaneous Services,Cleaning & Security,D21FDDD5044015,
http://statistics.data.gov.uk/id/local-authority/29UP,Tonbridge & Malling Borough Council,8/17/2022,0011044778/1,11044778, 6000.00,REDACTED PERSONAL DATA,01852600,,BRREP Hard paving surface rep,Shops & Maisonettes,M15NAP20001946,
http://statistics.data.gov.uk/id/local-authority/29UP,Tonbridge & Malling Borough Council,8/17/2022,0012008453/10,12008453, 3.00,O2 UK Ltd,01268000,,Mobile Telephones,Technical Sals&Overheads,D01AEDE0045013,
http://statistics.data.gov.uk/id/local-authority/29UP,Tonbridge & Malling Borough Council,8/17/2022,0012008453/11,12008453, 6.00,O2 UK Ltd,01268000,,Mobile Telephones,Technical Sals&Overheads,D01AEDE0145013,
http://statistics.data.gov.uk/id/local-authority/29UP,Tonbridge & Malling Borough Council,8/17/2022,0012008453/12,12008453, 11.40,O2 UK Ltd,01268000,,Mobile Telephones,Technical Sals&Overheads,D01AEDE0245013,
http://statistics.data.gov.uk/id/local-authority/29UP,Tonbridge & Malling Borough Council,8/17/2022,0012008453/13,12008453, 42.28,O2 UK Ltd,01268000,,Mobile Telephones,Technical Sals&Overheads,D01AEDE0445013,
http://statistics.data.gov.uk/id/local-authority/29UP,Tonbridge & Malling Borough Council,8/17/2022,0012008453/14,12008453, 3.00,O2 UK Ltd,01268000,,Mobile Telephones,Technical Sals&Overheads,D01AEDE0545013,
http://statistics.data.gov.uk/id/local-authority/29UP,Tonbridge & Malling Borough Council,8/17/2022,0012008453/15,12008453, 12.00,O2 UK Ltd,01268000,,Mobile Telephones,Finance Sals&Overheads,D01AFDF0045013,
http://statistics.data.gov.uk/id/local-authority/29UP,Tonbridge & Malling Borough Council,8/17/2022,0012008453/16,12008453, 6.00,O2 UK Ltd,01268000,,Mobile Telephones,Finance Sals&Overheads,D01AFDF0945013,
http://statistics.data.gov.uk/id/local-authority/29UP,Tonbridge & Malling Borough Council,8/17/2022,0012008453/17,12008453, 12.00,O2 UK Ltd,01268000,,Mobile Telephones,St Scene & Leis Sals&Overheads,D01AGDG0045013,
http://statistics.data.gov.uk/id/local-authority/29UP,Tonbridge & Malling Borough Council,8/17/2022,0012008453/18,12008453, 12.00,O2 UK Ltd,01268000,,Mobile Telephones,St Scene & Leis Sals&Overheads,D01AGDG0145013,
http://statistics.data.gov.uk/id/local-authority/29UP,Tonbridge & Malling Borough Council,8/17/2022,0012008453/19,12008453, 9.00,O2 UK Ltd,01268000,,Mobile Telephones,St Scene & Leis Sals&Overheads,D01AGDG0445013,
http://statistics.data.gov.uk/id/local-authority/29UP,Tonbridge & Malling Borough Council,8/17/2022,0012008453/20,12008453, 36.00,O2 UK Ltd,01268000,,Mobile Telephones,St Scene & Leis Sals&Overheads,D01AGDG2045013,
http://statistics.data.gov.uk/id/local-authority/29UP,Tonbridge & Malling Borough Council,8/17/2022,0012008453/21,12008453, 9.00,O2 UK Ltd,01268000,,Mobile Telephones,Planning Sals&Overheads,D01AJDJ0045013,
http://statistics.data.gov.uk/id/local-authority/29UP,Tonbridge & Malling Borough Council,8/17/2022,0012008453/22,12008453, 12.20,O2 UK Ltd,01268000,,Mobile Telephones,Planning Sals&Overheads,D01AJDJ0245013,
http://statistics.data.gov.uk/id/local-authority/29UP,Tonbridge & Malling Borough Council,8/17/2022,0012008453/23,12008453, 6.00,O2 UK Ltd,01268000,,Mobile Telephones,Legal Sals&Overheads,D01ARDR0045013,
http://statistics.data.gov.uk/id/local-authority/29UP,Tonbridge & Malling Borough Council,8/17/2022,0012008453/24,12008453, 12.00,O2 UK Ltd,01268000,,Mobile Telephones,Legal Sals&Overheads,D01ARDR0445013,
http://statistics.data.gov.uk/id/local-authority/29UP,Tonbridge & Malling Borough Council,8/17/2022,0012008453/25,12008453, 3.00,O2 UK Ltd,01268000,,Mobile Telephones,Legal Sals&Overheads,D01ARDR0745013,
http://statistics.data.gov.uk/id/local-authority/29UP,Tonbridge & Malling Borough Council,8/17/2022,0012008453/26,12008453, 3.00,O2 UK Ltd,01268000,,Mobile Telephones,Env Hlth & Hsg Sals&Overheads,D01AVDV0045013,
http://statistics.data.gov.uk/id/local-authority/29UP,Tonbridge & Malling Borough Council,8/17/2022,0012008453/27,12008453, 9.00,O2 UK Ltd,01268000,,Mobile Telephones,Env Hlth & Hsg Sals&Overheads,D01AVDV0145013,
http://statistics.data.gov.uk/id/local-authority/29UP,Tonbridge & Malling Borough Council,8/17/2022,0012008453/28,12008453, 6.00,O2 UK Ltd,01268000,,Mobile Telephones,Env Hlth & Hsg Sals&Overheads,D01AVDV0345013,
http://statistics.data.gov.uk/id/local-authority/29UP,Tonbridge & Malling Borough Council,8/17/2022,0012008453/29,12008453, 3.40,O2 UK Ltd,01268000,,Mobile Telephones,Env Hlth & Hsg Sals&Overheads,D01AVDV0745013,
http://statistics.data.gov.uk/id/local-authority/29UP,Tonbridge & Malling Borough Council,8/17/2022,0012008453/3,12008453, 3.00,O2 UK Ltd,01268000,,Telephones - General,Open Spaces & Amenity Areas,B22LE000045010,
http://statistics.data.gov.uk/id/local-authority/29UP,Tonbridge & Malling Borough Council,8/17/2022,0012008453/30,12008453, 6.00,O2 UK Ltd,01268000,,Mobile Telephones,Env Hlth & Hsg Sals&Overheads,D01AVDV0945013,
http://statistics.data.gov.uk/id/local-authority/29UP,Tonbridge & Malling Borough Council,8/17/2022,0012008453/31,12008453, 9.00,O2 UK Ltd,01268000,,Mobile Telephones,Customer Services,D23CS000045013,
http://statistics.data.gov.uk/id/local-authority/29UP,Tonbridge & Malling Borough Council,8/17/2022,0012008453/32,12008453, 3.00,O2 UK Ltd,01268000,,Mobile Telephones,Tonbridge Gateway,D23TG000045013,
http://statistics.data.gov.uk/id/local-authority/29UP,Tonbridge & Malling Borough Council,8/17/2022,0012008453/33,12008453, 627.00,O2 UK Ltd,01268000,,Leased Lines & Modems,Information Technology,D27KD000045011,
http://statistics.data.gov.uk/id/local-authority/29UP,Tonbridge & Malling Borough Council,8/17/2022,0012008453/34,12008453, 3.00,O2 UK Ltd,01268000,,Mobile Telephones,Mayoral & Other Member Support,D29LX000045013,
http://statistics.data.gov.uk/id/local-authority/29UP,Tonbridge & Malling Borough Council,8/17/2022,0012008453/35,12008453, 3.00,O2 UK Ltd,01268000,,Emergency Out of Hours Recharg,Refuse Collection,H20SA000045030,
http://statistics.data.gov.uk/id/local-authority/29UP,Tonbridge & Malling Borough Council,8/17/2022,0012008453/36,12008453, 3.30,O2 UK Ltd,01268000,,Emergency Out of Hours Recharg,Street Scene,H23SD000045030,
http://statistics.data.gov.uk/id/local-authority/29UP,Tonbridge & Malling Borough Council,8/17/2022,0012008453/4,12008453, 6.00,O2 UK Ltd,01268000,,Mobile Telephones,Admin & Prop Sals&Overheads,D01AADA0045013,
http://statistics.data.gov.uk/id/local-authority/29UP,Tonbridge & Malling Borough Council,8/17/2022,0012008453/5,12008453, 3.66,O2 UK Ltd,01268000,,Mobile Telephones,Admin & Prop Sals&Overheads,D01AADA1045013,
http://statistics.data.gov.uk/id/local-authority/29UP,Tonbridge & Malling Borough Council,8/17/2022,0012008453/6,12008453, 9.00,O2 UK Ltd,01268000,,Mobile Telephones,Admin & Prop Sals&Overheads,D01AADA1245013,
http://statistics.data.gov.uk/id/local-authority/29UP,Tonbridge & Malling Borough Council,8/17/2022,0012008453/7,12008453, 3.00,O2 UK Ltd,01268000,,Mobile Telephones,Chief Exec Sals&Overheads,D01ACDC0045013,
http://statistics.data.gov.uk/id/local-authority/29UP,Tonbridge & Malling Borough Council,8/17/2022,0012008453/8,12008453, 3.00,O2 UK Ltd,01268000,,Mobile Telephones,Chief Exec Sals&Overheads,D01ACDC0145013,
http://statistics.data.gov.uk/id/local-authority/29UP,Tonbridge & Malling Borough Council,8/17/2022,0012008453/9,12008453, 3.00,O2 UK Ltd,01268000,,Mobile Telephones,Chief Exec Sals&Overheads,D01ACDC0245013,
http://statistics.data.gov.uk/id/local-authority/29UP,Tonbridge & Malling Borough Council,8/17/2022,0012008454/1,12008454, 567.00,Dataquest Ltd - CC Engineering Limited,01233100,438498209,Maintenance - Ancillary Equip,Information Technology,D27KD000040137,410032237
http://statistics.data.gov.uk/id/local-authority/29UP,Tonbridge & Malling Borough Council,8/17/2022,0012008455/1,12008455, 516.53,Vanquish Tech,01798700,124406447,Initial Furniture & Equipment,Capital Renewals IT,P06FBFB2009906,410032239
http://statistics.data.gov.uk/id/local-authority/29UP,Tonbridge & Malling Borough Council,8/17/2022,0012008455/2,12008455, 54.26,Vanquish Tech,01798700,124406447,Initial Furniture & Equipment,Capital Renewals IT,P06FBFB2009906,410032239
http://statistics.data.gov.uk/id/local-authority/29UP,Tonbridge & Malling Borough Council,8/17/2022,0012008456/1,12008456, 5.40,KCS,00054200,,Copy Charges,Multi Function Devices,D22GB000040125,
http://statistics.data.gov.uk/id/local-authority/29UP,Tonbridge & Malling Borough Council,8/17/2022,0012008457/1,12008457, 153.82,KCS,00054200,,Copy Charges,Multi Function Devices,D22GB000040125,
http://statistics.data.gov.uk/id/local-authority/29UP,Tonbridge & Malling Borough Council,8/17/2022,0012008458/1,12008458, 28.09,KCS,00054200,,Copy Charges,Multi Function Devices,D22GB000040125,
http://statistics.data.gov.uk/id/local-authority/29UP,Tonbridge & Malling Borough Council,8/17/2022,0012008459/1,12008459, 3.31,KCS,00054200,,Copy Charges,Multi Function Devices,D22GB000040125,
http://statistics.data.gov.uk/id/local-authority/29UP,Tonbridge & Malling Borough Council,8/17/2022,0012008460/1,12008460, 6.30,KCS,00054200,,Copy Charges,Multi Function Devices,D22GB000040125,
http://statistics.data.gov.uk/id/local-authority/29UP,Tonbridge & Malling Borough Council,8/17/2022,0012008461/1,12008461, 95.20,KCS,00054200,,Copy Charges,Multi Function Devices,D22GB000040125,
http://statistics.data.gov.uk/id/local-authority/29UP,Tonbridge & Malling Borough Council,8/17/2022,0012008462/3,12008462, 0.18,KCS,00054200,,Copy Charges,Multi Function Devices,D22GB000040125,
http://statistics.data.gov.uk/id/local-authority/29UP,Tonbridge & Malling Borough Council,8/17/2022,0012008463/3,12008463, 6.15,KCS,00054200,,Copy Charges,Multi Function Devices,D22GB000040125,
http://statistics.data.gov.uk/id/local-authority/29UP,Tonbridge & Malling Borough Council,8/17/2022,0012008464/3,12008464, 94.81,KCS,00054200,,Copy Charges,Multi Function Devices,D22GB000040125,
http://statistics.data.gov.uk/id/local-authority/29UP,Tonbridge & Malling Borough Council,8/17/2022,0012008465/1,12008465, 314.93,CCS Media Ltd,00018000,,Purchases,Information Technology,D27KD000040101,410032241
http://statistics.data.gov.uk/id/local-authority/29UP,Tonbridge & Malling Borough Council,8/17/2022,0012008465/2,12008465, 119.97,CCS Media Ltd,00018000,,Purchases,Information Technology,D27KD000040101,410032241
http://statistics.data.gov.uk/id/local-authority/29UP,Tonbridge & Malling Borough Council,8/17/2022,0012008465/3,12008465, 2.00,CCS Media Ltd,00018000,,Delivery Expenses,Information Technology,D27KD000044069,410032241
http://statistics.data.gov.uk/id/local-authority/29UP,Tonbridge & Malling Borough Council,8/17/2022,0021038102/1,21038102, 100.00,Cameron Electrical,01849600,,Maintenance of Play Equipment,Open Spaces & Amenity Areas,B22LE000020503,210056869
http://statistics.data.gov.uk/id/local-authority/29UP,Tonbridge & Malling Borough Council,8/17/2022,0021038103/1,21038103, 4531.48,Cameron Electrical,01849600,,Maintenance of Play Equipment,Open Spaces & Amenity Areas,B22LE000020503,210056793
http://statistics.data.gov.uk/id/local-authority/29UP,Tonbridge & Malling Borough Council,8/17/2022,0021038104/1,21038104, 680.00,Forestry First,01834900,,Maintenance of Grounds,Open Spaces & Amenity Areas,B22LE000020402,210056866
http://statistics.data.gov.uk/id/local-authority/29UP,Tonbridge & Malling Borough Council,8/17/2022,0021038105/1,21038105, 700.00,Forestry First,01834900,,Health & Safety - Trees,Countryside/Woodland Mgt,B22LG000044045,210056867
http://statistics.data.gov.uk/id/local-authority/29UP,Tonbridge & Malling Borough Council,8/17/2022,0021038106/1,21038106, 685.66,Atlas Facilities Managment Limited ,01075900,,Gates / Security,Patrolling,B22LF000044017,210056716
http://statistics.data.gov.uk/id/local-authority/29UP,Tonbridge & Malling Borough Council,8/17/2022,0021038107/1,21038107, 510.00,Weddle and Co,00714900,,Maintenance of Grounds,Haysden Country Park,B22LC000020402,210056911
http://statistics.data.gov.uk/id/local-authority/29UP,Tonbridge & Malling Borough Council,8/17/2022,0021038108/1,21038108, 45.00,Weddle and Co,00714900,,Maintenance of Grounds,Open Spaces & Amenity Areas,B22LE000020402,210056905
http://statistics.data.gov.uk/id/local-authority/29UP,Tonbridge & Malling Borough Council,8/17/2022,0021038109/1,21038109, 45.50,Landscape Services Ltd,00057600,,Maintenance of Grounds,Sports Grounds,B13ET000020402,210056731
http://statistics.data.gov.uk/id/local-authority/29UP,Tonbridge & Malling Borough Council,8/17/2022,0021038110/1,21038110, 57.86,Landscape Services Ltd,00057600,,Rodent Control,Haysden Country Park,B22LC000044053,210056903
http://statistics.data.gov.uk/id/local-authority/29UP,Tonbridge & Malling Borough Council,8/17/2022,0021038112/1,21038112, 850.00,Forestry First,01834900,,Maintenance of Grounds,Open Spaces & Amenity Areas,B22LE000020402,210056865
http://statistics.data.gov.uk/id/local-authority/29UP,Tonbridge & Malling Borough Council,8/17/2022,0021038114/1,21038114, 1000.00,Music at Malling,01326400,,Events Support,Events Development,B41TJ000044041,
http://statistics.data.gov.uk/id/local-authority/29UP,Tonbridge & Malling Borough Council,8/17/2022,0021038115/1,21038115, 1272.00,North Radio Com Limited,01859600,,Initial Furniture & Equipment,Capital Renewals Leisure,P05KGBC0409906,210056909
http://statistics.data.gov.uk/id/local-authority/29UP,Tonbridge & Malling Borough Council,8/17/2022,0021038115/2,21038115, 15.00,North Radio Com Limited,01859600,,Initial Furniture & Equipment,Capital Renewals Leisure,P05KGBC0409906,210056909
http://statistics.data.gov.uk/id/local-authority/29UP,Tonbridge & Malling Borough Council,8/17/2022,0021038116/1,21038116, 145.00,Mr A Nicholl,00253500,,Casual Users,Tonbridge Sports Association,B02AH000034003,
http://statistics.data.gov.uk/id/local-authority/29UP,Tonbridge & Malling Borough Council,8/17/2022,0021038116/2,21038116, 55.00,Mr A Nicholl,00253500,,Stationery,Tonbridge Sports Association,B02AH000043003,
http://statistics.data.gov.uk/id/local-authority/29UP,Tonbridge & Malling Borough Council,8/17/2022,0021038116/3,21038116, 15.00,Mr A Nicholl,00253500,,Telephones - General,Tonbridge Sports Association,B02AH000045010,
http://statistics.data.gov.uk/id/local-authority/29UP,Tonbridge & Malling Borough Council,8/17/2022,0022026949/3,22026949, 4.58,REDACTED PERSONAL DATA,01051900,,Purchases,Env Hlth & Hsg Sals&Overheads,D01AVDV0340101,
http://statistics.data.gov.uk/id/local-authority/29UP,Tonbridge & Malling Borough Council,8/17/2022,0022026950/3,22026950, 245.00,Countrystyle Group,00835900,781981681,Collection of Card,Dry Recycling,H34SR000054008,
http://statistics.data.gov.uk/id/local-authority/29UP,Tonbridge & Malling Borough Council,8/17/2022,0022026951/3,22026951, 3983.70,Ward Security LTD,01490000,,Dog Warden,Street Scene,H23SD000044100,
http://statistics.data.gov.uk/id/local-authority/29UP,Tonbridge & Malling Borough Council,8/17/2022,0022026952/1,22026952, 420.00,Lucy and Martin Recycling LTD,01694200,,General Maintenance,Dry Recycling,H34SR000020301,220003233
http://statistics.data.gov.uk/id/local-authority/29UP,Tonbridge & Malling Borough Council,8/17/2022,0022026953/1,22026953, 8667.90,Elite Complete Build LTD,01625900,,Other Expenses,Disabled Facilities Grant Mand,P03AC000009908,
http://statistics.data.gov.uk/id/local-authority/29UP,Tonbridge & Malling Borough Council,8/17/2022,0022026954/1,22026954, 10817.13,Lifestyle (KENT) LTD,01348800,,Other Expenses,Disabled Facilities Grant Mand,P03AC000009908,
http://statistics.data.gov.uk/id/local-authority/29UP,Tonbridge & Malling Borough Council,8/17/2022,0022026955/1,22026955, 1557.67,Town & Country Housing Group,01385400,,Other Expenses,Disabled Facilities Grant Mand,P03AC000009908,
http://statistics.data.gov.uk/id/local-authority/29UP,Tonbridge & Malling Borough Council,8/17/2022,0022026956/1,22026956, 266.22,British Gas,01148500,,Electricity,Homelessness,C01AA000021002,
http://statistics.data.gov.uk/id/local-authority/29UP,Tonbridge & Malling Borough Council,8/17/2022,0022026957/1,22026957, 41.83,Bulb Energy Ltd,01799000,214948301,Electricity,Homelessness,C01AA000021002,
http://statistics.data.gov.uk/id/local-authority/29UP,Tonbridge & Malling Borough Council,8/17/2022,0022026957/2,22026957, 10.26,Bulb Energy Ltd,01799000,214948301,Electricity,Homelessness,C01AA000021002,
http://statistics.data.gov.uk/id/local-authority/29UP,Tonbridge & Malling Borough Council,8/17/2022,0022026958/1,22026958, 26.46,Bulb Energy Ltd,01799000,214948301,Electricity,Homelessness,C01AA000021002,
http://statistics.data.gov.uk/id/local-authority/29UP,Tonbridge & Malling Borough Council,8/17/2022,0022026959/1,22026959, 2237.30,Lucy and Martin Recycling LTD,01694200,,Bring Sites Mixed Recycling,Dry Recycling,H34SR000054026,
http://statistics.data.gov.uk/id/local-authority/29UP,Tonbridge & Malling Borough Council,8/17/2022,0022026960/1,22026960, 22730.40,Acorn Maintenance Services,01036000,,Other Expenses,Disabled Facilities Grant Mand,P03AC000009908,
http://statistics.data.gov.uk/id/local-authority/29UP,Tonbridge & Malling Borough Council,8/17/2022,0022026961/1,22026961, 7007.63,All Home Services Ltd,01802400,,Other Expenses,Disabled Facilities Grant Mand,P03AC000009908,
http://statistics.data.gov.uk/id/local-authority/29UP,Tonbridge & Malling Borough Council,8/17/2022,0022026962/1,22026962, 1489.34,Town & Country Housing Group,01385400,,Other Expenses,Disabled Facilities Grant Mand,P03AC000009908,
http://statistics.data.gov.uk/id/local-authority/29UP,Tonbridge & Malling Borough Council,8/17/2022,0022026963/1,22026963, 6474.16,Alfa Electrical LTD Inc AVCO Maintenance,01642200,,Other Expenses,Disabled Facilities Grant Mand,P03AC000009908,
http://statistics.data.gov.uk/id/local-authority/29UP,Tonbridge & Malling Borough Council,8/17/2022,0022026964/1,22026964, 957.48,Town & Country Housing Group,01385400,,Other Expenses,Disabled Facilities Grant Mand,P03AC000009908,
http://statistics.data.gov.uk/id/local-authority/29UP,Tonbridge & Malling Borough Council,8/17/2022,0022026965/1,22026965, 210.00,Wynsdale Waste Management Ltd,01772500,,Other Expenses,Disabled Facilities Grant Mand,P03AC000009908,
http://statistics.data.gov.uk/id/local-authority/29UP,Tonbridge & Malling Borough Council,8/17/2022,0022026966/1,22026966, 7220.21,Alfa Electrical LTD Inc AVCO Maintenance,01642200,,Other Expenses,Disabled Facilities Grant Mand,P03AC000009908,
http://statistics.data.gov.uk/id/local-authority/29UP,Tonbridge & Malling Borough Council,8/17/2022,0022026967/1,22026967, 1045.72,Town & Country Housing Group,01385400,,Other Expenses,Disabled Facilities Grant Mand,P03AC000009908,
http://statistics.data.gov.uk/id/local-authority/29UP,Tonbridge & Malling Borough Council,8/17/2022,0022026968/1,22026968, 1883.00,Astor Bannerman (Medical) Ltd,00963200,,Other Expenses,Disabled Facilities Grant Mand,P03AC000009908,
http://statistics.data.gov.uk/id/local-authority/29UP,Tonbridge & Malling Borough Council,8/17/2022,0022026969/1,22026969, 271.15,Town & Country Housing Group,01385400,,Other Expenses,Disabled Facilities Grant Mand,P03AC000009908,
http://statistics.data.gov.uk/id/local-authority/29UP,Tonbridge & Malling Borough Council,8/17/2022,0022026970/1,22026970, 6794.20,Adaptec Mobilty Ltd,01785800,339578354,Other Expenses,Disabled Facilities Grant Mand,P03AC000009908,
http://statistics.data.gov.uk/id/local-authority/29UP,Tonbridge & Malling Borough Council,8/17/2022,0022026971/1,22026971, 978.36,Town & Country Housing Group,01385400,,Other Expenses,Disabled Facilities Grant Mand,P03AC000009908,
http://statistics.data.gov.uk/id/local-authority/29UP,Tonbridge & Malling Borough Council,8/17/2022,0022026972/1,22026972, 2542.26,Adaptec Mobilty Ltd,01785800,339578354,Other Expenses,Disabled Facilities Grant Mand,P03AC000009908,
http://statistics.data.gov.uk/id/local-authority/29UP,Tonbridge & Malling Borough Council,8/17/2022,0022026973/1,22026973, 366.08,Town & Country Housing Group,01385400,,Other Expenses,Disabled Facilities Grant Mand,P03AC000009908,
http://statistics.data.gov.uk/id/local-authority/29UP,Tonbridge & Malling Borough Council,8/17/2022,0022026974/1,22026974, 6432.43,All Home Services Ltd,01802400,,Other Expenses,Disabled Facilities Grant Mand,P03AC000009908,
http://statistics.data.gov.uk/id/local-authority/29UP,Tonbridge & Malling Borough Council,8/17/2022,0022026975/1,22026975, 938.27,Town & Country Housing Group,01385400,,Other Expenses,Disabled Facilities Grant Mand,P03AC000009908,
http://statistics.data.gov.uk/id/local-authority/29UP,Tonbridge & Malling Borough Council,8/17/2022,0022026976/1,22026976, 2900.00,Dolphin Stairlifts,00698900,,Other Expenses,Disabled Facilities Grant Mand,P03AC000009908,
http://statistics.data.gov.uk/id/local-authority/29UP,Tonbridge & Malling Borough Council,8/17/2022,0022026977/1,22026977, 360.00,Town & Country Housing Group,01385400,,Other Expenses,Disabled Facilities Grant Mand,P03AC000009908,
http://statistics.data.gov.uk/id/local-authority/29UP,Tonbridge & Malling Borough Council,8/17/2022,0031018827/1,31018827, 192.78,KM Media Group Ltd,00053900,,Advertising General,Parking On-Street,E10HDZ99944216,310042859
http://statistics.data.gov.uk/id/local-authority/29UP,Tonbridge & Malling Borough Council,8/17/2022,0031018829/1,31018829, 85.80,Arnold & Court Ltd,01411300,,Premises Repairs & Maintenance,Parking Off-Street,E10HA000020601,210056861
http://statistics.data.gov.uk/id/local-authority/29UP,Tonbridge & Malling Borough Council,8/17/2022,0031018829/2,31018829, 85.80,Arnold & Court Ltd,01411300,,BRREP Car Park mntce,Larkfield Leisure Centre,M15HDP20001953,210056861
http://statistics.data.gov.uk/id/local-authority/29UP,Tonbridge & Malling Borough Council,8/17/2022,0031018829/3,31018829, 85.80,Arnold & Court Ltd,01411300,,BRREP General Maintenance,Kings Hill Offices - Ext Areas,M15KAP10001900,210056861
http://statistics.data.gov.uk/id/local-authority/29UP,Tonbridge & Malling Borough Council,8/17/2022,0031018829/4,31018829, 85.80,Arnold & Court Ltd,01411300,,BRREP Hard paving surface rep,Shops & Maisonettes,M15NAP20001946,210056861
http://statistics.data.gov.uk/id/local-authority/29UP,Tonbridge & Malling Borough Council,8/17/2022,0031018829/5,31018829, 85.80,Arnold & Court Ltd,01411300,,BRREP Response - General,Shops & Maisonettes,M15NAP50001997,210056861
http://statistics.data.gov.uk/id/local-authority/29UP,Tonbridge & Malling Borough Council,8/17/2022,0031018831/1,31018831, 594.88,DSSL Group Ltd,01839500,,Contract Payments,Cap Ren CCTV,P01BA000009904,310042850
http://statistics.data.gov.uk/id/local-authority/29UP,Tonbridge & Malling Borough Council,8/17/2022,0031018832/1,31018832, 2735.51,DSSL Group Ltd,01839500,,Contract Payments,Cap Ren CCTV,P01BA000009904,310042857
http://statistics.data.gov.uk/id/local-authority/29UP,Tonbridge & Malling Borough Council,8/17/2022,0031018833/1,31018833, 20.00,Reveal Media,01855400,,Purchases,Security Services Management,E09GA000040101,310042852
http://statistics.data.gov.uk/id/local-authority/29UP,Tonbridge & Malling Borough Council,8/17/2022,0031018833/2,31018833, 3.00,Reveal Media,01855400,,Purchases,Security Services Management,E09GA000040101,310042852
http://statistics.data.gov.uk/id/local-authority/29UP,Tonbridge & Malling Borough Council,8/17/2022,0031018834/1,31018834, 973.34,CDER Group,01773300,,Adjudication & Enforcement Ser,Parking Off-Street,E10HA000044230,
http://statistics.data.gov.uk/id/local-authority/29UP,Tonbridge & Malling Borough Council,8/17/2022,0031018836/1,31018836, 800.00,Archway Highway Services Ltd,01398000,,Other Expenses,Car Park Imp Rolling Programme,P01AB000009908,210056923
http://statistics.data.gov.uk/id/local-authority/29UP,Tonbridge & Malling Borough Council,8/17/2022,0031018837/1,31018837, 500.00,Archway Highway Services Ltd,01398000,,Maintenance of Grounds,Haysden Country Park,B22LCCARP20402,210056919
http://statistics.data.gov.uk/id/local-authority/29UP,Tonbridge & Malling Borough Council,8/17/2022,0031018840/4,31018840, 1.18,Npower Ltd,01675800,,Electricity,Parking Off-Street,E10HA000021002,
http://statistics.data.gov.uk/id/local-authority/29UP,Tonbridge & Malling Borough Council,8/17/2022,0031018840/5,31018840, 30.98,Npower Ltd,01675800,,Electricity,Parking Off-Street,E10HA000021002,
http://statistics.data.gov.uk/id/local-authority/29UP,Tonbridge & Malling Borough Council,8/17/2022,0031018841/4,31018841, 1.86,Npower Ltd,01675800,,Electricity,Parking Off-Street,E10HA000021002,
http://statistics.data.gov.uk/id/local-authority/29UP,Tonbridge & Malling Borough Council,8/17/2022,0031018841/5,31018841, 48.95,Npower Ltd,01675800,,Electricity,Parking Off-Street,E10HA000021002,
http://statistics.data.gov.uk/id/local-authority/29UP,Tonbridge & Malling Borough Council,8/17/2022,0031018842/4,31018842, 6.56,Npower Ltd,01675800,,Electricity,Parking Off-Street,E10HA000021002,
http://statistics.data.gov.uk/id/local-authority/29UP,Tonbridge & Malling Borough Council,8/17/2022,0031018842/5,31018842, 145.08,Npower Ltd,01675800,,Electricity,Parking Off-Street,E10HA000021002,
http://statistics.data.gov.uk/id/local-authority/29UP,Tonbridge & Malling Borough Council,8/17/2022,0031018843/1,31018843, 1082.50,Archway Highway Services Ltd,01398000,,Premises Repairs & Maintenance,Parking On-Street,E10HD000020601,310042864
http://statistics.data.gov.uk/id/local-authority/29UP,Tonbridge & Malling Borough Council,8/17/2022,0031018844/1,31018844, 127.43,Shell U.K. Oil Products Limited,01673300,,"Petrol, Diesel & Oil",Parking Off-Street,E10HA000030106,
http://statistics.data.gov.uk/id/local-authority/29UP,Tonbridge & Malling Borough Council,8/17/2022,0031018844/2,31018844, 127.42,Shell U.K. Oil Products Limited,01673300,,"Petrol, Diesel & Oil",Parking On-Street,E10HD000030106,
http://statistics.data.gov.uk/id/local-authority/29UP,Tonbridge & Malling Borough Council,8/17/2022,0031018845/1,31018845, 25.80,Bruce Cocks Showcoms Ltd,01855600,,Purchases,Parking Off-Street,E10HA000040101,310042853
http://statistics.data.gov.uk/id/local-authority/29UP,Tonbridge & Malling Borough Council,8/17/2022,0031018845/2,31018845, 3.00,Bruce Cocks Showcoms Ltd,01855600,,Purchases,Parking Off-Street,E10HA000040101,310042853
http://statistics.data.gov.uk/id/local-authority/29UP,Tonbridge & Malling Borough Council,8/17/2022,0031018845/3,31018845, 3.00,Bruce Cocks Showcoms Ltd,01855600,,Purchases,Parking On-Street,E10HD000040101,310042853
http://statistics.data.gov.uk/id/local-authority/29UP,Tonbridge & Malling Borough Council,8/17/2022,0031018845/4,31018845, 25.80,Bruce Cocks Showcoms Ltd,01855600,,Purchases,Parking On-Street,E10HD000040101,310042853
http://statistics.data.gov.uk/id/local-authority/29UP,Tonbridge & Malling Borough Council,8/17/2022,0032009714/3,32009714, 1939.30,The Oyster Partnership,01196400,,Temporary Staff,Planning Sals&Overheads,D01AJDJ0111300,
http://statistics.data.gov.uk/id/local-authority/29UP,Tonbridge & Malling Borough Council,8/17/2022,0032009715/3,32009715, 1302.08,The Oyster Partnership,01196400,,Temporary Staff,Planning Sals&Overheads,D01AJDJ0111300,
http://statistics.data.gov.uk/id/local-authority/29UP,Tonbridge & Malling Borough Council,8/17/2022,0032009716/3,32009716, 1778.01,The Oyster Partnership,01196400,,Temporary Staff,Planning Sals&Overheads,D01AJDJ0111300,
http://statistics.data.gov.uk/id/local-authority/29UP,Tonbridge & Malling Borough Council,8/17/2022,0032009717/1,32009717, 989.00,Carrington West Limited,01844500,,Temporary Staff,Planning Sals&Overheads,D01AJDJ0111300,
http://statistics.data.gov.uk/id/local-authority/29UP,Tonbridge & Malling Borough Council,8/17/2022,0032009718/1,32009718, 246.33,KM Media Group Ltd,00053900,,Advertising General,Development Management,A01ABZ99944216,320003434
http://statistics.data.gov.uk/id/local-authority/29UP,Tonbridge & Malling Borough Council,8/17/2022,0032009719/3,32009719, 2000.00,The Arch Company Properties Limited,01807200,,Economic Development & Regen,Eco Dev & Reg Gen Bus Support,D52TD000047027,
http://statistics.data.gov.uk/id/local-authority/29UP,Tonbridge & Malling Borough Council,8/17/2022,0032009720/1,32009720, 1862.75,Arc4,01652100,,Development of Local Plan,Development of Local Plan,A01AE000044023,310042779
http://statistics.data.gov.uk/id/local-authority/29UP,Tonbridge & Malling Borough Council,8/17/2022,0032009721/1,32009721, 2590.00,G2 Recruitment Solutions,01786000,,Temporary Staff,Planning Sals&Overheads,D01AJDJ0111300,
http://statistics.data.gov.uk/id/local-authority/29UP,Tonbridge & Malling Borough Council,8/17/2022,0032009722/1,32009722, 3153.11,G2 Recruitment Solutions,01786000,,Temporary Staff,Planning Sals&Overheads,D01AJDJ0111300,
http://statistics.data.gov.uk/id/local-authority/29UP,Tonbridge & Malling Borough Council,8/17/2022,0032009723/1,32009723, 2980.00,JBA Consulting,01599000,665300941,Development of Local Plan,Development of Local Plan,A01AE000044023,320003369
http://statistics.data.gov.uk/id/local-authority/29UP,Tonbridge & Malling Borough Council,8/17/2022,0032009724/1,32009724, 8117.00,Kent County Council,00322500,,Payment re Prev Yrs Cred Acc,Sundry Creditors PHEHS,J80TB000001101,
http://statistics.data.gov.uk/id/local-authority/29UP,Tonbridge & Malling Borough Council,8/17/2022,0041034600/3,41034600, 431.37,Morgan Hunt UK Ltd,01086900,,Temporary Staff,Finance Sals&Overheads,D01AFDF1111300,
http://statistics.data.gov.uk/id/local-authority/29UP,Tonbridge & Malling Borough Council,8/17/2022,0041034601/3,41034601, 945.00,Morgan Hunt UK Ltd,01086900,,Temporary Staff,Finance Sals&Overheads,D01AFDF1111300,
http://statistics.data.gov.uk/id/local-authority/29UP,Tonbridge & Malling Borough Council,8/17/2022,0041034602/3,41034602, 2078.23,Maidstone Borough Council,01173700,,Bailiffs Commission,Local Revenue & NNDR Collect,D41QA000044075,
http://statistics.data.gov.uk/id/local-authority/29UP,Tonbridge & Malling Borough Council,8/17/2022,0041034603/3,41034603, 984.35,Maidstone Borough Council,01173700,,Bailiffs Commission,Local Revenue & NNDR Collect,D41QA000044075,
http://statistics.data.gov.uk/id/local-authority/29UP,Tonbridge & Malling Borough Council,8/17/2022,0041034604/3,41034604, 150.00,Maidstone Borough Council,01173700,,Bailiffs Commission,Local Revenue & NNDR Collect,D41QA000044075,
http://statistics.data.gov.uk/id/local-authority/29UP,Tonbridge & Malling Borough Council,8/17/2022,0041034605/3,41034605, 1087.53,Rundle & Co Ltd,00087200,,Bailiffs Commission,Local Revenue & NNDR Collect,D41QA000044075,
http://statistics.data.gov.uk/id/local-authority/29UP,Tonbridge & Malling Borough Council,8/17/2022,0041034606/3,41034606, 516.69,Rundle & Co Ltd,00087200,,Bailiffs Commission,Local Revenue & NNDR Collect,D41QA000044075,
http://statistics.data.gov.uk/id/local-authority/29UP,Tonbridge & Malling Borough Council,8/17/2022,0041034614/1,41034614, 1500.00,Martin Square Traders Association,00904000,,Borough Christmas Lighting,Eco Dev & Reg Boro Chris Light,D52TE000047014,
http://statistics.data.gov.uk/id/local-authority/29UP,Tonbridge & Malling Borough Council,8/17/2022,0041034616/1,41034616, 1391.56,The Oyster Partnership,01196400,,Temporary Staff,Finance Sals&Overheads,D01AFDF1111300,
http://statistics.data.gov.uk/id/local-authority/29UP,Tonbridge & Malling Borough Council,8/17/2022,0041034617/3,41034617, 1820.00,Greenhalgh Kerr,01590200,,Bailiffs Commission,Local Revenue & NNDR Collect,D41QA000044075,
http://statistics.data.gov.uk/id/local-authority/29UP,Tonbridge & Malling Borough Council,8/17/2022,0041034617/4,41034617, 42.00,Greenhalgh Kerr,01590200,,Bailiffs Commission,Local Revenue & NNDR Collect,D41QA000044075,
http://statistics.data.gov.uk/id/local-authority/29UP,Tonbridge & Malling Borough Council,8/18/2022,0041034622/1,41034622, 398.25,King & Shaxson Investments,01411100,,Professional Fees,Treasury Management,D43QT000044001,
http://statistics.data.gov.uk/id/local-authority/29UP,Tonbridge & Malling Borough Council,8/19/2022,0041034623/1,41034623, 198.37,King & Shaxson Investments,01411100,,Professional Fees,Treasury Management,D43QT000044001,
http://statistics.data.gov.uk/id/local-authority/29UP,Tonbridge & Malling Borough Council,8/19/2022,0041034624/1,41034624, 59.95,Allpay Limited,01816500,,Giro / Swipe Card Charges,Local Revenue & NNDR Collect,D41QA000044083,
http://statistics.data.gov.uk/id/local-authority/29UP,Tonbridge & Malling Borough Council,8/19/2022,0041034625/1,41034625, 229.75,National Westminster Bank Plc,00069400,,Bank Charges,Banking Arrangements,D43QK000044222,
http://statistics.data.gov.uk/id/local-authority/29UP,Tonbridge & Malling Borough Council,8/19/2022,0041034628/1,41034628, 20.35,WorldPay Ltd,01402000,991280207,Credit Card Commission,Banking Arrangements,D43QK000044082,
http://statistics.data.gov.uk/id/local-authority/29UP,Tonbridge & Malling Borough Council,8/19/2022,0041034629/1,41034629, 15.00,National Westminster Bank Plc,00069400,,Bank Charges,Banking Arrangements,D43QK000044222,
http://statistics.data.gov.uk/id/local-authority/29UP,Tonbridge & Malling Borough Council,8/19/2022,0041034630/1,41034630, 328.10,Adminware Software Private Limited,01859800,,Software Hire & Support,Information Technology,D27KD000044059,
http://statistics.data.gov.uk/id/local-authority/29UP,Tonbridge & Malling Borough Council,8/19/2022,0041034630/2,41034630, 649.62,Adminware Software Private Limited,01859800,,Software Hire & Support,Information Technology,D27KD000044059,
http://statistics.data.gov.uk/id/local-authority/29UP,Tonbridge & Malling Borough Council,8/19/2022,0041034630/3,41034630, 163.63,Adminware Software Private Limited,01859800,,Software Hire & Support,Information Technology,D27KD000044059,
http://statistics.data.gov.uk/id/local-authority/29UP,Tonbridge & Malling Borough Council,8/22/2022,0041034634/1,41034634, 2399.00,H.M. Revenue & Customs,00048400,,Levy Payment,Apprenticeship Scheme,D10DE000013700,
http://statistics.data.gov.uk/id/local-authority/29UP,Tonbridge & Malling Borough Council,8/23/2022,0041034646/1,41034646, 3065.34,WorldPay ,01568000,,Credit Card Commission,Banking Arrangements,D43QK000044082,
http://statistics.data.gov.uk/id/local-authority/29UP,Tonbridge & Malling Borough Council,8/23/2022,0041034646/2,41034646, 191.23,WorldPay ,01568000,,Credit Card Commission,Banking Arrangements,D43QK000044082,
http://statistics.data.gov.uk/id/local-authority/29UP,Tonbridge & Malling Borough Council,8/23/2022,0041034647/1,41034647, 15.00,WorldPay ,01568000,,Credit Card Commission,Banking Arrangements,D43QK000044082,
http://statistics.data.gov.uk/id/local-authority/29UP,Tonbridge & Malling Borough Council,8/23/2022,0041034648/1,41034648, 137.33,WorldPay ,01568000,,Credit Card Commission,Banking Arrangements,D43QK000044082,
http://statistics.data.gov.uk/id/local-authority/29UP,Tonbridge & Malling Borough Council,8/23/2022,0041034649/1,41034649, 899.21,WorldPay ,01568000,,Credit Card Commission,Banking Arrangements,D43QK000044082,
http://statistics.data.gov.uk/id/local-authority/29UP,Tonbridge & Malling Borough Council,8/24/2022,0011044779/1,11044779, 195.00,Southern Lightning Engineers Ltd,00094000,,BRREP Servicing-Lightning Prot,Leis Man Poult Wood Golf Centr,M15HEP20001942,110069679
http://statistics.data.gov.uk/id/local-authority/29UP,Tonbridge & Malling Borough Council,8/24/2022,0011044780/1,11044780, 616.00,BML Building Services Ltd,01505000,,BRREP General Maintenance,PC - General,M15JAP10001900,110069584
http://statistics.data.gov.uk/id/local-authority/29UP,Tonbridge & Malling Borough Council,8/24/2022,0011044781/1,11044781, 1154.25,Marine And Industrial Pump Services,00062800,,BRREP Plant renewals,Tonbridge Swimming Pool,M15HBP20001909,110069630
http://statistics.data.gov.uk/id/local-authority/29UP,Tonbridge & Malling Borough Council,8/24/2022,0011044782/1,11044782, 288.00,Chillmech Limited,00978700,,BRREP Servicing-Air Condition,Larkfield Leisure Centre,M15HDP20001935,110069698
http://statistics.data.gov.uk/id/local-authority/29UP,Tonbridge & Malling Borough Council,8/24/2022,0011044783/1,11044783, 4125.00,Hartnell Taylor Cook,01539500,,Professional Fees,Land Review,D40PS000044001,110069601
http://statistics.data.gov.uk/id/local-authority/29UP,Tonbridge & Malling Borough Council,8/24/2022,0011044784/1,11044784, 56.00,Willow Pumps Ltd,00114100,,BRREP Servicing - Pumping Stn,Tonbridge Swimming Pool,M15HBP20001931,110069172
http://statistics.data.gov.uk/id/local-authority/29UP,Tonbridge & Malling Borough Council,8/24/2022,0011044784/2,11044784, 112.00,Willow Pumps Ltd,00114100,,BRREP Servicing - Pumping Stn,Ton Sportsgrnd Bldgs / Toilets,M15HCP20001931,110069172
http://statistics.data.gov.uk/id/local-authority/29UP,Tonbridge & Malling Borough Council,8/24/2022,0011044784/3,11044784, 112.00,Willow Pumps Ltd,00114100,,BRREP Servicing - Pumping Stn,Vale Rise Depot,M15LCP20001931,110069172
http://statistics.data.gov.uk/id/local-authority/29UP,Tonbridge & Malling Borough Council,8/24/2022,0011044785/1,11044785, 5813.00,Malling Masonry,01822100,,BRREP New Road E/Malling Wall,Land Review,M15MAP20001962,110069620
http://statistics.data.gov.uk/id/local-authority/29UP,Tonbridge & Malling Borough Council,8/24/2022,0011044786/1,11044786, 597.40,Castleview Enterprises,00017100,,Confidential Waste,Cleaning & Security,D21FDDD1044009,110069465
http://statistics.data.gov.uk/id/local-authority/29UP,Tonbridge & Malling Borough Council,8/24/2022,0011044787/3,11044787, 400.00,G C Industrial Heating Services,00578100,,BRREP Legionella Certification,Angel Centre,M15HAP30001995,
http://statistics.data.gov.uk/id/local-authority/29UP,Tonbridge & Malling Borough Council,8/24/2022,0011044788/3,11044788, 585.52,Premier Paper Group,01421800,,Purchases - Paper,Printing,D22GA000040102,
http://statistics.data.gov.uk/id/local-authority/29UP,Tonbridge & Malling Borough Council,8/24/2022,0011044789/3,11044789, 868.00,Thomson Snell & Passmore,00101700,,Legal Fees,Legal Sals&Overheads,D01ARDR0044002,
http://statistics.data.gov.uk/id/local-authority/29UP,Tonbridge & Malling Borough Council,8/24/2022,0011044790/3,11044790, 585.43,KH Recruitment Ltd,01738900,,Temporary Staff,Personnel Sals&Overheads,D01ABDB0311300,
http://statistics.data.gov.uk/id/local-authority/29UP,Tonbridge & Malling Borough Council,8/24/2022,0011044791/3,11044791, 1217.80,Sellick Partnership Group Limited,01336800,,Temporary Staff,Legal Sals&Overheads,D01ARDR0011300,
http://statistics.data.gov.uk/id/local-authority/29UP,Tonbridge & Malling Borough Council,8/24/2022,0011044793/3,11044793, 156.00,Hadene Engineering Ltd,00041900,,Other Expenses,Homeless Accommodation,P03AX000009908,
http://statistics.data.gov.uk/id/local-authority/29UP,Tonbridge & Malling Borough Council,8/24/2022,0011044794/3,11044794, 2000.00,Cornerstones Barristers,01359100,,Other Planning Enq - Legal Cos,Legal Sals&Overheads,D01ARDR0044146,
http://statistics.data.gov.uk/id/local-authority/29UP,Tonbridge & Malling Borough Council,8/24/2022,0011044795/3,11044795, 129.00,BML Building Services Ltd,01505000,,BRREP Serv Internal Lighting,PC - General,M15JAP20001957,
http://statistics.data.gov.uk/id/local-authority/29UP,Tonbridge & Malling Borough Council,8/24/2022,0011044796/3,11044796, 79.00,BML Building Services Ltd,01505000,,BRREP Serv Internal Lighting,PC - General,M15JAP20001957,
http://statistics.data.gov.uk/id/local-authority/29UP,Tonbridge & Malling Borough Council,8/24/2022,0011044797/3,11044797, 1956.38,Royal Mail,00086200,,Purchases,Mailsort Stock Account,K37BR000001002,
http://statistics.data.gov.uk/id/local-authority/29UP,Tonbridge & Malling Borough Council,8/24/2022,0011044797/4,11044797, 19.10,Royal Mail,00086200,,Purchases,Mailsort Stock Account,K37BR000001002,
http://statistics.data.gov.uk/id/local-authority/29UP,Tonbridge & Malling Borough Council,8/24/2022,0011044797/5,11044797, 1.75,Royal Mail,00086200,,Purchases,Mailsort Stock Account,K37BR000001002,
http://statistics.data.gov.uk/id/local-authority/29UP,Tonbridge & Malling Borough Council,8/24/2022,0011044798/1,11044798, 180.00,Borough Green Parish Council,00011000,,BRREP IEE Testing,PC - General,M15JAP30001991,
http://statistics.data.gov.uk/id/local-authority/29UP,Tonbridge & Malling Borough Council,8/24/2022,0011044799/3,11044799, 344.83,Initial Washroom Hygiene,00048300,,Laundry - Roller Towels,Cleaning & Security,D21FD000042003,
http://statistics.data.gov.uk/id/local-authority/29UP,Tonbridge & Malling Borough Council,8/24/2022,0011044800/3,11044800, 188.21,Chubb Fire & Security Ltd,00115400,174605362,BRREP Servicing-IntruderAlarm,Tonbridge Swimming Pool,M15HBP20001939,
http://statistics.data.gov.uk/id/local-authority/29UP,Tonbridge & Malling Borough Council,8/24/2022,0011044801/3,11044801, 162.00,Prosec General Security Ltd,00810600,,Office Security,Ton Castle Council Chamber,D21FC000044047,
http://statistics.data.gov.uk/id/local-authority/29UP,Tonbridge & Malling Borough Council,8/24/2022,0011044801/4,11044801, 1198.13,Prosec General Security Ltd,00810600,,Office Security,Cleaning & Security,D21FD000044047,
http://statistics.data.gov.uk/id/local-authority/29UP,Tonbridge & Malling Borough Council,8/24/2022,0011044801/5,11044801, 2983.50,Prosec General Security Ltd,00810600,,Office Security,Tonbridge Gateway,D23TG000044047,
http://statistics.data.gov.uk/id/local-authority/29UP,Tonbridge & Malling Borough Council,8/24/2022,0012008466/1,12008466, 2896.92,Phoenix Software Ltd,00077400,755349015,Professional Fees,Development Management,A01ABENFO44001,410032243
http://statistics.data.gov.uk/id/local-authority/29UP,Tonbridge & Malling Borough Council,8/24/2022,0012008467/3,12008467, 17064.16,Phoenix Software Ltd,00077400,755349015,Software Hire & Support,Information Technology,D27KD000044059,
http://statistics.data.gov.uk/id/local-authority/29UP,Tonbridge & Malling Borough Council,8/24/2022,0021038117/1,21038117, 849.56,Streetmaster (South Wales) Ltd,00222100,,Maintenance of Grounds,Tonbridge Castle Grounds,B22LB000020402,210056818
http://statistics.data.gov.uk/id/local-authority/29UP,Tonbridge & Malling Borough Council,8/24/2022,0021038118/1,21038118, 80.00,SWS Countryside & Landscape,01567200,,Maintenance of Grounds,Tonbridge Castle Grounds,B22LB000020402,210056910
http://statistics.data.gov.uk/id/local-authority/29UP,Tonbridge & Malling Borough Council,8/24/2022,0021038119/1,21038119, 500.00,SWS Countryside & Landscape,01567200,,Health & Safety - Trees,Countryside/Woodland Mgt,B22LG000044045,210056840
http://statistics.data.gov.uk/id/local-authority/29UP,Tonbridge & Malling Borough Council,8/24/2022,0021038120/1,21038120, 300.00,SWS Countryside & Landscape,01567200,,Health & Safety - Trees,Countryside/Woodland Mgt,B22LG000044045,210056879
http://statistics.data.gov.uk/id/local-authority/29UP,Tonbridge & Malling Borough Council,8/24/2022,0021038121/1,21038121, 250.00,SWS Countryside & Landscape,01567200,,Health & Safety - Trees,Countryside/Woodland Mgt,B22LG000044045,210056914
http://statistics.data.gov.uk/id/local-authority/29UP,Tonbridge & Malling Borough Council,8/24/2022,0021038122/1,21038122, 350.00,SWS Countryside & Landscape,01567200,,Health & Safety - Trees,Countryside/Woodland Mgt,B22LG000044045,210056921
http://statistics.data.gov.uk/id/local-authority/29UP,Tonbridge & Malling Borough Council,8/24/2022,0021038123/1,21038123, 550.00,SWS Countryside & Landscape,01567200,,Health & Safety - Trees,Countryside/Woodland Mgt,B22LG000044045,210056927
http://statistics.data.gov.uk/id/local-authority/29UP,Tonbridge & Malling Borough Council,8/24/2022,0021038124/1,21038124, 50.00,Weddle and Co,00714900,,Maintenance of Grounds,Open Spaces & Amenity Areas,B22LE000020402,210056926
http://statistics.data.gov.uk/id/local-authority/29UP,Tonbridge & Malling Borough Council,8/24/2022,0022026978/3,22026978, 245.00,Countrystyle Group,00835900,781981681,Collection of Card,Dry Recycling,H34SR000054008,
http://statistics.data.gov.uk/id/local-authority/29UP,Tonbridge & Malling Borough Council,8/24/2022,0022026979/1,22026979, 8121.90,Lifestyle (KENT) LTD,01348800,,Other Expenses,Disabled Facilities Grant Mand,P03AC000009908,
http://statistics.data.gov.uk/id/local-authority/29UP,Tonbridge & Malling Borough Council,8/24/2022,0022026980/1,22026980, 1281.98,Town & Country Housing Group,01385400,,Other Expenses,Disabled Facilities Grant Mand,P03AC000009908,
http://statistics.data.gov.uk/id/local-authority/29UP,Tonbridge & Malling Borough Council,8/24/2022,0022026981/1,22026981, 1638.72,REDACTED PERSONAL DATA,01766200,,Temporary Accommodation,Homelessness,C01AASYRI44051,
http://statistics.data.gov.uk/id/local-authority/29UP,Tonbridge & Malling Borough Council,8/24/2022,0022026982/1,22026982, 126.75,Language Line,00835100,,Professional Fees,Homelessness,C01AA000044001,
http://statistics.data.gov.uk/id/local-authority/29UP,Tonbridge & Malling Borough Council,8/24/2022,0022026983/1,22026983, 126.80,Language Line,00835100,,Professional Fees,Homelessness,C01AA000044001,
http://statistics.data.gov.uk/id/local-authority/29UP,Tonbridge & Malling Borough Council,8/24/2022,0022026984/1,22026984, 411.20,Language Line,00835100,,Professional Fees,Homelessness,C01AA000044001,
http://statistics.data.gov.uk/id/local-authority/29UP,Tonbridge & Malling Borough Council,8/24/2022,0022026985/1,22026985, 850.00,Britains Limited,01743900,,Repairs & Mtce to Buildings,Homelessness,C01AATNHS20101,220003259
http://statistics.data.gov.uk/id/local-authority/29UP,Tonbridge & Malling Borough Council,8/24/2022,0022026986/1,22026986, 2016.99,Consultants in Care Ltd,01764200,,Temporary Accommodation,Homelessness,C01AA000044051,
http://statistics.data.gov.uk/id/local-authority/29UP,Tonbridge & Malling Borough Council,8/24/2022,0022026986/2,22026986, 19049.35,Consultants in Care Ltd,01764200,,Temporary Accommodation,Homelessness,C01AA000044051,
http://statistics.data.gov.uk/id/local-authority/29UP,Tonbridge & Malling Borough Council,8/24/2022,0022026987/3,22026987, 93.42,E.ON - Next,01790900,,Electricity,Homelessness,C01AATNPR21002,
http://statistics.data.gov.uk/id/local-authority/29UP,Tonbridge & Malling Borough Council,8/24/2022,0022026988/1,22026988, 13860.00,Craemer UK LTD,01616400,,Initial Furniture & Equipment,Refuse Bins Growth/Replacement,P02DA000009906,220003245
http://statistics.data.gov.uk/id/local-authority/29UP,Tonbridge & Malling Borough Council,8/24/2022,0031018847/1,31018847, 170.85,British Telecommunications Plc,00012800,,Maintenance - General,Security Services Management,E09GA000040135,
http://statistics.data.gov.uk/id/local-authority/29UP,Tonbridge & Malling Borough Council,8/24/2022,0031018848/1,31018848, 2300.00,Forge Engineering,00137700,,Premises Repairs & Maintenance,Parking Off-Street,E10HAE00620601,310042841
http://statistics.data.gov.uk/id/local-authority/29UP,Tonbridge & Malling Borough Council,8/24/2022,0031018849/1,31018849, 600.00,Forge Engineering,00137700,,Premises Repairs & Maintenance,Parking Off-Street,E10HAE00620601,310042855
http://statistics.data.gov.uk/id/local-authority/29UP,Tonbridge & Malling Borough Council,8/24/2022,0031018856/1,31018856, 1260.00,Sevenoaks District Council,00089300,,Out of Hours Service,Civil Contingencies,D33NA000045025,
http://statistics.data.gov.uk/id/local-authority/29UP,Tonbridge & Malling Borough Council,8/24/2022,0031018857/1,31018857, 500.00,Traffic Enforcement Centre,00604200,,Adjudication & Enforcement Ser,Parking Off-Street,E10HA000044230,
http://statistics.data.gov.uk/id/local-authority/29UP,Tonbridge & Malling Borough Council,8/24/2022,0031018857/2,31018857, 500.00,Traffic Enforcement Centre,00604200,,Adjudication & Enforcement Ser,Parking On-Street,E10HD000044230,
http://statistics.data.gov.uk/id/local-authority/29UP,Tonbridge & Malling Borough Council,8/24/2022,0032009725/3,32009725, 2590.00,G2 Recruitment Solutions,01786000,,Temporary Staff,Planning Sals&Overheads,D01AJDJ0111300,
http://statistics.data.gov.uk/id/local-authority/29UP,Tonbridge & Malling Borough Council,8/24/2022,0032009726/3,32009726, 3289.43,G2 Recruitment Solutions,01786000,,Temporary Staff,Planning Sals&Overheads,D01AJDJ0111300,
http://statistics.data.gov.uk/id/local-authority/29UP,Tonbridge & Malling Borough Council,8/24/2022,0032009727/1,32009727, 3420.00,Indigo Productions (OCD MEdia Ltd),01860900,203653732,Development of Local Plan,Development of Local Plan,A01AE000044023,320003441
http://statistics.data.gov.uk/id/local-authority/29UP,Tonbridge & Malling Borough Council,8/24/2022,0032009728/3,32009728, 1954.26,The Oyster Partnership,01196400,,Temporary Staff,Planning Sals&Overheads,D01AJDJ0111300,
http://statistics.data.gov.uk/id/local-authority/29UP,Tonbridge & Malling Borough Council,8/24/2022,0032009729/3,32009729, 1986.60,The Oyster Partnership,01196400,,Temporary Staff,Planning Sals&Overheads,D01AJDJ0111300,
http://statistics.data.gov.uk/id/local-authority/29UP,Tonbridge & Malling Borough Council,8/24/2022,0032009730/3,32009730, 1593.83,The Oyster Partnership,01196400,,Temporary Staff,Planning Sals&Overheads,D01AJDJ0111300,
http://statistics.data.gov.uk/id/local-authority/29UP,Tonbridge & Malling Borough Council,8/24/2022,0032009731/1,32009731, 497.85,East Malling & Larkfield Parish Council,00030200,,Payments,S106 - Commuted Sums,M04AD000001001,
http://statistics.data.gov.uk/id/local-authority/29UP,Tonbridge & Malling Borough Council,8/24/2022,0032009732/1,32009732, 1020.00,REDACTED PERSONAL DATA,01843000,,Professional Fees,Development Management,A01AB000044001,
http://statistics.data.gov.uk/id/local-authority/29UP,Tonbridge & Malling Borough Council,8/24/2022,0032009733/1,32009733, 1612.50,Carrington West Limited,01844500,,Temporary Staff,Planning Sals&Overheads,D01AJDJ0111300,
http://statistics.data.gov.uk/id/local-authority/29UP,Tonbridge & Malling Borough Council,8/24/2022,0032009734/1,32009734, 2440.08,CBA,01844700,,Development of Local Plan,Development of Local Plan,A01AE000044023,320003411
http://statistics.data.gov.uk/id/local-authority/29UP,Tonbridge & Malling Borough Council,8/24/2022,0032009735/1,32009735, 100.00,Environment Agency,00418100,,Development of Local Plan,Development of Local Plan,A01AE000044023,320003400
http://statistics.data.gov.uk/id/local-authority/29UP,Tonbridge & Malling Borough Council,8/24/2022,0032009736/1,32009736, 325.00,Planning Officers Society,00079200,,Professional Membership,Planning Sals&Overheads,D01AJ000047001,320003442
http://statistics.data.gov.uk/id/local-authority/29UP,Tonbridge & Malling Borough Council,8/24/2022,0032009737/1,32009737, 3266.00,Vivid Resourcing,01773700,,Temporary Staff,Planning Sals&Overheads,D01AJDJ0111300,
http://statistics.data.gov.uk/id/local-authority/29UP,Tonbridge & Malling Borough Council,8/24/2022,0032009738/1,32009738, 3808.00,Vivid Resourcing,01773700,,Temporary Staff,Planning Sals&Overheads,D01AJDJ0111300,
http://statistics.data.gov.uk/id/local-authority/29UP,Tonbridge & Malling Borough Council,8/24/2022,0032009739/1,32009739, 203.49,KM Media Group Ltd,00053900,,Advertising General,Development Management,A01ABZ99944216,320003435
http://statistics.data.gov.uk/id/local-authority/29UP,Tonbridge & Malling Borough Council,8/24/2022,0032009740/1,32009740, 472.50,Enplan,01244500,,Professional Fees,Planning Policy,A01AFBORO44001,320003303
http://statistics.data.gov.uk/id/local-authority/29UP,Tonbridge & Malling Borough Council,8/24/2022,0032009743/1,32009743, 924.00,REDACTED PERSONAL DATA,01861800,,Application & Appeals,Development Management,A01AB000044194,
http://statistics.data.gov.uk/id/local-authority/29UP,Tonbridge & Malling Borough Council,8/24/2022,0041034636/1,41034636, 200.00,Society of District Council Treasurers,01047700,,Professional Membership,Finance Sals&Overheads,D01AF000047001,
http://statistics.data.gov.uk/id/local-authority/29UP,Tonbridge & Malling Borough Council,8/24/2022,0041034637/1,41034637, 236.56,Morgan Hunt UK Ltd,01086900,,Temporary Staff,Finance Sals&Overheads,D01AFDF1111300,
http://statistics.data.gov.uk/id/local-authority/29UP,Tonbridge & Malling Borough Council,8/24/2022,0041034638/1,41034638, 971.25,Morgan Hunt UK Ltd,01086900,,Temporary Staff,Finance Sals&Overheads,D01AFDF1111300,
http://statistics.data.gov.uk/id/local-authority/29UP,Tonbridge & Malling Borough Council,8/24/2022,0041034639/1,41034639, 463.87,Rundle & Co Ltd,00087200,,Bailiffs Commission,Local Revenue & NNDR Collect,D41QA000044075,
http://statistics.data.gov.uk/id/local-authority/29UP,Tonbridge & Malling Borough Council,8/24/2022,0041034639/3,41034639, 75.00,Rundle & Co Ltd,00087200,,Bailiffs Commission,Local Revenue & NNDR Collect,D41QA000044075,
http://statistics.data.gov.uk/id/local-authority/29UP,Tonbridge & Malling Borough Council,8/24/2022,0041034640/3,41034640, 16.61,Rundle & Co Ltd,00087200,,Bailiffs Commission,Local Revenue & NNDR Collect,D41QA000044075,
http://statistics.data.gov.uk/id/local-authority/29UP,Tonbridge & Malling Borough Council,8/24/2022,0041034643/1,41034643, 35529.74,Cushman & Wakefield,01772600,,Pay to Principal - Angel East,Parking Off-Street,E10HAE00144196,
http://statistics.data.gov.uk/id/local-authority/29UP,Tonbridge & Malling Borough Council,8/24/2022,0041034644/3,41034644, 1263.39,The Oyster Partnership,01196400,,Temporary Staff,Finance Sals&Overheads,D01AFDF1111300,
http://statistics.data.gov.uk/id/local-authority/29UP,Tonbridge & Malling Borough Council,8/24/2022,0051008734/3,51008734, 60.00,Maidstone & Tun Wells NHS Trust,00067100,,Occuptional Health Medicals,Health Care,D10DBDB0313311,
http://statistics.data.gov.uk/id/local-authority/29UP,Tonbridge & Malling Borough Council,8/24/2022,0051008734/4,51008734, 30.00,Maidstone & Tun Wells NHS Trust,00067100,,Occuptional Health Medicals,Health Care,D10DBDC0413311,
http://statistics.data.gov.uk/id/local-authority/29UP,Tonbridge & Malling Borough Council,8/24/2022,0051008734/5,51008734, 30.00,Maidstone & Tun Wells NHS Trust,00067100,,Occuptional Health Medicals,Health Care,D10DBDG3013311,
http://statistics.data.gov.uk/id/local-authority/29UP,Tonbridge & Malling Borough Council,8/24/2022,0051008735/3,51008735, 30.00,Maidstone & Tun Wells NHS Trust,00067100,,Occuptional Health Medicals,Health Care,D10DBDJ0113311,
http://statistics.data.gov.uk/id/local-authority/29UP,Tonbridge & Malling Borough Council,8/24/2022,0051008738/3,51008738, 18.00,Cantium Business Solutions Ltd,01698600,,Criminal Records Bureau Checks,Recruitment Expenses,D10DA000013180,
http://statistics.data.gov.uk/id/local-authority/29UP,Tonbridge & Malling Borough Council,8/24/2022,0051008738/4,51008738, 7.50,Cantium Business Solutions Ltd,01698600,,Criminal Records Bureau Checks,Recruitment Expenses,D10DA000013180,
http://statistics.data.gov.uk/id/local-authority/29UP,Tonbridge & Malling Borough Council,8/25/2022,0041034654/1,41034654, 68.00,National Westminster Bank Plc,00069400,,Direct Debit / Bank Charges,Local Revenue & NNDR Collect,D41QA000044079,
http://statistics.data.gov.uk/id/local-authority/29UP,Tonbridge & Malling Borough Council,8/25/2022,0041034655/1,41034655, 200.00,National Westminster Bank Plc,00069400,,Direct Debit / Bank Charges,Local Revenue & NNDR Collect,D41QA000044079,
http://statistics.data.gov.uk/id/local-authority/29UP,Tonbridge & Malling Borough Council,8/31/2022,0012008468/3,12008468, 227.36,SureCloud Limited,01155300,,Consultancy Fees,Information Technology,D27KD000044011,
http://statistics.data.gov.uk/id/local-authority/29UP,Tonbridge & Malling Borough Council,8/31/2022,0021038125/1,21038125, 208570.48,Alliance Leisure Services Ltd,01781100,,Contract Payments,LLCP Facility Improv,P05FF000009904,
http://statistics.data.gov.uk/id/local-authority/29UP,Tonbridge & Malling Borough Council,8/31/2022,0021038126/1,21038126, 96.00,South East Water Ltd,01330300,,Maintenance of Grounds,Haysden Country Park,B22LC000020402,210056851
http://statistics.data.gov.uk/id/local-authority/29UP,Tonbridge & Malling Borough Council,8/31/2022,0021038127/3,21038127, 12.91,B&Q/Screwfix Direct(TradeUKAccount),00141300,,Maintenance of Grounds,Sports Grounds,B13ET000020402,
http://statistics.data.gov.uk/id/local-authority/29UP,Tonbridge & Malling Borough Council,8/31/2022,0021038128/10,21038128, 4577.19,Landscape Services Ltd,00057600,,Grounds Maintenance Contract,Cemetery,B26MP000050103,
http://statistics.data.gov.uk/id/local-authority/29UP,Tonbridge & Malling Borough Council,8/31/2022,0021038128/11,21038128, 216.11,Landscape Services Ltd,00057600,,Grounds Maintenance Contract,Churchyards St Peter & St Paul,B28MX000050103,
http://statistics.data.gov.uk/id/local-authority/29UP,Tonbridge & Malling Borough Council,8/31/2022,0021038128/12,21038128, 157.16,Landscape Services Ltd,00057600,,Grounds Maintenance Contract,Churchyards St Stephens,B28MY000050103,
http://statistics.data.gov.uk/id/local-authority/29UP,Tonbridge & Malling Borough Council,8/31/2022,0021038128/13,21038128, 173.71,Landscape Services Ltd,00057600,,Grounds Maintenance Contract,Grounds,D21FF000050103,
http://statistics.data.gov.uk/id/local-authority/29UP,Tonbridge & Malling Borough Council,8/31/2022,0021038128/14,21038128, 329.46,Landscape Services Ltd,00057600,,Maintenance of Grounds,Parking Off-Street,E10HA000020402,
http://statistics.data.gov.uk/id/local-authority/29UP,Tonbridge & Malling Borough Council,8/31/2022,0021038128/15,21038128, 1033.20,Landscape Services Ltd,00057600,,Maintenance of Grounds,Parking Off-Street,E10HAE00120402,
http://statistics.data.gov.uk/id/local-authority/29UP,Tonbridge & Malling Borough Council,8/31/2022,0021038128/16,21038128, 98.11,Landscape Services Ltd,00057600,,Maintenance of Grounds,Parking Off-Street,E10HAE00220402,
http://statistics.data.gov.uk/id/local-authority/29UP,Tonbridge & Malling Borough Council,8/31/2022,0021038128/17,21038128, 88.97,Landscape Services Ltd,00057600,,Maintenance of Grounds,Parking Off-Street,E10HAE00320402,
http://statistics.data.gov.uk/id/local-authority/29UP,Tonbridge & Malling Borough Council,8/31/2022,0021038128/18,21038128, 22.19,Landscape Services Ltd,00057600,,Maintenance of Grounds,Parking Off-Street,E10HAE00420402,
http://statistics.data.gov.uk/id/local-authority/29UP,Tonbridge & Malling Borough Council,8/31/2022,0021038128/19,21038128, 0.57,Landscape Services Ltd,00057600,,Maintenance of Grounds,Parking Off-Street,E10HAE00520402,
http://statistics.data.gov.uk/id/local-authority/29UP,Tonbridge & Malling Borough Council,8/31/2022,0021038128/20,21038128, 62.11,Landscape Services Ltd,00057600,,Maintenance of Grounds,Parking Off-Street,E10HAE00620402,
http://statistics.data.gov.uk/id/local-authority/29UP,Tonbridge & Malling Borough Council,8/31/2022,0021038128/21,21038128, 145.01,Landscape Services Ltd,00057600,,Maintenance of Grounds,Parking Off-Street,E10HAE01020402,
http://statistics.data.gov.uk/id/local-authority/29UP,Tonbridge & Malling Borough Council,8/31/2022,0021038128/22,21038128, 3.21,Landscape Services Ltd,00057600,,Maintenance of Grounds,Parking Off-Street,E10HAE01220402,
http://statistics.data.gov.uk/id/local-authority/29UP,Tonbridge & Malling Borough Council,8/31/2022,0021038128/23,21038128, 7.09,Landscape Services Ltd,00057600,,Maintenance of Grounds,Parking Off-Street,E10HAE01320402,
http://statistics.data.gov.uk/id/local-authority/29UP,Tonbridge & Malling Borough Council,8/31/2022,0021038128/24,21038128, 29.50,Landscape Services Ltd,00057600,,Maintenance of Grounds,Parking Off-Street,E10HAE01520402,
http://statistics.data.gov.uk/id/local-authority/29UP,Tonbridge & Malling Borough Council,8/31/2022,0021038128/25,21038128, 57.64,Landscape Services Ltd,00057600,,Maintenance of Grounds,Parking Off-Street,E10HAE01620402,
http://statistics.data.gov.uk/id/local-authority/29UP,Tonbridge & Malling Borough Council,8/31/2022,0021038128/26,21038128, 23.42,Landscape Services Ltd,00057600,,Maintenance of Grounds,Parking Off-Street,E10HAE01720402,
http://statistics.data.gov.uk/id/local-authority/29UP,Tonbridge & Malling Borough Council,8/31/2022,0021038128/27,21038128, 14.39,Landscape Services Ltd,00057600,,Maintenance of Grounds,Parking Off-Street,E10HAE02120402,
http://statistics.data.gov.uk/id/local-authority/29UP,Tonbridge & Malling Borough Council,8/31/2022,0021038128/28,21038128, 22.91,Landscape Services Ltd,00057600,,Maintenance of Grounds,Parking Off-Street,E10HAE02320402,
http://statistics.data.gov.uk/id/local-authority/29UP,Tonbridge & Malling Borough Council,8/31/2022,0021038128/29,21038128, 87.83,Landscape Services Ltd,00057600,,Maintenance of Grounds,Parking Off-Street,E10HAE02820402,
http://statistics.data.gov.uk/id/local-authority/29UP,Tonbridge & Malling Borough Council,8/31/2022,0021038128/3,21038128, 21497.43,Landscape Services Ltd,00057600,,Grounds Maintenance Contract,Sports Grounds,B13ET000050103,
http://statistics.data.gov.uk/id/local-authority/29UP,Tonbridge & Malling Borough Council,8/31/2022,0021038128/30,21038128, 23.78,Landscape Services Ltd,00057600,,Maintenance of Grounds,Parking Off-Street,E10HAE04020402,
http://statistics.data.gov.uk/id/local-authority/29UP,Tonbridge & Malling Borough Council,8/31/2022,0021038128/31,21038128, 78.42,Landscape Services Ltd,00057600,,Maintenance of Grounds,Parking Off-Street,E10HAE04520402,
http://statistics.data.gov.uk/id/local-authority/29UP,Tonbridge & Malling Borough Council,8/31/2022,0021038128/4,21038128, 7461.13,Landscape Services Ltd,00057600,,Grounds Maintenance Contract,Tonbridge Castle Grounds,B22LB000050103,
http://statistics.data.gov.uk/id/local-authority/29UP,Tonbridge & Malling Borough Council,8/31/2022,0021038128/5,21038128, 56.77,Landscape Services Ltd,00057600,,Trade Refuse Charges,Haysden Country Park,B22LC000044008,
http://statistics.data.gov.uk/id/local-authority/29UP,Tonbridge & Malling Borough Council,8/31/2022,0021038128/6,21038128, 487.02,Landscape Services Ltd,00057600,,Litter Collection,Haysden Country Park,B22LC000044061,
http://statistics.data.gov.uk/id/local-authority/29UP,Tonbridge & Malling Borough Council,8/31/2022,0021038128/7,21038128, 1674.08,Landscape Services Ltd,00057600,,Grounds Maintenance Contract,Haysden Country Park,B22LC000050103,
http://statistics.data.gov.uk/id/local-authority/29UP,Tonbridge & Malling Borough Council,8/31/2022,0021038128/8,21038128, 583.97,Landscape Services Ltd,00057600,,Grounds Maintenance Contract,Haysden Country Park,B22LC000050103,
http://statistics.data.gov.uk/id/local-authority/29UP,Tonbridge & Malling Borough Council,8/31/2022,0021038128/9,21038128, 12393.51,Landscape Services Ltd,00057600,,Grounds Maintenance Contract,Open Spaces & Amenity Areas,B22LE000050103,
http://statistics.data.gov.uk/id/local-authority/29UP,Tonbridge & Malling Borough Council,8/31/2022,0021038129/1,21038129, 259.54,Landscape Services Ltd,00057600,,Maintenance of Grounds,Sports Grounds,B13ET000020402,210056774
http://statistics.data.gov.uk/id/local-authority/29UP,Tonbridge & Malling Borough Council,8/31/2022,0021038130/3,21038130, 4175.00,Tonbridge & Malling Leisure Trust,01469100,,Initial Furniture & Equipment,Capital Renewals Leisure,P05KGBC0409906,
http://statistics.data.gov.uk/id/local-authority/29UP,Tonbridge & Malling Borough Council,8/31/2022,0021038131/1,21038131, 1950.00,Robert Graham T/A Sustainable Land Manag,00040700,,Other Expenses,LLCP Facility Improv,P05FF000009908,210056854
http://statistics.data.gov.uk/id/local-authority/29UP,Tonbridge & Malling Borough Council,8/31/2022,0021038132/3,21038132, 219.80,KCC - L.A.S.E.R Commercial Services ,00184300,,Electricity,Open Spaces & Amenity Areas,B22LE000021002,
http://statistics.data.gov.uk/id/local-authority/29UP,Tonbridge & Malling Borough Council,8/31/2022,0021038133/1,21038133, 32.15,Scottish Water Business Stream Ltd,01641100,,Sewerage Charges,Cemetery,B26MP000024003,
http://statistics.data.gov.uk/id/local-authority/29UP,Tonbridge & Malling Borough Council,8/31/2022,0022026989/10,22026989, 72.20,Urbaser LTD,01718800,,Maintenance of Grounds,Leybourne Lakes Country Park,B22LK000020402,
http://statistics.data.gov.uk/id/local-authority/29UP,Tonbridge & Malling Borough Council,8/31/2022,0022026989/11,22026989, 26.13,Urbaser LTD,01718800,,Maintenance of Grounds,Leybourne Lakes Country Park,B22LK000020402,
http://statistics.data.gov.uk/id/local-authority/29UP,Tonbridge & Malling Borough Council,8/31/2022,0022026989/12,22026989, 60.22,Urbaser LTD,01718800,,Maintenance of Grounds,Grounds,D21FF000020402,
http://statistics.data.gov.uk/id/local-authority/29UP,Tonbridge & Malling Borough Council,8/31/2022,0022026989/13,22026989, 184.19,Urbaser LTD,01718800,,Maintenance of Grounds,Parking Off-Street,E10HA000020402,
http://statistics.data.gov.uk/id/local-authority/29UP,Tonbridge & Malling Borough Council,8/31/2022,0022026989/14,22026989, 4686.59,Urbaser LTD,01718800,,Maintenance of Grounds,Parking Off-Street,E10HAE00120402,
http://statistics.data.gov.uk/id/local-authority/29UP,Tonbridge & Malling Borough Council,8/31/2022,0022026989/15,22026989, 504.84,Urbaser LTD,01718800,,Maintenance of Grounds,Parking Off-Street,E10HAE00220402,
http://statistics.data.gov.uk/id/local-authority/29UP,Tonbridge & Malling Borough Council,8/31/2022,0022026989/16,22026989, 315.82,Urbaser LTD,01718800,,Maintenance of Grounds,Parking Off-Street,E10HAE00320402,
http://statistics.data.gov.uk/id/local-authority/29UP,Tonbridge & Malling Borough Council,8/31/2022,0022026989/17,22026989, 1651.73,Urbaser LTD,01718800,,Maintenance of Grounds,Parking Off-Street,E10HAE00420402,
http://statistics.data.gov.uk/id/local-authority/29UP,Tonbridge & Malling Borough Council,8/31/2022,0022026989/18,22026989, 274.48,Urbaser LTD,01718800,,Maintenance of Grounds,Parking Off-Street,E10HAE00520402,
http://statistics.data.gov.uk/id/local-authority/29UP,Tonbridge & Malling Borough Council,8/31/2022,0022026989/19,22026989, 1023.71,Urbaser LTD,01718800,,Maintenance of Grounds,Parking Off-Street,E10HAE00620402,
http://statistics.data.gov.uk/id/local-authority/29UP,Tonbridge & Malling Borough Council,8/31/2022,0022026989/20,22026989, 8.63,Urbaser LTD,01718800,,Maintenance of Grounds,Parking Off-Street,E10HAE00820402,
http://statistics.data.gov.uk/id/local-authority/29UP,Tonbridge & Malling Borough Council,8/31/2022,0022026989/21,22026989, 8.52,Urbaser LTD,01718800,,Maintenance of Grounds,Parking Off-Street,E10HAE00920402,
http://statistics.data.gov.uk/id/local-authority/29UP,Tonbridge & Malling Borough Council,8/31/2022,0022026989/22,22026989, 20.23,Urbaser LTD,01718800,,Maintenance of Grounds,Parking Off-Street,E10HAE01020402,
http://statistics.data.gov.uk/id/local-authority/29UP,Tonbridge & Malling Borough Council,8/31/2022,0022026989/23,22026989, 96.12,Urbaser LTD,01718800,,Maintenance of Grounds,Parking Off-Street,E10HAE01120402,
http://statistics.data.gov.uk/id/local-authority/29UP,Tonbridge & Malling Borough Council,8/31/2022,0022026989/24,22026989, 60.48,Urbaser LTD,01718800,,Maintenance of Grounds,Parking Off-Street,E10HAE01220402,
http://statistics.data.gov.uk/id/local-authority/29UP,Tonbridge & Malling Borough Council,8/31/2022,0022026989/25,22026989, 1146.81,Urbaser LTD,01718800,,Maintenance of Grounds,Parking Off-Street,E10HAE01320402,
http://statistics.data.gov.uk/id/local-authority/29UP,Tonbridge & Malling Borough Council,8/31/2022,0022026989/26,22026989, 87.22,Urbaser LTD,01718800,,Maintenance of Grounds,Parking Off-Street,E10HAE01420402,
http://statistics.data.gov.uk/id/local-authority/29UP,Tonbridge & Malling Borough Council,8/31/2022,0022026989/27,22026989, 268.78,Urbaser LTD,01718800,,Maintenance of Grounds,Parking Off-Street,E10HAE01520402,
http://statistics.data.gov.uk/id/local-authority/29UP,Tonbridge & Malling Borough Council,8/31/2022,0022026989/28,22026989, 289.08,Urbaser LTD,01718800,,Maintenance of Grounds,Parking Off-Street,E10HAE01620402,
http://statistics.data.gov.uk/id/local-authority/29UP,Tonbridge & Malling Borough Council,8/31/2022,0022026989/29,22026989, 853.41,Urbaser LTD,01718800,,Maintenance of Grounds,Parking Off-Street,E10HAE01720402,
http://statistics.data.gov.uk/id/local-authority/29UP,Tonbridge & Malling Borough Council,8/31/2022,0022026989/3,22026989, 387.37,Urbaser LTD,01718800,,Maintenance of Grounds,Sports Grounds,B13ET000020402,
http://statistics.data.gov.uk/id/local-authority/29UP,Tonbridge & Malling Borough Council,8/31/2022,0022026989/30,22026989, 244.95,Urbaser LTD,01718800,,Maintenance of Grounds,Parking Off-Street,E10HAE01920402,
http://statistics.data.gov.uk/id/local-authority/29UP,Tonbridge & Malling Borough Council,8/31/2022,0022026989/31,22026989, 538.07,Urbaser LTD,01718800,,Maintenance of Grounds,Parking Off-Street,E10HAE02020402,
http://statistics.data.gov.uk/id/local-authority/29UP,Tonbridge & Malling Borough Council,8/31/2022,0022026989/32,22026989, 18.68,Urbaser LTD,01718800,,Maintenance of Grounds,Parking Off-Street,E10HAE02120402,
http://statistics.data.gov.uk/id/local-authority/29UP,Tonbridge & Malling Borough Council,8/31/2022,0022026989/33,22026989, 123.00,Urbaser LTD,01718800,,Maintenance of Grounds,Parking Off-Street,E10HAE02220402,
http://statistics.data.gov.uk/id/local-authority/29UP,Tonbridge & Malling Borough Council,8/31/2022,0022026989/34,22026989, 1034.02,Urbaser LTD,01718800,,Maintenance of Grounds,Parking Off-Street,E10HAE02320402,
http://statistics.data.gov.uk/id/local-authority/29UP,Tonbridge & Malling Borough Council,8/31/2022,0022026989/35,22026989, 2.67,Urbaser LTD,01718800,,Maintenance of Grounds,Parking Off-Street,E10HAE02720402,
http://statistics.data.gov.uk/id/local-authority/29UP,Tonbridge & Malling Borough Council,8/31/2022,0022026989/36,22026989, 375.72,Urbaser LTD,01718800,,Maintenance of Grounds,Parking Off-Street,E10HAE02820402,
http://statistics.data.gov.uk/id/local-authority/29UP,Tonbridge & Malling Borough Council,8/31/2022,0022026989/37,22026989, 6.77,Urbaser LTD,01718800,,Maintenance of Grounds,Parking Off-Street,E10HAE02920402,
http://statistics.data.gov.uk/id/local-authority/29UP,Tonbridge & Malling Borough Council,8/31/2022,0022026989/38,22026989, 39.82,Urbaser LTD,01718800,,Maintenance of Grounds,Parking Off-Street,E10HAE03020402,
http://statistics.data.gov.uk/id/local-authority/29UP,Tonbridge & Malling Borough Council,8/31/2022,0022026989/39,22026989, 33.88,Urbaser LTD,01718800,,Maintenance of Grounds,Parking Off-Street,E10HAE03120402,
http://statistics.data.gov.uk/id/local-authority/29UP,Tonbridge & Malling Borough Council,8/31/2022,0022026989/4,22026989, 82.44,Urbaser LTD,01718800,,Maintenance of Grounds,Poult Wood Golf Centre,B21KE000020402,
http://statistics.data.gov.uk/id/local-authority/29UP,Tonbridge & Malling Borough Council,8/31/2022,0022026989/40,22026989, 718.40,Urbaser LTD,01718800,,Maintenance of Grounds,Parking Off-Street,E10HAE04020402,
http://statistics.data.gov.uk/id/local-authority/29UP,Tonbridge & Malling Borough Council,8/31/2022,0022026989/41,22026989, 498.26,Urbaser LTD,01718800,,Maintenance of Grounds,Parking Off-Street,E10HAE04220402,
http://statistics.data.gov.uk/id/local-authority/29UP,Tonbridge & Malling Borough Council,8/31/2022,0022026989/42,22026989, 1430.15,Urbaser LTD,01718800,,Maintenance of Grounds,Parking Off-Street,E10HAE04520402,
http://statistics.data.gov.uk/id/local-authority/29UP,Tonbridge & Malling Borough Council,8/31/2022,0022026989/43,22026989, 90830.52,Urbaser LTD,01718800,,Contract Payments,Refuse Collection,H20SA000054001,
http://statistics.data.gov.uk/id/local-authority/29UP,Tonbridge & Malling Borough Council,8/31/2022,0022026989/44,22026989, 946.15,Urbaser LTD,01718800,,Responsible Dog Ownership,Street Scene,H23SD000044050,
http://statistics.data.gov.uk/id/local-authority/29UP,Tonbridge & Malling Borough Council,8/31/2022,0022026989/45,22026989, 56523.64,Urbaser LTD,01718800,,Contract Payments,Street Scene,H23SD000054001,
http://statistics.data.gov.uk/id/local-authority/29UP,Tonbridge & Malling Borough Council,8/31/2022,0022026989/46,22026989, 356.30,Urbaser LTD,01718800,,General Maintenance,Dry Recycling,H34SR000020301,
http://statistics.data.gov.uk/id/local-authority/29UP,Tonbridge & Malling Borough Council,8/31/2022,0022026989/47,22026989, 82536.93,Urbaser LTD,01718800,,Contract Payments,Dry Recycling,H34SR000054001,
http://statistics.data.gov.uk/id/local-authority/29UP,Tonbridge & Malling Borough Council,8/31/2022,0022026989/48,22026989, 4157.10,Urbaser LTD,01718800,,Bring Sites Mixed Recycling,Dry Recycling,H34SR000054026,
http://statistics.data.gov.uk/id/local-authority/29UP,Tonbridge & Malling Borough Council,8/31/2022,0022026989/49,22026989, 32295.84,Urbaser LTD,01718800,,Contract Payments,Food Recycling,H34SS000054001,
http://statistics.data.gov.uk/id/local-authority/29UP,Tonbridge & Malling Borough Council,8/31/2022,0022026989/5,22026989, 34.02,Urbaser LTD,01718800,,Maintenance of Grounds,Haysden Country Park,B22LC000020402,
http://statistics.data.gov.uk/id/local-authority/29UP,Tonbridge & Malling Borough Council,8/31/2022,0022026989/50,22026989, 17888.09,Urbaser LTD,01718800,,Contract Payments,Garden Waste Recycling,H34ST000054001,
http://statistics.data.gov.uk/id/local-authority/29UP,Tonbridge & Malling Borough Council,8/31/2022,0022026989/6,22026989, 26.13,Urbaser LTD,01718800,,Dog Bin Emptying,Haysden Country Park,B22LC000044012,
http://statistics.data.gov.uk/id/local-authority/29UP,Tonbridge & Malling Borough Council,8/31/2022,0022026989/7,22026989, 740.63,Urbaser LTD,01718800,,Maintenance of Grounds,Open Spaces & Amenity Areas,B22LE000020402,
http://statistics.data.gov.uk/id/local-authority/29UP,Tonbridge & Malling Borough Council,8/31/2022,0022026989/8,22026989, 13.93,Urbaser LTD,01718800,,Dog Bin Emptying,Open Spaces & Amenity Areas,B22LE000044012,
http://statistics.data.gov.uk/id/local-authority/29UP,Tonbridge & Malling Borough Council,8/31/2022,0022026989/9,22026989, 24.04,Urbaser LTD,01718800,,Maintenance of Grounds,Countryside/Woodland Mgt,B22LG000020402,
http://statistics.data.gov.uk/id/local-authority/29UP,Tonbridge & Malling Borough Council,8/31/2022,0022026990/3,22026990, 245.00,Countrystyle Group,00835900,781981681,Collection of Card,Dry Recycling,H34SR000054008,
http://statistics.data.gov.uk/id/local-authority/29UP,Tonbridge & Malling Borough Council,8/31/2022,0022026992/3,22026992, 724.68,Peoplesafe -  Skyguard Ltd,01779900,,Health General,Planning Sals&Overheads,D01AJ000044049,
http://statistics.data.gov.uk/id/local-authority/29UP,Tonbridge & Malling Borough Council,8/31/2022,0022026992/4,22026992, 65.88,Peoplesafe -  Skyguard Ltd,01779900,,Health General,Planning Sals&Overheads,D01AJDJ0244049,
http://statistics.data.gov.uk/id/local-authority/29UP,Tonbridge & Malling Borough Council,8/31/2022,0022026992/5,22026992, 329.40,Peoplesafe -  Skyguard Ltd,01779900,,Health General,Env Hlth & Hsg Sals&Overheads,D01AVDV0144049,
http://statistics.data.gov.uk/id/local-authority/29UP,Tonbridge & Malling Borough Council,8/31/2022,0022026992/6,22026992, 65.88,Peoplesafe -  Skyguard Ltd,01779900,,Health General,Env Hlth & Hsg Sals&Overheads,D01AVDV0344049,
http://statistics.data.gov.uk/id/local-authority/29UP,Tonbridge & Malling Borough Council,8/31/2022,0022026992/7,22026992, 131.76,Peoplesafe -  Skyguard Ltd,01779900,,Health General,Env Hlth & Hsg Sals&Overheads,D01AVDV0744049,
http://statistics.data.gov.uk/id/local-authority/29UP,Tonbridge & Malling Borough Council,8/31/2022,0022026992/8,22026992, 329.40,Peoplesafe -  Skyguard Ltd,01779900,,Health General,Env Hlth & Hsg Sals&Overheads,D01AVDV0944049,
http://statistics.data.gov.uk/id/local-authority/29UP,Tonbridge & Malling Borough Council,8/31/2022,0022026993/3,22026993, 932.54,Peoplesafe -  Skyguard Ltd,01779900,,Health General,Technical Sals&Overheads,D01AEDE0144049,
http://statistics.data.gov.uk/id/local-authority/29UP,Tonbridge & Malling Borough Council,8/31/2022,0022026993/4,22026993, 932.54,Peoplesafe -  Skyguard Ltd,01779900,,Health General,Technical Sals&Overheads,D01AEDE0444049,
http://statistics.data.gov.uk/id/local-authority/29UP,Tonbridge & Malling Borough Council,8/31/2022,0022026993/5,22026993, 339.10,Peoplesafe -  Skyguard Ltd,01779900,,Health General,St Scene & Leis Sals&Overheads,D01AGDG0144049,
http://statistics.data.gov.uk/id/local-authority/29UP,Tonbridge & Malling Borough Council,8/31/2022,0022026993/6,22026993, 339.10,Peoplesafe -  Skyguard Ltd,01779900,,Health General,St Scene & Leis Sals&Overheads,D01AGDG2044049,
http://statistics.data.gov.uk/id/local-authority/29UP,Tonbridge & Malling Borough Council,8/31/2022,0022026994/10,22026994, 72.20,Urbaser LTD,01718800,,Maintenance of Grounds,Leybourne Lakes Country Park,B22LK000020402,
http://statistics.data.gov.uk/id/local-authority/29UP,Tonbridge & Malling Borough Council,8/31/2022,0022026994/11,22026994, 26.13,Urbaser LTD,01718800,,Maintenance of Grounds,Leybourne Lakes Country Park,B22LK000020402,
http://statistics.data.gov.uk/id/local-authority/29UP,Tonbridge & Malling Borough Council,8/31/2022,0022026994/12,22026994, 60.22,Urbaser LTD,01718800,,Maintenance of Grounds,Grounds,D21FF000020402,
http://statistics.data.gov.uk/id/local-authority/29UP,Tonbridge & Malling Borough Council,8/31/2022,0022026994/13,22026994, 184.19,Urbaser LTD,01718800,,Maintenance of Grounds,Parking Off-Street,E10HA000020402,
http://statistics.data.gov.uk/id/local-authority/29UP,Tonbridge & Malling Borough Council,8/31/2022,0022026994/14,22026994, 4686.59,Urbaser LTD,01718800,,Maintenance of Grounds,Parking Off-Street,E10HAE00120402,
http://statistics.data.gov.uk/id/local-authority/29UP,Tonbridge & Malling Borough Council,8/31/2022,0022026994/15,22026994, 504.84,Urbaser LTD,01718800,,Maintenance of Grounds,Parking Off-Street,E10HAE00220402,
http://statistics.data.gov.uk/id/local-authority/29UP,Tonbridge & Malling Borough Council,8/31/2022,0022026994/16,22026994, 315.82,Urbaser LTD,01718800,,Maintenance of Grounds,Parking Off-Street,E10HAE00320402,
http://statistics.data.gov.uk/id/local-authority/29UP,Tonbridge & Malling Borough Council,8/31/2022,0022026994/17,22026994, 1651.73,Urbaser LTD,01718800,,Maintenance of Grounds,Parking Off-Street,E10HAE00420402,
http://statistics.data.gov.uk/id/local-authority/29UP,Tonbridge & Malling Borough Council,8/31/2022,0022026994/18,22026994, 274.48,Urbaser LTD,01718800,,Maintenance of Grounds,Parking Off-Street,E10HAE00520402,
http://statistics.data.gov.uk/id/local-authority/29UP,Tonbridge & Malling Borough Council,8/31/2022,0022026994/19,22026994, 1023.71,Urbaser LTD,01718800,,Maintenance of Grounds,Parking Off-Street,E10HAE00620402,
http://statistics.data.gov.uk/id/local-authority/29UP,Tonbridge & Malling Borough Council,8/31/2022,0022026994/20,22026994, 8.63,Urbaser LTD,01718800,,Maintenance of Grounds,Parking Off-Street,E10HAE00820402,
http://statistics.data.gov.uk/id/local-authority/29UP,Tonbridge & Malling Borough Council,8/31/2022,0022026994/21,22026994, 8.52,Urbaser LTD,01718800,,Maintenance of Grounds,Parking Off-Street,E10HAE00920402,
http://statistics.data.gov.uk/id/local-authority/29UP,Tonbridge & Malling Borough Council,8/31/2022,0022026994/22,22026994, 20.23,Urbaser LTD,01718800,,Maintenance of Grounds,Parking Off-Street,E10HAE01020402,
http://statistics.data.gov.uk/id/local-authority/29UP,Tonbridge & Malling Borough Council,8/31/2022,0022026994/23,22026994, 96.12,Urbaser LTD,01718800,,Maintenance of Grounds,Parking Off-Street,E10HAE01120402,
http://statistics.data.gov.uk/id/local-authority/29UP,Tonbridge & Malling Borough Council,8/31/2022,0022026994/24,22026994, 60.48,Urbaser LTD,01718800,,Maintenance of Grounds,Parking Off-Street,E10HAE01220402,
http://statistics.data.gov.uk/id/local-authority/29UP,Tonbridge & Malling Borough Council,8/31/2022,0022026994/25,22026994, 1146.81,Urbaser LTD,01718800,,Maintenance of Grounds,Parking Off-Street,E10HAE01320402,
http://statistics.data.gov.uk/id/local-authority/29UP,Tonbridge & Malling Borough Council,8/31/2022,0022026994/26,22026994, 87.22,Urbaser LTD,01718800,,Maintenance of Grounds,Parking Off-Street,E10HAE01420402,
http://statistics.data.gov.uk/id/local-authority/29UP,Tonbridge & Malling Borough Council,8/31/2022,0022026994/27,22026994, 268.78,Urbaser LTD,01718800,,Maintenance of Grounds,Parking Off-Street,E10HAE01520402,
http://statistics.data.gov.uk/id/local-authority/29UP,Tonbridge & Malling Borough Council,8/31/2022,0022026994/28,22026994, 289.08,Urbaser LTD,01718800,,Maintenance of Grounds,Parking Off-Street,E10HAE01620402,
http://statistics.data.gov.uk/id/local-authority/29UP,Tonbridge & Malling Borough Council,8/31/2022,0022026994/29,22026994, 853.41,Urbaser LTD,01718800,,Maintenance of Grounds,Parking Off-Street,E10HAE01720402,
http://statistics.data.gov.uk/id/local-authority/29UP,Tonbridge & Malling Borough Council,8/31/2022,0022026994/3,22026994, 387.37,Urbaser LTD,01718800,,Maintenance of Grounds,Sports Grounds,B13ET000020402,
http://statistics.data.gov.uk/id/local-authority/29UP,Tonbridge & Malling Borough Council,8/31/2022,0022026994/30,22026994, 244.95,Urbaser LTD,01718800,,Maintenance of Grounds,Parking Off-Street,E10HAE01920402,
http://statistics.data.gov.uk/id/local-authority/29UP,Tonbridge & Malling Borough Council,8/31/2022,0022026994/31,22026994, 538.07,Urbaser LTD,01718800,,Maintenance of Grounds,Parking Off-Street,E10HAE02020402,
http://statistics.data.gov.uk/id/local-authority/29UP,Tonbridge & Malling Borough Council,8/31/2022,0022026994/32,22026994, 18.68,Urbaser LTD,01718800,,Maintenance of Grounds,Parking Off-Street,E10HAE02120402,
http://statistics.data.gov.uk/id/local-authority/29UP,Tonbridge & Malling Borough Council,8/31/2022,0022026994/33,22026994, 123.00,Urbaser LTD,01718800,,Maintenance of Grounds,Parking Off-Street,E10HAE02220402,
http://statistics.data.gov.uk/id/local-authority/29UP,Tonbridge & Malling Borough Council,8/31/2022,0022026994/34,22026994, 1034.02,Urbaser LTD,01718800,,Maintenance of Grounds,Parking Off-Street,E10HAE02320402,
http://statistics.data.gov.uk/id/local-authority/29UP,Tonbridge & Malling Borough Council,8/31/2022,0022026994/35,22026994, 2.67,Urbaser LTD,01718800,,Maintenance of Grounds,Parking Off-Street,E10HAE02720402,
http://statistics.data.gov.uk/id/local-authority/29UP,Tonbridge & Malling Borough Council,8/31/2022,0022026994/36,22026994, 375.72,Urbaser LTD,01718800,,Maintenance of Grounds,Parking Off-Street,E10HAE02820402,
http://statistics.data.gov.uk/id/local-authority/29UP,Tonbridge & Malling Borough Council,8/31/2022,0022026994/37,22026994, 6.77,Urbaser LTD,01718800,,Maintenance of Grounds,Parking Off-Street,E10HAE02920402,
http://statistics.data.gov.uk/id/local-authority/29UP,Tonbridge & Malling Borough Council,8/31/2022,0022026994/38,22026994, 39.82,Urbaser LTD,01718800,,Maintenance of Grounds,Parking Off-Street,E10HAE03020402,
http://statistics.data.gov.uk/id/local-authority/29UP,Tonbridge & Malling Borough Council,8/31/2022,0022026994/39,22026994, 33.88,Urbaser LTD,01718800,,Maintenance of Grounds,Parking Off-Street,E10HAE03120402,
http://statistics.data.gov.uk/id/local-authority/29UP,Tonbridge & Malling Borough Council,8/31/2022,0022026994/4,22026994, 82.44,Urbaser LTD,01718800,,Maintenance of Grounds,Poult Wood Golf Centre,B21KE000020402,
http://statistics.data.gov.uk/id/local-authority/29UP,Tonbridge & Malling Borough Council,8/31/2022,0022026994/40,22026994, 718.40,Urbaser LTD,01718800,,Maintenance of Grounds,Parking Off-Street,E10HAE04020402,
http://statistics.data.gov.uk/id/local-authority/29UP,Tonbridge & Malling Borough Council,8/31/2022,0022026994/41,22026994, 498.26,Urbaser LTD,01718800,,Maintenance of Grounds,Parking Off-Street,E10HAE04220402,
http://statistics.data.gov.uk/id/local-authority/29UP,Tonbridge & Malling Borough Council,8/31/2022,0022026994/42,22026994, 1430.15,Urbaser LTD,01718800,,Maintenance of Grounds,Parking Off-Street,E10HAE04520402,
http://statistics.data.gov.uk/id/local-authority/29UP,Tonbridge & Malling Borough Council,8/31/2022,0022026994/43,22026994, 90830.52,Urbaser LTD,01718800,,Contract Payments,Refuse Collection,H20SA000054001,
http://statistics.data.gov.uk/id/local-authority/29UP,Tonbridge & Malling Borough Council,8/31/2022,0022026994/44,22026994, 946.15,Urbaser LTD,01718800,,Responsible Dog Ownership,Street Scene,H23SD000044050,
http://statistics.data.gov.uk/id/local-authority/29UP,Tonbridge & Malling Borough Council,8/31/2022,0022026994/45,22026994, 56523.64,Urbaser LTD,01718800,,Contract Payments,Street Scene,H23SD000054001,
http://statistics.data.gov.uk/id/local-authority/29UP,Tonbridge & Malling Borough Council,8/31/2022,0022026994/46,22026994, 356.30,Urbaser LTD,01718800,,General Maintenance,Dry Recycling,H34SR000020301,
http://statistics.data.gov.uk/id/local-authority/29UP,Tonbridge & Malling Borough Council,8/31/2022,0022026994/47,22026994, 82536.93,Urbaser LTD,01718800,,Contract Payments,Dry Recycling,H34SR000054001,
http://statistics.data.gov.uk/id/local-authority/29UP,Tonbridge & Malling Borough Council,8/31/2022,0022026994/48,22026994, 4157.10,Urbaser LTD,01718800,,Bring Sites Mixed Recycling,Dry Recycling,H34SR000054026,
http://statistics.data.gov.uk/id/local-authority/29UP,Tonbridge & Malling Borough Council,8/31/2022,0022026994/49,22026994, 32295.84,Urbaser LTD,01718800,,Contract Payments,Food Recycling,H34SS000054001,
http://statistics.data.gov.uk/id/local-authority/29UP,Tonbridge & Malling Borough Council,8/31/2022,0022026994/5,22026994, 34.02,Urbaser LTD,01718800,,Maintenance of Grounds,Haysden Country Park,B22LC000020402,
http://statistics.data.gov.uk/id/local-authority/29UP,Tonbridge & Malling Borough Council,8/31/2022,0022026994/50,22026994, 17888.09,Urbaser LTD,01718800,,Contract Payments,Garden Waste Recycling,H34ST000054001,
http://statistics.data.gov.uk/id/local-authority/29UP,Tonbridge & Malling Borough Council,8/31/2022,0022026994/6,22026994, 26.13,Urbaser LTD,01718800,,Dog Bin Emptying,Haysden Country Park,B22LC000044012,
http://statistics.data.gov.uk/id/local-authority/29UP,Tonbridge & Malling Borough Council,8/31/2022,0022026994/7,22026994, 740.63,Urbaser LTD,01718800,,Maintenance of Grounds,Open Spaces & Amenity Areas,B22LE000020402,
http://statistics.data.gov.uk/id/local-authority/29UP,Tonbridge & Malling Borough Council,8/31/2022,0022026994/8,22026994, 13.93,Urbaser LTD,01718800,,Dog Bin Emptying,Open Spaces & Amenity Areas,B22LE000044012,
http://statistics.data.gov.uk/id/local-authority/29UP,Tonbridge & Malling Borough Council,8/31/2022,0022026994/9,22026994, 24.04,Urbaser LTD,01718800,,Maintenance of Grounds,Countryside/Woodland Mgt,B22LG000020402,
http://statistics.data.gov.uk/id/local-authority/29UP,Tonbridge & Malling Borough Council,8/31/2022,0022026995/10,22026995, 72.20,Urbaser LTD,01718800,,Maintenance of Grounds,Leybourne Lakes Country Park,B22LK000020402,
http://statistics.data.gov.uk/id/local-authority/29UP,Tonbridge & Malling Borough Council,8/31/2022,0022026995/11,22026995, 26.13,Urbaser LTD,01718800,,Maintenance of Grounds,Leybourne Lakes Country Park,B22LK000020402,
http://statistics.data.gov.uk/id/local-authority/29UP,Tonbridge & Malling Borough Council,8/31/2022,0022026995/12,22026995, 60.22,Urbaser LTD,01718800,,Maintenance of Grounds,Grounds,D21FF000020402,
http://statistics.data.gov.uk/id/local-authority/29UP,Tonbridge & Malling Borough Council,8/31/2022,0022026995/13,22026995, 184.19,Urbaser LTD,01718800,,Maintenance of Grounds,Parking Off-Street,E10HA000020402,
http://statistics.data.gov.uk/id/local-authority/29UP,Tonbridge & Malling Borough Council,8/31/2022,0022026995/14,22026995, 4686.59,Urbaser LTD,01718800,,Maintenance of Grounds,Parking Off-Street,E10HAE00120402,
http://statistics.data.gov.uk/id/local-authority/29UP,Tonbridge & Malling Borough Council,8/31/2022,0022026995/15,22026995, 504.84,Urbaser LTD,01718800,,Maintenance of Grounds,Parking Off-Street,E10HAE00220402,
http://statistics.data.gov.uk/id/local-authority/29UP,Tonbridge & Malling Borough Council,8/31/2022,0022026995/16,22026995, 315.82,Urbaser LTD,01718800,,Maintenance of Grounds,Parking Off-Street,E10HAE00320402,
http://statistics.data.gov.uk/id/local-authority/29UP,Tonbridge & Malling Borough Council,8/31/2022,0022026995/17,22026995, 1651.73,Urbaser LTD,01718800,,Maintenance of Grounds,Parking Off-Street,E10HAE00420402,
http://statistics.data.gov.uk/id/local-authority/29UP,Tonbridge & Malling Borough Council,8/31/2022,0022026995/18,22026995, 274.48,Urbaser LTD,01718800,,Maintenance of Grounds,Parking Off-Street,E10HAE00520402,
http://statistics.data.gov.uk/id/local-authority/29UP,Tonbridge & Malling Borough Council,8/31/2022,0022026995/19,22026995, 1023.71,Urbaser LTD,01718800,,Maintenance of Grounds,Parking Off-Street,E10HAE00620402,
http://statistics.data.gov.uk/id/local-authority/29UP,Tonbridge & Malling Borough Council,8/31/2022,0022026995/20,22026995, 8.63,Urbaser LTD,01718800,,Maintenance of Grounds,Parking Off-Street,E10HAE00820402,
http://statistics.data.gov.uk/id/local-authority/29UP,Tonbridge & Malling Borough Council,8/31/2022,0022026995/21,22026995, 8.52,Urbaser LTD,01718800,,Maintenance of Grounds,Parking Off-Street,E10HAE00920402,
http://statistics.data.gov.uk/id/local-authority/29UP,Tonbridge & Malling Borough Council,8/31/2022,0022026995/22,22026995, 20.23,Urbaser LTD,01718800,,Maintenance of Grounds,Parking Off-Street,E10HAE01020402,
http://statistics.data.gov.uk/id/local-authority/29UP,Tonbridge & Malling Borough Council,8/31/2022,0022026995/23,22026995, 96.12,Urbaser LTD,01718800,,Maintenance of Grounds,Parking Off-Street,E10HAE01120402,
http://statistics.data.gov.uk/id/local-authority/29UP,Tonbridge & Malling Borough Council,8/31/2022,0022026995/24,22026995, 60.48,Urbaser LTD,01718800,,Maintenance of Grounds,Parking Off-Street,E10HAE01220402,
http://statistics.data.gov.uk/id/local-authority/29UP,Tonbridge & Malling Borough Council,8/31/2022,0022026995/25,22026995, 1146.81,Urbaser LTD,01718800,,Maintenance of Grounds,Parking Off-Street,E10HAE01320402,
http://statistics.data.gov.uk/id/local-authority/29UP,Tonbridge & Malling Borough Council,8/31/2022,0022026995/26,22026995, 87.22,Urbaser LTD,01718800,,Maintenance of Grounds,Parking Off-Street,E10HAE01420402,
http://statistics.data.gov.uk/id/local-authority/29UP,Tonbridge & Malling Borough Council,8/31/2022,0022026995/27,22026995, 268.78,Urbaser LTD,01718800,,Maintenance of Grounds,Parking Off-Street,E10HAE01520402,
http://statistics.data.gov.uk/id/local-authority/29UP,Tonbridge & Malling Borough Council,8/31/2022,0022026995/28,22026995, 289.08,Urbaser LTD,01718800,,Maintenance of Grounds,Parking Off-Street,E10HAE01620402,
http://statistics.data.gov.uk/id/local-authority/29UP,Tonbridge & Malling Borough Council,8/31/2022,0022026995/29,22026995, 853.41,Urbaser LTD,01718800,,Maintenance of Grounds,Parking Off-Street,E10HAE01720402,
http://statistics.data.gov.uk/id/local-authority/29UP,Tonbridge & Malling Borough Council,8/31/2022,0022026995/3,22026995, 387.37,Urbaser LTD,01718800,,Maintenance of Grounds,Sports Grounds,B13ET000020402,
http://statistics.data.gov.uk/id/local-authority/29UP,Tonbridge & Malling Borough Council,8/31/2022,0022026995/30,22026995, 244.95,Urbaser LTD,01718800,,Maintenance of Grounds,Parking Off-Street,E10HAE01920402,
http://statistics.data.gov.uk/id/local-authority/29UP,Tonbridge & Malling Borough Council,8/31/2022,0022026995/31,22026995, 538.07,Urbaser LTD,01718800,,Maintenance of Grounds,Parking Off-Street,E10HAE02020402,
http://statistics.data.gov.uk/id/local-authority/29UP,Tonbridge & Malling Borough Council,8/31/2022,0022026995/32,22026995, 18.68,Urbaser LTD,01718800,,Maintenance of Grounds,Parking Off-Street,E10HAE02120402,
http://statistics.data.gov.uk/id/local-authority/29UP,Tonbridge & Malling Borough Council,8/31/2022,0022026995/33,22026995, 123.00,Urbaser LTD,01718800,,Maintenance of Grounds,Parking Off-Street,E10HAE02220402,
http://statistics.data.gov.uk/id/local-authority/29UP,Tonbridge & Malling Borough Council,8/31/2022,0022026995/34,22026995, 1034.02,Urbaser LTD,01718800,,Maintenance of Grounds,Parking Off-Street,E10HAE02320402,
http://statistics.data.gov.uk/id/local-authority/29UP,Tonbridge & Malling Borough Council,8/31/2022,0022026995/35,22026995, 2.67,Urbaser LTD,01718800,,Maintenance of Grounds,Parking Off-Street,E10HAE02720402,
http://statistics.data.gov.uk/id/local-authority/29UP,Tonbridge & Malling Borough Council,8/31/2022,0022026995/36,22026995, 375.72,Urbaser LTD,01718800,,Maintenance of Grounds,Parking Off-Street,E10HAE02820402,
http://statistics.data.gov.uk/id/local-authority/29UP,Tonbridge & Malling Borough Council,8/31/2022,0022026995/37,22026995, 6.77,Urbaser LTD,01718800,,Maintenance of Grounds,Parking Off-Street,E10HAE02920402,
http://statistics.data.gov.uk/id/local-authority/29UP,Tonbridge & Malling Borough Council,8/31/2022,0022026995/38,22026995, 39.82,Urbaser LTD,01718800,,Maintenance of Grounds,Parking Off-Street,E10HAE03020402,
http://statistics.data.gov.uk/id/local-authority/29UP,Tonbridge & Malling Borough Council,8/31/2022,0022026995/39,22026995, 33.88,Urbaser LTD,01718800,,Maintenance of Grounds,Parking Off-Street,E10HAE03120402,
http://statistics.data.gov.uk/id/local-authority/29UP,Tonbridge & Malling Borough Council,8/31/2022,0022026995/4,22026995, 82.44,Urbaser LTD,01718800,,Maintenance of Grounds,Poult Wood Golf Centre,B21KE000020402,
http://statistics.data.gov.uk/id/local-authority/29UP,Tonbridge & Malling Borough Council,8/31/2022,0022026995/40,22026995, 718.40,Urbaser LTD,01718800,,Maintenance of Grounds,Parking Off-Street,E10HAE04020402,
http://statistics.data.gov.uk/id/local-authority/29UP,Tonbridge & Malling Borough Council,8/31/2022,0022026995/41,22026995, 498.26,Urbaser LTD,01718800,,Maintenance of Grounds,Parking Off-Street,E10HAE04220402,
http://statistics.data.gov.uk/id/local-authority/29UP,Tonbridge & Malling Borough Council,8/31/2022,0022026995/42,22026995, 1430.15,Urbaser LTD,01718800,,Maintenance of Grounds,Parking Off-Street,E10HAE04520402,
http://statistics.data.gov.uk/id/local-authority/29UP,Tonbridge & Malling Borough Council,8/31/2022,0022026995/43,22026995, 90830.52,Urbaser LTD,01718800,,Contract Payments,Refuse Collection,H20SA000054001,
http://statistics.data.gov.uk/id/local-authority/29UP,Tonbridge & Malling Borough Council,8/31/2022,0022026995/44,22026995, 946.15,Urbaser LTD,01718800,,Responsible Dog Ownership,Street Scene,H23SD000044050,
http://statistics.data.gov.uk/id/local-authority/29UP,Tonbridge & Malling Borough Council,8/31/2022,0022026995/45,22026995, 56523.64,Urbaser LTD,01718800,,Contract Payments,Street Scene,H23SD000054001,
http://statistics.data.gov.uk/id/local-authority/29UP,Tonbridge & Malling Borough Council,8/31/2022,0022026995/46,22026995, 356.30,Urbaser LTD,01718800,,General Maintenance,Dry Recycling,H34SR000020301,
http://statistics.data.gov.uk/id/local-authority/29UP,Tonbridge & Malling Borough Council,8/31/2022,0022026995/47,22026995, 82536.93,Urbaser LTD,01718800,,Contract Payments,Dry Recycling,H34SR000054001,
http://statistics.data.gov.uk/id/local-authority/29UP,Tonbridge & Malling Borough Council,8/31/2022,0022026995/48,22026995, 4157.10,Urbaser LTD,01718800,,Bring Sites Mixed Recycling,Dry Recycling,H34SR000054026,
http://statistics.data.gov.uk/id/local-authority/29UP,Tonbridge & Malling Borough Council,8/31/2022,0022026995/49,22026995, 32295.84,Urbaser LTD,01718800,,Contract Payments,Food Recycling,H34SS000054001,
http://statistics.data.gov.uk/id/local-authority/29UP,Tonbridge & Malling Borough Council,8/31/2022,0022026995/5,22026995, 34.02,Urbaser LTD,01718800,,Maintenance of Grounds,Haysden Country Park,B22LC000020402,
http://statistics.data.gov.uk/id/local-authority/29UP,Tonbridge & Malling Borough Council,8/31/2022,0022026995/50,22026995, 17888.09,Urbaser LTD,01718800,,Contract Payments,Garden Waste Recycling,H34ST000054001,
http://statistics.data.gov.uk/id/local-authority/29UP,Tonbridge & Malling Borough Council,8/31/2022,0022026995/6,22026995, 26.13,Urbaser LTD,01718800,,Dog Bin Emptying,Haysden Country Park,B22LC000044012,
http://statistics.data.gov.uk/id/local-authority/29UP,Tonbridge & Malling Borough Council,8/31/2022,0022026995/7,22026995, 740.63,Urbaser LTD,01718800,,Maintenance of Grounds,Open Spaces & Amenity Areas,B22LE000020402,
http://statistics.data.gov.uk/id/local-authority/29UP,Tonbridge & Malling Borough Council,8/31/2022,0022026995/8,22026995, 13.93,Urbaser LTD,01718800,,Dog Bin Emptying,Open Spaces & Amenity Areas,B22LE000044012,
http://statistics.data.gov.uk/id/local-authority/29UP,Tonbridge & Malling Borough Council,8/31/2022,0022026995/9,22026995, 24.04,Urbaser LTD,01718800,,Maintenance of Grounds,Countryside/Woodland Mgt,B22LG000020402,
http://statistics.data.gov.uk/id/local-authority/29UP,Tonbridge & Malling Borough Council,8/31/2022,0022026996/10,22026996, 72.20,Urbaser LTD,01718800,,Maintenance of Grounds,Leybourne Lakes Country Park,B22LK000020402,
http://statistics.data.gov.uk/id/local-authority/29UP,Tonbridge & Malling Borough Council,8/31/2022,0022026996/11,22026996, 26.13,Urbaser LTD,01718800,,Maintenance of Grounds,Leybourne Lakes Country Park,B22LK000020402,
http://statistics.data.gov.uk/id/local-authority/29UP,Tonbridge & Malling Borough Council,8/31/2022,0022026996/12,22026996, 60.22,Urbaser LTD,01718800,,Maintenance of Grounds,Grounds,D21FF000020402,
http://statistics.data.gov.uk/id/local-authority/29UP,Tonbridge & Malling Borough Council,8/31/2022,0022026996/13,22026996, 184.19,Urbaser LTD,01718800,,Maintenance of Grounds,Parking Off-Street,E10HA000020402,
http://statistics.data.gov.uk/id/local-authority/29UP,Tonbridge & Malling Borough Council,8/31/2022,0022026996/14,22026996, 4686.59,Urbaser LTD,01718800,,Maintenance of Grounds,Parking Off-Street,E10HAE00120402,
http://statistics.data.gov.uk/id/local-authority/29UP,Tonbridge & Malling Borough Council,8/31/2022,0022026996/15,22026996, 504.84,Urbaser LTD,01718800,,Maintenance of Grounds,Parking Off-Street,E10HAE00220402,
http://statistics.data.gov.uk/id/local-authority/29UP,Tonbridge & Malling Borough Council,8/31/2022,0022026996/16,22026996, 315.82,Urbaser LTD,01718800,,Maintenance of Grounds,Parking Off-Street,E10HAE00320402,
http://statistics.data.gov.uk/id/local-authority/29UP,Tonbridge & Malling Borough Council,8/31/2022,0022026996/17,22026996, 1651.73,Urbaser LTD,01718800,,Maintenance of Grounds,Parking Off-Street,E10HAE00420402,
http://statistics.data.gov.uk/id/local-authority/29UP,Tonbridge & Malling Borough Council,8/31/2022,0022026996/18,22026996, 274.48,Urbaser LTD,01718800,,Maintenance of Grounds,Parking Off-Street,E10HAE00520402,
http://statistics.data.gov.uk/id/local-authority/29UP,Tonbridge & Malling Borough Council,8/31/2022,0022026996/19,22026996, 1023.71,Urbaser LTD,01718800,,Maintenance of Grounds,Parking Off-Street,E10HAE00620402,
http://statistics.data.gov.uk/id/local-authority/29UP,Tonbridge & Malling Borough Council,8/31/2022,0022026996/20,22026996, 8.63,Urbaser LTD,01718800,,Maintenance of Grounds,Parking Off-Street,E10HAE00820402,
http://statistics.data.gov.uk/id/local-authority/29UP,Tonbridge & Malling Borough Council,8/31/2022,0022026996/21,22026996, 8.52,Urbaser LTD,01718800,,Maintenance of Grounds,Parking Off-Street,E10HAE00920402,
http://statistics.data.gov.uk/id/local-authority/29UP,Tonbridge & Malling Borough Council,8/31/2022,0022026996/22,22026996, 20.23,Urbaser LTD,01718800,,Maintenance of Grounds,Parking Off-Street,E10HAE01020402,
http://statistics.data.gov.uk/id/local-authority/29UP,Tonbridge & Malling Borough Council,8/31/2022,0022026996/23,22026996, 96.12,Urbaser LTD,01718800,,Maintenance of Grounds,Parking Off-Street,E10HAE01120402,
http://statistics.data.gov.uk/id/local-authority/29UP,Tonbridge & Malling Borough Council,8/31/2022,0022026996/24,22026996, 60.48,Urbaser LTD,01718800,,Maintenance of Grounds,Parking Off-Street,E10HAE01220402,
http://statistics.data.gov.uk/id/local-authority/29UP,Tonbridge & Malling Borough Council,8/31/2022,0022026996/25,22026996, 1146.81,Urbaser LTD,01718800,,Maintenance of Grounds,Parking Off-Street,E10HAE01320402,
http://statistics.data.gov.uk/id/local-authority/29UP,Tonbridge & Malling Borough Council,8/31/2022,0022026996/26,22026996, 87.22,Urbaser LTD,01718800,,Maintenance of Grounds,Parking Off-Street,E10HAE01420402,
http://statistics.data.gov.uk/id/local-authority/29UP,Tonbridge & Malling Borough Council,8/31/2022,0022026996/27,22026996, 268.78,Urbaser LTD,01718800,,Maintenance of Grounds,Parking Off-Street,E10HAE01520402,
http://statistics.data.gov.uk/id/local-authority/29UP,Tonbridge & Malling Borough Council,8/31/2022,0022026996/28,22026996, 289.08,Urbaser LTD,01718800,,Maintenance of Grounds,Parking Off-Street,E10HAE01620402,
http://statistics.data.gov.uk/id/local-authority/29UP,Tonbridge & Malling Borough Council,8/31/2022,0022026996/29,22026996, 853.41,Urbaser LTD,01718800,,Maintenance of Grounds,Parking Off-Street,E10HAE01720402,
http://statistics.data.gov.uk/id/local-authority/29UP,Tonbridge & Malling Borough Council,8/31/2022,0022026996/3,22026996, 387.37,Urbaser LTD,01718800,,Maintenance of Grounds,Sports Grounds,B13ET000020402,
http://statistics.data.gov.uk/id/local-authority/29UP,Tonbridge & Malling Borough Council,8/31/2022,0022026996/30,22026996, 244.95,Urbaser LTD,01718800,,Maintenance of Grounds,Parking Off-Street,E10HAE01920402,
http://statistics.data.gov.uk/id/local-authority/29UP,Tonbridge & Malling Borough Council,8/31/2022,0022026996/31,22026996, 538.07,Urbaser LTD,01718800,,Maintenance of Grounds,Parking Off-Street,E10HAE02020402,
http://statistics.data.gov.uk/id/local-authority/29UP,Tonbridge & Malling Borough Council,8/31/2022,0022026996/32,22026996, 18.68,Urbaser LTD,01718800,,Maintenance of Grounds,Parking Off-Street,E10HAE02120402,
http://statistics.data.gov.uk/id/local-authority/29UP,Tonbridge & Malling Borough Council,8/31/2022,0022026996/33,22026996, 123.00,Urbaser LTD,01718800,,Maintenance of Grounds,Parking Off-Street,E10HAE02220402,
http://statistics.data.gov.uk/id/local-authority/29UP,Tonbridge & Malling Borough Council,8/31/2022,0022026996/34,22026996, 1034.02,Urbaser LTD,01718800,,Maintenance of Grounds,Parking Off-Street,E10HAE02320402,
http://statistics.data.gov.uk/id/local-authority/29UP,Tonbridge & Malling Borough Council,8/31/2022,0022026996/35,22026996, 2.67,Urbaser LTD,01718800,,Maintenance of Grounds,Parking Off-Street,E10HAE02720402,
http://statistics.data.gov.uk/id/local-authority/29UP,Tonbridge & Malling Borough Council,8/31/2022,0022026996/36,22026996, 375.72,Urbaser LTD,01718800,,Maintenance of Grounds,Parking Off-Street,E10HAE02820402,
http://statistics.data.gov.uk/id/local-authority/29UP,Tonbridge & Malling Borough Council,8/31/2022,0022026996/37,22026996, 6.77,Urbaser LTD,01718800,,Maintenance of Grounds,Parking Off-Street,E10HAE02920402,
http://statistics.data.gov.uk/id/local-authority/29UP,Tonbridge & Malling Borough Council,8/31/2022,0022026996/38,22026996, 39.82,Urbaser LTD,01718800,,Maintenance of Grounds,Parking Off-Street,E10HAE03020402,
http://statistics.data.gov.uk/id/local-authority/29UP,Tonbridge & Malling Borough Council,8/31/2022,0022026996/39,22026996, 33.88,Urbaser LTD,01718800,,Maintenance of Grounds,Parking Off-Street,E10HAE03120402,
http://statistics.data.gov.uk/id/local-authority/29UP,Tonbridge & Malling Borough Council,8/31/2022,0022026996/4,22026996, 82.44,Urbaser LTD,01718800,,Maintenance of Grounds,Poult Wood Golf Centre,B21KE000020402,
http://statistics.data.gov.uk/id/local-authority/29UP,Tonbridge & Malling Borough Council,8/31/2022,0022026996/40,22026996, 718.40,Urbaser LTD,01718800,,Maintenance of Grounds,Parking Off-Street,E10HAE04020402,
http://statistics.data.gov.uk/id/local-authority/29UP,Tonbridge & Malling Borough Council,8/31/2022,0022026996/41,22026996, 498.26,Urbaser LTD,01718800,,Maintenance of Grounds,Parking Off-Street,E10HAE04220402,
http://statistics.data.gov.uk/id/local-authority/29UP,Tonbridge & Malling Borough Council,8/31/2022,0022026996/42,22026996, 1430.15,Urbaser LTD,01718800,,Maintenance of Grounds,Parking Off-Street,E10HAE04520402,
http://statistics.data.gov.uk/id/local-authority/29UP,Tonbridge & Malling Borough Council,8/31/2022,0022026996/43,22026996, 90830.52,Urbaser LTD,01718800,,Contract Payments,Refuse Collection,H20SA000054001,
http://statistics.data.gov.uk/id/local-authority/29UP,Tonbridge & Malling Borough Council,8/31/2022,0022026996/44,22026996, 946.15,Urbaser LTD,01718800,,Responsible Dog Ownership,Street Scene,H23SD000044050,
http://statistics.data.gov.uk/id/local-authority/29UP,Tonbridge & Malling Borough Council,8/31/2022,0022026996/45,22026996, 56523.64,Urbaser LTD,01718800,,Contract Payments,Street Scene,H23SD000054001,
http://statistics.data.gov.uk/id/local-authority/29UP,Tonbridge & Malling Borough Council,8/31/2022,0022026996/46,22026996, 356.30,Urbaser LTD,01718800,,General Maintenance,Dry Recycling,H34SR000020301,
http://statistics.data.gov.uk/id/local-authority/29UP,Tonbridge & Malling Borough Council,8/31/2022,0022026996/47,22026996, 82536.93,Urbaser LTD,01718800,,Contract Payments,Dry Recycling,H34SR000054001,
http://statistics.data.gov.uk/id/local-authority/29UP,Tonbridge & Malling Borough Council,8/31/2022,0022026996/48,22026996, 4157.10,Urbaser LTD,01718800,,Bring Sites Mixed Recycling,Dry Recycling,H34SR000054026,
http://statistics.data.gov.uk/id/local-authority/29UP,Tonbridge & Malling Borough Council,8/31/2022,0022026996/49,22026996, 32295.84,Urbaser LTD,01718800,,Contract Payments,Food Recycling,H34SS000054001,
http://statistics.data.gov.uk/id/local-authority/29UP,Tonbridge & Malling Borough Council,8/31/2022,0022026996/5,22026996, 34.02,Urbaser LTD,01718800,,Maintenance of Grounds,Haysden Country Park,B22LC000020402,
http://statistics.data.gov.uk/id/local-authority/29UP,Tonbridge & Malling Borough Council,8/31/2022,0022026996/50,22026996, 17888.09,Urbaser LTD,01718800,,Contract Payments,Garden Waste Recycling,H34ST000054001,
http://statistics.data.gov.uk/id/local-authority/29UP,Tonbridge & Malling Borough Council,8/31/2022,0022026996/6,22026996, 26.13,Urbaser LTD,01718800,,Dog Bin Emptying,Haysden Country Park,B22LC000044012,
http://statistics.data.gov.uk/id/local-authority/29UP,Tonbridge & Malling Borough Council,8/31/2022,0022026996/7,22026996, 740.63,Urbaser LTD,01718800,,Maintenance of Grounds,Open Spaces & Amenity Areas,B22LE000020402,
http://statistics.data.gov.uk/id/local-authority/29UP,Tonbridge & Malling Borough Council,8/31/2022,0022026996/8,22026996, 13.93,Urbaser LTD,01718800,,Dog Bin Emptying,Open Spaces & Amenity Areas,B22LE000044012,
http://statistics.data.gov.uk/id/local-authority/29UP,Tonbridge & Malling Borough Council,8/31/2022,0022026996/9,22026996, 24.04,Urbaser LTD,01718800,,Maintenance of Grounds,Countryside/Woodland Mgt,B22LG000020402,
http://statistics.data.gov.uk/id/local-authority/29UP,Tonbridge & Malling Borough Council,8/31/2022,0022026997/10,22026997, 72.20,Urbaser LTD,01718800,,Maintenance of Grounds,Leybourne Lakes Country Park,B22LK000020402,
http://statistics.data.gov.uk/id/local-authority/29UP,Tonbridge & Malling Borough Council,8/31/2022,0022026997/11,22026997, 26.13,Urbaser LTD,01718800,,Maintenance of Grounds,Leybourne Lakes Country Park,B22LK000020402,
http://statistics.data.gov.uk/id/local-authority/29UP,Tonbridge & Malling Borough Council,8/31/2022,0022026997/12,22026997, 60.22,Urbaser LTD,01718800,,Maintenance of Grounds,Grounds,D21FF000020402,
http://statistics.data.gov.uk/id/local-authority/29UP,Tonbridge & Malling Borough Council,8/31/2022,0022026997/13,22026997, 184.19,Urbaser LTD,01718800,,Maintenance of Grounds,Parking Off-Street,E10HA000020402,
http://statistics.data.gov.uk/id/local-authority/29UP,Tonbridge & Malling Borough Council,8/31/2022,0022026997/14,22026997, 4686.59,Urbaser LTD,01718800,,Maintenance of Grounds,Parking Off-Street,E10HAE00120402,
http://statistics.data.gov.uk/id/local-authority/29UP,Tonbridge & Malling Borough Council,8/31/2022,0022026997/15,22026997, 504.84,Urbaser LTD,01718800,,Maintenance of Grounds,Parking Off-Street,E10HAE00220402,
http://statistics.data.gov.uk/id/local-authority/29UP,Tonbridge & Malling Borough Council,8/31/2022,0022026997/16,22026997, 315.82,Urbaser LTD,01718800,,Maintenance of Grounds,Parking Off-Street,E10HAE00320402,
http://statistics.data.gov.uk/id/local-authority/29UP,Tonbridge & Malling Borough Council,8/31/2022,0022026997/17,22026997, 1651.73,Urbaser LTD,01718800,,Maintenance of Grounds,Parking Off-Street,E10HAE00420402,
http://statistics.data.gov.uk/id/local-authority/29UP,Tonbridge & Malling Borough Council,8/31/2022,0022026997/18,22026997, 274.48,Urbaser LTD,01718800,,Maintenance of Grounds,Parking Off-Street,E10HAE00520402,
http://statistics.data.gov.uk/id/local-authority/29UP,Tonbridge & Malling Borough Council,8/31/2022,0022026997/19,22026997, 1023.71,Urbaser LTD,01718800,,Maintenance of Grounds,Parking Off-Street,E10HAE00620402,
http://statistics.data.gov.uk/id/local-authority/29UP,Tonbridge & Malling Borough Council,8/31/2022,0022026997/20,22026997, 8.63,Urbaser LTD,01718800,,Maintenance of Grounds,Parking Off-Street,E10HAE00820402,
http://statistics.data.gov.uk/id/local-authority/29UP,Tonbridge & Malling Borough Council,8/31/2022,0022026997/21,22026997, 8.52,Urbaser LTD,01718800,,Maintenance of Grounds,Parking Off-Street,E10HAE00920402,
http://statistics.data.gov.uk/id/local-authority/29UP,Tonbridge & Malling Borough Council,8/31/2022,0022026997/22,22026997, 20.23,Urbaser LTD,01718800,,Maintenance of Grounds,Parking Off-Street,E10HAE01020402,
http://statistics.data.gov.uk/id/local-authority/29UP,Tonbridge & Malling Borough Council,8/31/2022,0022026997/23,22026997, 96.12,Urbaser LTD,01718800,,Maintenance of Grounds,Parking Off-Street,E10HAE01120402,
http://statistics.data.gov.uk/id/local-authority/29UP,Tonbridge & Malling Borough Council,8/31/2022,0022026997/24,22026997, 60.48,Urbaser LTD,01718800,,Maintenance of Grounds,Parking Off-Street,E10HAE01220402,
http://statistics.data.gov.uk/id/local-authority/29UP,Tonbridge & Malling Borough Council,8/31/2022,0022026997/25,22026997, 1146.81,Urbaser LTD,01718800,,Maintenance of Grounds,Parking Off-Street,E10HAE01320402,
http://statistics.data.gov.uk/id/local-authority/29UP,Tonbridge & Malling Borough Council,8/31/2022,0022026997/26,22026997, 87.22,Urbaser LTD,01718800,,Maintenance of Grounds,Parking Off-Street,E10HAE01420402,
http://statistics.data.gov.uk/id/local-authority/29UP,Tonbridge & Malling Borough Council,8/31/2022,0022026997/27,22026997, 268.78,Urbaser LTD,01718800,,Maintenance of Grounds,Parking Off-Street,E10HAE01520402,
http://statistics.data.gov.uk/id/local-authority/29UP,Tonbridge & Malling Borough Council,8/31/2022,0022026997/28,22026997, 289.08,Urbaser LTD,01718800,,Maintenance of Grounds,Parking Off-Street,E10HAE01620402,
http://statistics.data.gov.uk/id/local-authority/29UP,Tonbridge & Malling Borough Council,8/31/2022,0022026997/29,22026997, 853.41,Urbaser LTD,01718800,,Maintenance of Grounds,Parking Off-Street,E10HAE01720402,
http://statistics.data.gov.uk/id/local-authority/29UP,Tonbridge & Malling Borough Council,8/31/2022,0022026997/3,22026997, 387.37,Urbaser LTD,01718800,,Maintenance of Grounds,Sports Grounds,B13ET000020402,
http://statistics.data.gov.uk/id/local-authority/29UP,Tonbridge & Malling Borough Council,8/31/2022,0022026997/30,22026997, 244.95,Urbaser LTD,01718800,,Maintenance of Grounds,Parking Off-Street,E10HAE01920402,
http://statistics.data.gov.uk/id/local-authority/29UP,Tonbridge & Malling Borough Council,8/31/2022,0022026997/31,22026997, 538.07,Urbaser LTD,01718800,,Maintenance of Grounds,Parking Off-Street,E10HAE02020402,
http://statistics.data.gov.uk/id/local-authority/29UP,Tonbridge & Malling Borough Council,8/31/2022,0022026997/32,22026997, 18.68,Urbaser LTD,01718800,,Maintenance of Grounds,Parking Off-Street,E10HAE02120402,
http://statistics.data.gov.uk/id/local-authority/29UP,Tonbridge & Malling Borough Council,8/31/2022,0022026997/33,22026997, 123.00,Urbaser LTD,01718800,,Maintenance of Grounds,Parking Off-Street,E10HAE02220402,
http://statistics.data.gov.uk/id/local-authority/29UP,Tonbridge & Malling Borough Council,8/31/2022,0022026997/34,22026997, 1034.02,Urbaser LTD,01718800,,Maintenance of Grounds,Parking Off-Street,E10HAE02320402,
http://statistics.data.gov.uk/id/local-authority/29UP,Tonbridge & Malling Borough Council,8/31/2022,0022026997/35,22026997, 2.67,Urbaser LTD,01718800,,Maintenance of Grounds,Parking Off-Street,E10HAE02720402,
http://statistics.data.gov.uk/id/local-authority/29UP,Tonbridge & Malling Borough Council,8/31/2022,0022026997/36,22026997, 375.72,Urbaser LTD,01718800,,Maintenance of Grounds,Parking Off-Street,E10HAE02820402,
http://statistics.data.gov.uk/id/local-authority/29UP,Tonbridge & Malling Borough Council,8/31/2022,0022026997/37,22026997, 6.77,Urbaser LTD,01718800,,Maintenance of Grounds,Parking Off-Street,E10HAE02920402,
http://statistics.data.gov.uk/id/local-authority/29UP,Tonbridge & Malling Borough Council,8/31/2022,0022026997/38,22026997, 39.82,Urbaser LTD,01718800,,Maintenance of Grounds,Parking Off-Street,E10HAE03020402,
http://statistics.data.gov.uk/id/local-authority/29UP,Tonbridge & Malling Borough Council,8/31/2022,0022026997/39,22026997, 33.88,Urbaser LTD,01718800,,Maintenance of Grounds,Parking Off-Street,E10HAE03120402,
http://statistics.data.gov.uk/id/local-authority/29UP,Tonbridge & Malling Borough Council,8/31/2022,0022026997/4,22026997, 82.44,Urbaser LTD,01718800,,Maintenance of Grounds,Poult Wood Golf Centre,B21KE000020402,
http://statistics.data.gov.uk/id/local-authority/29UP,Tonbridge & Malling Borough Council,8/31/2022,0022026997/40,22026997, 718.40,Urbaser LTD,01718800,,Maintenance of Grounds,Parking Off-Street,E10HAE04020402,
http://statistics.data.gov.uk/id/local-authority/29UP,Tonbridge & Malling Borough Council,8/31/2022,0022026997/41,22026997, 498.26,Urbaser LTD,01718800,,Maintenance of Grounds,Parking Off-Street,E10HAE04220402,
http://statistics.data.gov.uk/id/local-authority/29UP,Tonbridge & Malling Borough Council,8/31/2022,0022026997/42,22026997, 1430.15,Urbaser LTD,01718800,,Maintenance of Grounds,Parking Off-Street,E10HAE04520402,
http://statistics.data.gov.uk/id/local-authority/29UP,Tonbridge & Malling Borough Council,8/31/2022,0022026997/43,22026997, 90830.52,Urbaser LTD,01718800,,Contract Payments,Refuse Collection,H20SA000054001,
http://statistics.data.gov.uk/id/local-authority/29UP,Tonbridge & Malling Borough Council,8/31/2022,0022026997/44,22026997, 946.15,Urbaser LTD,01718800,,Responsible Dog Ownership,Street Scene,H23SD000044050,
http://statistics.data.gov.uk/id/local-authority/29UP,Tonbridge & Malling Borough Council,8/31/2022,0022026997/45,22026997, 56523.64,Urbaser LTD,01718800,,Contract Payments,Street Scene,H23SD000054001,
http://statistics.data.gov.uk/id/local-authority/29UP,Tonbridge & Malling Borough Council,8/31/2022,0022026997/46,22026997, 356.30,Urbaser LTD,01718800,,General Maintenance,Dry Recycling,H34SR000020301,
http://statistics.data.gov.uk/id/local-authority/29UP,Tonbridge & Malling Borough Council,8/31/2022,0022026997/47,22026997, 82536.93,Urbaser LTD,01718800,,Contract Payments,Dry Recycling,H34SR000054001,
http://statistics.data.gov.uk/id/local-authority/29UP,Tonbridge & Malling Borough Council,8/31/2022,0022026997/48,22026997, 4157.10,Urbaser LTD,01718800,,Bring Sites Mixed Recycling,Dry Recycling,H34SR000054026,
http://statistics.data.gov.uk/id/local-authority/29UP,Tonbridge & Malling Borough Council,8/31/2022,0022026997/49,22026997, 32295.84,Urbaser LTD,01718800,,Contract Payments,Food Recycling,H34SS000054001,
http://statistics.data.gov.uk/id/local-authority/29UP,Tonbridge & Malling Borough Council,8/31/2022,0022026997/5,22026997, 34.02,Urbaser LTD,01718800,,Maintenance of Grounds,Haysden Country Park,B22LC000020402,
http://statistics.data.gov.uk/id/local-authority/29UP,Tonbridge & Malling Borough Council,8/31/2022,0022026997/50,22026997, 17888.09,Urbaser LTD,01718800,,Contract Payments,Garden Waste Recycling,H34ST000054001,
http://statistics.data.gov.uk/id/local-authority/29UP,Tonbridge & Malling Borough Council,8/31/2022,0022026997/6,22026997, 26.13,Urbaser LTD,01718800,,Dog Bin Emptying,Haysden Country Park,B22LC000044012,
http://statistics.data.gov.uk/id/local-authority/29UP,Tonbridge & Malling Borough Council,8/31/2022,0022026997/7,22026997, 740.63,Urbaser LTD,01718800,,Maintenance of Grounds,Open Spaces & Amenity Areas,B22LE000020402,
http://statistics.data.gov.uk/id/local-authority/29UP,Tonbridge & Malling Borough Council,8/31/2022,0022026997/8,22026997, 13.93,Urbaser LTD,01718800,,Dog Bin Emptying,Open Spaces & Amenity Areas,B22LE000044012,
http://statistics.data.gov.uk/id/local-authority/29UP,Tonbridge & Malling Borough Council,8/31/2022,0022026997/9,22026997, 24.04,Urbaser LTD,01718800,,Maintenance of Grounds,Countryside/Woodland Mgt,B22LG000020402,
http://statistics.data.gov.uk/id/local-authority/29UP,Tonbridge & Malling Borough Council,8/31/2022,0022026998/3,22026998, 4645.60,Countrystyle Group,00835900,781981681,Plastic Recycling,Dry Recycling,H34SR000054019,
http://statistics.data.gov.uk/id/local-authority/29UP,Tonbridge & Malling Borough Council,8/31/2022,0022026999/3,22026999, 951.59,KCC - L.A.S.E.R Commercial Services ,00184300,,Electricity,Public Conveniences,H22SCH00421002,
http://statistics.data.gov.uk/id/local-authority/29UP,Tonbridge & Malling Borough Council,8/31/2022,0022027001/3,22027001, 4322.11,Ward Security LTD,01490000,,Dog Warden,Street Scene,H23SD000044100,
http://statistics.data.gov.uk/id/local-authority/29UP,Tonbridge & Malling Borough Council,8/31/2022,0031018858/1,31018858, 118.75,Arnold & Court Ltd,01411300,,Repair & Mtce of Fixed Plant,Boro Highways & Emergency Oper,E01AA000020501,310042871
http://statistics.data.gov.uk/id/local-authority/29UP,Tonbridge & Malling Borough Council,8/31/2022,0031018858/2,31018858, 118.75,Arnold & Court Ltd,01411300,,Premises Repairs & Maintenance,Parking Off-Street,E10HA000020601,310042871
http://statistics.data.gov.uk/id/local-authority/29UP,Tonbridge & Malling Borough Council,8/31/2022,0031018858/3,31018858, 237.50,Arnold & Court Ltd,01411300,,Premises Repairs & Maintenance,Parking On-Street,E10HD000020601,310042871
http://statistics.data.gov.uk/id/local-authority/29UP,Tonbridge & Malling Borough Council,8/31/2022,0031018859/1,31018859, 480.00,Arnold & Court Ltd,01411300,,Premises Repairs & Maintenance,Parking Off-Street,E10HA000020601,310042869
http://statistics.data.gov.uk/id/local-authority/29UP,Tonbridge & Malling Borough Council,8/31/2022,0031018860/1,31018860, 420.00,Arnold & Court Ltd,01411300,,Contract Payments,Boro Drainage & Land Drainage,E20MA000054001,310042866
http://statistics.data.gov.uk/id/local-authority/29UP,Tonbridge & Malling Borough Council,8/31/2022,0031018861/1,31018861, 4569.70,HEREF Tonbridge Ltd,01518900,,Payment re Prev Yrs Cred Acc,Sundry Creditors SSLTS,J80TL000001101,
http://statistics.data.gov.uk/id/local-authority/29UP,Tonbridge & Malling Borough Council,8/31/2022,0031018864/1,31018864, 587.92,Arnold & Court Ltd,01411300,,Winter Maintenance,Parking Off-Street,E10HA000020701,310042875
http://statistics.data.gov.uk/id/local-authority/29UP,Tonbridge & Malling Borough Council,8/31/2022,0031018865/1,31018865, 5930.24,Keyline Northfleet,01853600,,Other Expenses,Car Park Imp Rolling Programme,P01AB000009908,310042844
http://statistics.data.gov.uk/id/local-authority/29UP,Tonbridge & Malling Borough Council,8/31/2022,0031018865/2,31018865, 5934.08,Keyline Northfleet,01853600,,Other Expenses,Car Park Imp Rolling Programme,P01AB000009908,310042844
http://statistics.data.gov.uk/id/local-authority/29UP,Tonbridge & Malling Borough Council,8/31/2022,0031018865/3,31018865, 46.00,Keyline Northfleet,01853600,,Other Expenses,Car Park Imp Rolling Programme,P01AB000009908,310042844
http://statistics.data.gov.uk/id/local-authority/29UP,Tonbridge & Malling Borough Council,8/31/2022,0031018865/4,31018865, 179.84,Keyline Northfleet,01853600,,Other Expenses,Car Park Imp Rolling Programme,P01AB000009908,310042844
http://statistics.data.gov.uk/id/local-authority/29UP,Tonbridge & Malling Borough Council,8/31/2022,0031018865/5,31018865, 225.00,Keyline Northfleet,01853600,,Other Expenses,Car Park Imp Rolling Programme,P01AB000009908,310042844
http://statistics.data.gov.uk/id/local-authority/29UP,Tonbridge & Malling Borough Council,8/31/2022,0031018867/3,31018867, 569.08,CDER Group,01773300,,Adjudication & Enforcement Ser,Parking Off-Street,E10HA000044230,
http://statistics.data.gov.uk/id/local-authority/29UP,Tonbridge & Malling Borough Council,8/31/2022,0032009746/3,32009746, 2590.00,G2 Recruitment Solutions,01786000,,Temporary Staff,Planning Sals&Overheads,D01AJDJ0111300,
http://statistics.data.gov.uk/id/local-authority/29UP,Tonbridge & Malling Borough Council,8/31/2022,0032009747/3,32009747, 3271.68,G2 Recruitment Solutions,01786000,,Temporary Staff,Planning Sals&Overheads,D01AJDJ0111300,
http://statistics.data.gov.uk/id/local-authority/29UP,Tonbridge & Malling Borough Council,8/31/2022,0032009748/3,32009748, 1593.83,The Oyster Partnership,01196400,,Temporary Staff,Planning Sals&Overheads,D01AJDJ0111300,
http://statistics.data.gov.uk/id/local-authority/29UP,Tonbridge & Malling Borough Council,8/31/2022,0032009749/3,32009749, 1930.76,The Oyster Partnership,01196400,,Temporary Staff,Planning Sals&Overheads,D01AJDJ0111300,
http://statistics.data.gov.uk/id/local-authority/29UP,Tonbridge & Malling Borough Council,8/31/2022,0032009750/3,32009750, 1986.60,The Oyster Partnership,01196400,,Temporary Staff,Planning Sals&Overheads,D01AJDJ0111300,
http://statistics.data.gov.uk/id/local-authority/29UP,Tonbridge & Malling Borough Council,8/31/2022,0032009751/3,32009751, 5306.00,Vivid Resourcing,01773700,,Temporary Staff,Planning Sals&Overheads,D01AJDJ0111300,
http://statistics.data.gov.uk/id/local-authority/29UP,Tonbridge & Malling Borough Council,8/31/2022,0032009752/3,32009752, 1612.50,Carrington West Limited,01844500,,Temporary Staff,Planning Sals&Overheads,D01AJDJ0111300,
http://statistics.data.gov.uk/id/local-authority/29UP,Tonbridge & Malling Borough Council,8/31/2022,0032009753/1,32009753, 182.07,KM Media Group Ltd,00053900,,Advertising General,Development Management,A01ABZ99944216,320003436
http://statistics.data.gov.uk/id/local-authority/29UP,Tonbridge & Malling Borough Council,8/31/2022,0041034656/1,41034656, 629.00,REDACTED PERSONAL DATA,01860300,,Basic Pay,Env Hlth & Hsg Sals&Overheads,D01AVDV0711110,
http://statistics.data.gov.uk/id/local-authority/29UP,Tonbridge & Malling Borough Council,8/31/2022,0051008739/1,51008739, 1280.00,Keep Britain Tidy,00519900,,Ext Fees/Prof & Tech,Training,D10DCDG2013561,510010587
http://statistics.data.gov.uk/id/local-authority/29UP,Tonbridge & Malling Borough Council,8/31/2022,0051008740/1,51008740, 475.00,Irrv,00050300,,Ext Fees/Prof & Tech,Training,D10DCDF1113561,510010590
